Ref No,Fund Type,Dept,Cost Centre Description    ,Description    ,Creditor Name    ,GL Code Net Amount,Payment date        
498,Revenue,CAHD,Social Lettings Agency,Fees - General,Individual,11.41, 03-Apr-2017
499,Revenue,CAHD,Social Lettings Agency,Other Supplies & Services,Individual,746.54, 03-Apr-2017
542,Revenue,CAHD,Pathway 1 - Re-Ablement Home Care,Private & Voluntary Home Care,Brunelcare,24132.35, 03-Apr-2017
547,Revenue,CAHD,South Glos Users in South Glos Homes,Permanent Nursing,Brunelcare,691.96, 03-Apr-2017
548,Revenue,CAHD,Bed Purchasing - North,Permanent Nursing,Brunelcare,2562.86, 03-Apr-2017
549,Revenue,CAHD,Bed Purchasing - Southmead Hospital,Permanent Nursing,Brunelcare,2534.21, 03-Apr-2017
550,Revenue,CAHD,South Glos Users in South Glos Homes,Permanent Nursing,Brunelcare,691.96, 03-Apr-2017
551,Revenue,CAHD,Bed Purchasing - Elderly S117- North,Permanent Nursing,Brunelcare,3179.71, 03-Apr-2017
552,Revenue,CAHD,Bed Purchasing - South,Permanent Nursing,Brunelcare,2591.16, 03-Apr-2017
553,Revenue,CAHD,South Glos Users in South Glos Homes,Permanent Nursing,Brunelcare,535.71, 03-Apr-2017
554,Revenue,CAHD,Bed Purchasing - Southmead Hospital,Permanent Nursing,Brunelcare,1117.99, 03-Apr-2017
555,Revenue,CAHD,South Glos Users in South Glos Homes,Permanent Nursing,Brunelcare,691.96, 03-Apr-2017
556,Revenue,CAHD,Bed Purchasing - South,Permanent Nursing,Brunelcare,2385.49, 03-Apr-2017
557,Revenue,CAHD,South Glos Users in South Glos Homes,Permanent Nursing,Brunelcare,691.96, 03-Apr-2017
558,Revenue,CAHD,Bed Purchasing - South,Permanent Nursing,Brunelcare,2409.41, 03-Apr-2017
559,Revenue,CAHD,South Glos Users in South Glos Homes,Permanent Nursing,Brunelcare,691.96, 03-Apr-2017
561,Revenue,CAHD,South Glos Users in South Glos Homes,Permanent Nursing,Brunelcare,691.96, 03-Apr-2017
562,Revenue,CAHD,Bed Purchasing - North,Permanent Nursing,Brunelcare,2529.78, 03-Apr-2017
563,Revenue,CAHD,South Glos Users in South Glos Homes,Permanent Nursing,Brunelcare,691.96, 03-Apr-2017
564,Revenue,CAHD,Bed Purchasing - Southmead Hospital,Permanent Nursing,Brunelcare,2430.09, 03-Apr-2017
565,Revenue,CAHD,South Glos Users in South Glos Homes,Permanent Nursing,Brunelcare,691.96, 03-Apr-2017
566,Revenue,CAHD,Bed Purchasing - North,Permanent Nursing,Brunelcare,2552.72, 03-Apr-2017
567,Revenue,CAHD,South Glos Users in South Glos Homes,Permanent Nursing,Brunelcare,691.96, 03-Apr-2017
568,Revenue,CAHD,Bed Purchasing - North,Permanent Nursing,Brunelcare,2600.9, 03-Apr-2017
569,Revenue,CAHD,South Glos Users in South Glos Homes,Permanent Nursing,Brunelcare,691.96, 03-Apr-2017
570,Revenue,CAHD,Bed Purchasing - Southmead Hospital,Permanent Nursing,Brunelcare,2600.9, 03-Apr-2017
571,Revenue,CAHD,Bed Purchasing - Southmead Hospital,Permanent Nursing,Brunelcare,2600.9, 03-Apr-2017
572,Revenue,CAHD,Bed Purchasing - Elderly S117- North,Permanent Nursing,Brunelcare,1743.71, 03-Apr-2017
573,Revenue,CAHD,Bed Purchasing - North,Respite Planned - Nursing,Brunelcare,1230.86, 03-Apr-2017
574,Revenue,CAHD,Bed Purchasing - North,Respite Planned - Nursing,Brunelcare,874.25, 03-Apr-2017
575,Revenue,CAHD,Bed Purchasing - North,Respite Planned - Nursing,Brunelcare,820.57, 03-Apr-2017
576,Revenue,CAHD,Bed Purchasing - North,Respite Planned - Nursing,Brunelcare,1623.61, 03-Apr-2017
577,Revenue,CAHD,South Glos Users in South Glos Homes,Permanent Nursing,Brunelcare,1517.86, 03-Apr-2017
1984,Revenue,CAHD,CSC - Kids Contract,Grants to Voluntary Bodies,Kids,44345, 03-Apr-2017
1985,Revenue,CAHD,CSC - Short Breaks,Grants to Voluntary Bodies,Kids,1362, 03-Apr-2017
1996,Revenue,CAHD,CSC - LAC Housing Support Grants,Grants to Voluntary Bodies,Kingswood Young Homeless Project,9564.25, 03-Apr-2017
2840,Revenue,CAHD,Health Inequalities,Other Supplies & Services,NHS Bristol CCG,7786, 03-Apr-2017
2971,Revenue,CAHD,Supported Living - South,Adults - Family Support,Performance Health Ltd,2104.6, 03-Apr-2017
3043,Revenue,CAHD,Home Care - Elderly - South,Other Small Contracts,Right At Home (Bristol),686, 03-Apr-2017
3044,Revenue,CAHD,Home Care - Elderly - South,Other Small Contracts,Right At Home (Bristol),686, 03-Apr-2017
3190,Revenue,CAHD,CSC - Short Breaks,Grants to Voluntary Bodies,Sense,742.25, 03-Apr-2017
3343,Revenue,CAHD,North Hub Offices,Computer Equipment - Purchase,Stone Computers Limited,904, 03-Apr-2017
3368,Revenue,CAHD,CSC - Family Support Grants,Grants to Voluntary Bodies,Survive,6101.5, 03-Apr-2017
3413,Revenue,CAHD,CSC - Short Breaks,Grants to Voluntary Bodies,The Brandon Trust,47816.5, 03-Apr-2017
3414,Revenue,CAHD,CSC - Short Breaks,Grants to Voluntary Bodies,The Brandon Trust,25032, 03-Apr-2017
3735,Revenue,CAHD,Youth Centres South Locality,One-off Planned Direct Payment,The You Foundation,9532.5, 03-Apr-2017
3815,Revenue,CAHD,Supported Living - South,Adults - Family Support,United Response,555.25, 03-Apr-2017
3816,Revenue,CAHD,Supported Living - South,Adults - Family Support,United Response,555.25, 03-Apr-2017
526,Revenue,CAHD,Sexual Health,Other Small Contracts,Bristol City Council,63259, 04-Apr-2017
595,Revenue,CAHD,Tenancy Start Up Scheme,Other Supplies & Services,C J Hole,4214.44, 04-Apr-2017
713,Revenue,CAHD,CSC - Allowances,Membership Fees,CCS Adoption,2180.6, 04-Apr-2017
1747,Revenue,CAHD,CSC - Through & Leaving Care Team,Agency Staff (Admin/Support Staff) Pay,Hampton`s Resourcing,1593, 04-Apr-2017
1804,Revenue,CAHD,Home Care - Elderly - South,Day Care / Social Activities,Headway Bristol,938.08, 04-Apr-2017
1805,Revenue,CAHD,Home Care - Elderly - South,Other Small Contracts,Headway Bristol,426.4, 04-Apr-2017
1806,Revenue,CAHD,Home Care - Elderly - North,Day Care / Social Activities,Headway Bristol,852.8, 04-Apr-2017
1807,Revenue,CAHD,Home Care - Elderly - North,Other Small Contracts,Headway Bristol,127.92, 04-Apr-2017
1997,Revenue,CAHD,Children Centres - South Locality,Furniture & Fittings Loose,Kinnarps UK Limited (Invoice Account),472.8, 04-Apr-2017
2053,Revenue,CAHD,Home Care - Elderly - North,Supported Living,Lifeways Community Care (Gloucester) Limited,12387.54, 04-Apr-2017
2824,Revenue,CAHD,Social Lettings Agency,Fees - General,Individual,10, 04-Apr-2017
2825,Revenue,CAHD,Social Lettings Agency,Other Supplies & Services,Individual,565, 04-Apr-2017
3254,Revenue,CAHD,Home Care - Elderly - South,Day Care / Social Activities,Smile Independent Living Support Limited,94.8, 04-Apr-2017
3255,Revenue,CAHD,Home Care - Elderly - South,Other Small Contracts,Smile Independent Living Support Limited,246.48, 04-Apr-2017
3256,Revenue,CAHD,Home Care - Elderly - North,Day Care / Social Activities,Smile Independent Living Support Limited,682.56, 04-Apr-2017
3257,Revenue,CAHD,Home Care - Elderly - North,Other Small Contracts,Smile Independent Living Support Limited,549.84, 04-Apr-2017
3258,Revenue,CAHD,Home Care - Elderly - North,Supported Living,Smile Independent Living Support Limited,208.56, 04-Apr-2017
3443,Revenue,CAHD,CSC - Vinney Green Secure Unit,"Provisions (Food, etc)",The Consortium,580.21, 04-Apr-2017
3626,Revenue,CAHD,Tenancy Start Up Scheme,Other Supplies & Services,The Letting Game,800, 04-Apr-2017
184,Revenue,CAHD,Direct Payments - Phys Dis - North,Grants to Voluntary Bodies,Aquarium Card Management Solutions Ltd,2188.5, 05-Apr-2017
1199,Revenue,CAHD,Home Care - Elderly - South,Day Care / Social Activities,Freeways Trust Limited,1046.32, 05-Apr-2017
2155,Revenue,CAHD,CSC - Adoption Support Fund,Post Adoption,Lloyds TSB Commercial Finance Limited,550, 05-Apr-2017
2240,Revenue,CAHD,Social Lettings Agency,Fees - General,Individual,13.6, 05-Apr-2017
2241,Revenue,CAHD,Social Lettings Agency,Other Supplies & Services,Individual,768.4, 05-Apr-2017
3039,Revenue,CAHD,Hospital Promoting Independence Team,Care Management/Assessment Staff Pay,RIG Medical Recruit Ltd,921.75, 05-Apr-2017
3197,Revenue,CAHD,Home Care - Elderly - North,Other Small Contracts,Seraphim Home Care,556.92, 05-Apr-2017
3416,Revenue,CAHD,Early Years Development,External Lecturers Fees,The British Association for Early,700, 05-Apr-2017
3747,Revenue,CAHD,Tenancy Start Up Scheme,Other Supplies & Services,Tracey King for Yate Shopping centre,1450, 05-Apr-2017
3770,Revenue,CAHD,Planning and Partnerships Procurement,Other Supplies & Services,Tynetec Limited,2005.61, 05-Apr-2017
134,Revenue,CAHD,Home Care - Elderly - South,Other Small Contracts,Agincare UK Limited,1745.8, 06-Apr-2017
135,Revenue,CAHD,Home Care - Elderly - North,Other Small Contracts,Agincare UK Limited,847.1, 06-Apr-2017
136,Revenue,CAHD,Home Care - Elderly - South,Other Small Contracts,Agincare UK Limited,1797.4, 06-Apr-2017
137,Revenue,CAHD,Home Care - Elderly - North,Other Small Contracts,Agincare UK Limited,799.8, 06-Apr-2017
138,Revenue,CAHD,Home Care - Elderly - South,Other Small Contracts,Agincare UK Limited,2124.2, 06-Apr-2017
139,Revenue,CAHD,Home Care - Elderly - North,Other Small Contracts,Agincare UK Limited,799.8, 06-Apr-2017
415,Revenue,CAHD,Home Care - Elderly - South,Other Small Contracts,Bluebird Care (South Gloucestershire),592.36, 06-Apr-2017
416,Revenue,CAHD,Home Care - Elderly - North,Other Small Contracts,Bluebird Care (South Gloucestershire),649.78, 06-Apr-2017
424,Revenue,CAHD,Schools Specific Grant Income,Other Public Bodies,Booktrust,3746.2, 06-Apr-2017
579,Revenue,CAHD,Home Care - Elderly - South,Other Small Contracts,Brunelcare,1595.62, 06-Apr-2017
580,Revenue,CAHD,Home Care - Elderly - North,Other Small Contracts,Brunelcare,1193.4, 06-Apr-2017
582,Revenue,CAHD,Home Care - Elderly - North,Other Small Contracts,Brunelcare,1246.44, 06-Apr-2017
628,Revenue,CAHD,CAH Assistant Directors,Agency Staff (Admin/Support Staff) Pay,Capita Resourcing Limited,9720, 06-Apr-2017
692,Revenue,CAHD,"Education, Learning and Skills",Consultants Fees,Cathcart Education Associates,3200, 06-Apr-2017
718,Revenue,CAHD,Home Care - Elderly - South,Other Small Contracts,Cherish Able Care Limited,5824.46, 06-Apr-2017
719,Revenue,CAHD,Home Care - Elderly - North,Other Small Contracts,Cherish Able Care Limited,3220.98, 06-Apr-2017
996,Revenue,CAHD,Home Care - Elderly - South,Day Care / Social Activities,Elite Home Care Ltd,188.16, 06-Apr-2017
997,Revenue,CAHD,Home Care - Elderly - South,Other Small Contracts,Elite Home Care Ltd,8151.93, 06-Apr-2017
998,Revenue,CAHD,Home Care - Elderly - North,Other Small Contracts,Elite Home Care Ltd,107.52, 06-Apr-2017
1870,Revenue,CAHD,Bed and Breakfast,Bed & Breakfast,Homes 4 All Ltd,520.8, 06-Apr-2017
2615,Revenue,CAHD,Home Care - Elderly - South,Day Care / Social Activities,Milestones Supported Living Services,6788.64, 06-Apr-2017
2616,Revenue,CAHD,Home Care - Elderly - South,Other Small Contracts,Milestones Supported Living Services,6015.42, 06-Apr-2017
2617,Revenue,CAHD,Home Care - Elderly - South,Supported Living,Milestones Supported Living Services,2658.52, 06-Apr-2017
2618,Revenue,CAHD,Home Care - Elderly - North,Day Care / Social Activities,Milestones Supported Living Services,708.64, 06-Apr-2017
2619,Revenue,CAHD,Home Care - Elderly - North,Other Small Contracts,Milestones Supported Living Services,3201.8, 06-Apr-2017
2620,Revenue,CAHD,Home Care - Elderly - North,Supported Living,Milestones Supported Living Services,164.8, 06-Apr-2017
2621,Revenue,CAHD,Day Care - North,Day Care / Social Activities,Milestones Supported Living Services,131.84, 06-Apr-2017
2622,Revenue,CAHD,Younger MH non-res purchasing,Day Care / Social Activities,Milestones Supported Living Services,28.84, 06-Apr-2017
2623,Revenue,CAHD,Home Care - Elderly - South,Day Care / Social Activities,Milestones Supported Living Services,7587.54, 06-Apr-2017
2624,Revenue,CAHD,Home Care - Elderly - South,Other Small Contracts,Milestones Supported Living Services,5932.64, 06-Apr-2017
2625,Revenue,CAHD,Home Care - Elderly - South,Supported Living,Milestones Supported Living Services,2786.24, 06-Apr-2017
2626,Revenue,CAHD,Home Care - Elderly - North,Day Care / Social Activities,Milestones Supported Living Services,895.74, 06-Apr-2017
2627,Revenue,CAHD,Home Care - Elderly - North,Other Small Contracts,Milestones Supported Living Services,2946.36, 06-Apr-2017
2628,Revenue,CAHD,Home Care - Elderly - North,Supported Living,Milestones Supported Living Services,156.56, 06-Apr-2017
2629,Revenue,CAHD,Day Care - North,Day Care / Social Activities,Milestones Supported Living Services,127.72, 06-Apr-2017
2630,Revenue,CAHD,Younger MH non-res purchasing,Day Care / Social Activities,Milestones Supported Living Services,28.84, 06-Apr-2017
2631,Revenue,CAHD,Home Care - Elderly - South,Day Care / Social Activities,Milestones Supported Living Services,6648.56, 06-Apr-2017
2632,Revenue,CAHD,Home Care - Elderly - South,Other Small Contracts,Milestones Supported Living Services,6363.82, 06-Apr-2017
2633,Revenue,CAHD,Home Care - Elderly - South,Supported Living,Milestones Supported Living Services,816.32, 06-Apr-2017
2634,Revenue,CAHD,Home Care - Elderly - North,Day Care / Social Activities,Milestones Supported Living Services,770.44, 06-Apr-2017
2635,Revenue,CAHD,Home Care - Elderly - North,Other Small Contracts,Milestones Supported Living Services,5357.12, 06-Apr-2017
2636,Revenue,CAHD,Home Care - Elderly - North,Supported Living,Milestones Supported Living Services,144.2, 06-Apr-2017
2637,Revenue,CAHD,Day Care - North,Day Care / Social Activities,Milestones Supported Living Services,131.84, 06-Apr-2017
2638,Revenue,CAHD,Home Care - Elderly - South,Day Care / Social Activities,Milestones Supported Living Services,5926.81, 06-Apr-2017
2639,Revenue,CAHD,Home Care - Elderly - South,Other Small Contracts,Milestones Supported Living Services,6522.18, 06-Apr-2017
2640,Revenue,CAHD,Home Care - Elderly - South,Supported Living,Milestones Supported Living Services,717.44, 06-Apr-2017
2641,Revenue,CAHD,Home Care - Elderly - North,Day Care / Social Activities,Milestones Supported Living Services,751.98, 06-Apr-2017
2642,Revenue,CAHD,Home Care - Elderly - North,Other Small Contracts,Milestones Supported Living Services,5254.12, 06-Apr-2017
2643,Revenue,CAHD,Home Care - Elderly - North,Supported Living,Milestones Supported Living Services,164.8, 06-Apr-2017
2644,Revenue,CAHD,Day Care - North,Day Care / Social Activities,Milestones Supported Living Services,131.84, 06-Apr-2017
2645,Revenue,CAHD,Younger MH non-res purchasing,Day Care / Social Activities,Milestones Supported Living Services,28.84, 06-Apr-2017
2646,Revenue,CAHD,Home Care - Elderly - South,Day Care / Social Activities,Milestones Supported Living Services,5912.57, 06-Apr-2017
2647,Revenue,CAHD,Home Care - Elderly - South,Other Small Contracts,Milestones Supported Living Services,6752.02, 06-Apr-2017
2648,Revenue,CAHD,Home Care - Elderly - South,Supported Living,Milestones Supported Living Services,626.8, 06-Apr-2017
2649,Revenue,CAHD,Home Care - Elderly - North,Day Care / Social Activities,Milestones Supported Living Services,613.88, 06-Apr-2017
2650,Revenue,CAHD,Home Care - Elderly - North,Other Small Contracts,Milestones Supported Living Services,5241.76, 06-Apr-2017
2651,Revenue,CAHD,Home Care - Elderly - North,Supported Living,Milestones Supported Living Services,164.8, 06-Apr-2017
2652,Revenue,CAHD,Day Care - North,Day Care / Social Activities,Milestones Supported Living Services,127.72, 06-Apr-2017
2653,Revenue,CAHD,Younger MH non-res purchasing,Day Care / Social Activities,Milestones Supported Living Services,32.96, 06-Apr-2017
2692,Revenue,CAHD,Homeless - Private Sector Leasing,Other Supplies & Services,Individual,570, 06-Apr-2017
2726,Revenue,CAHD,Home Care - Elderly - South,Day Care / Social Activities,Mrs B Kimber -  CM2000,1739.9, 06-Apr-2017
2727,Revenue,CAHD,Home Care - Elderly - South,Other Small Contracts,Mrs B Kimber -  CM2000,8828.02, 06-Apr-2017
2728,Revenue,CAHD,Home Care - Elderly - South,Supported Living,Mrs B Kimber -  CM2000,35.36, 06-Apr-2017
2729,Revenue,CAHD,Home Care - Elderly - North,Day Care / Social Activities,Mrs B Kimber -  CM2000,291.72, 06-Apr-2017
2730,Revenue,CAHD,Home Care - Elderly - North,Other Small Contracts,Mrs B Kimber -  CM2000,2477.02, 06-Apr-2017
3040,Revenue,CAHD,Hospital Promoting Independence Team,Care Management/Assessment Staff Pay,RIG Medical Recruit Ltd,1226, 06-Apr-2017
3278,Revenue,CAHD,Post 16 High Needs Placements,Other Private Contractors,South Gloucestershire and Stroud College,32160.83, 06-Apr-2017
3986,Revenue,CAHD,0-25  Service Staffing Team,Consultants Fees,Wis Group,6000, 06-Apr-2017
4049,Revenue,CAHD,CSC - Residential Placements,Permanent Residential,Young Foundations Ltd,16900, 06-Apr-2017
119,Revenue,CAHD,Home Care - Elderly - North,Day Care / Social Activities,About Me Care and Support Limited,519.36, 07-Apr-2017
121,Revenue,CAHD,Home Care - Elderly - South,Day Care / Social Activities,About Me Care and Support Limited,822.32, 07-Apr-2017
123,Revenue,CAHD,Home Care - Elderly - North,Day Care / Social Activities,About Me Care and Support Limited,519.36, 07-Apr-2017
167,Revenue,CAHD,Home Care - Elderly - South,Other Small Contracts,AliMo Care Ltd,1392.3, 07-Apr-2017
186,Revenue,CAHD,Independent Special Placements - Pre 16,Other Private Contractors,Arc Schools,18625, 07-Apr-2017
187,Revenue,CAHD,CSC - Care Leavers Support Costs,Training Expenses,Archway Community College,1080, 07-Apr-2017
442,Revenue,CAHD,Home Care - Elderly - North,Other Small Contracts,Bramble Home Care Limited,521.56, 07-Apr-2017
443,Revenue,CAHD,Home Care - Elderly - North,Other Small Contracts,Bramble Home Care Limited,682.08, 07-Apr-2017
444,Revenue,CAHD,Home Care - Elderly - North,Other Small Contracts,Bramble Home Care Limited,556.32, 07-Apr-2017
445,Revenue,CAHD,Home Care - Elderly - North,Other Small Contracts,Bramble Home Care Limited,1141.35, 07-Apr-2017
446,Revenue,CAHD,Home Care - Elderly - North,Other Small Contracts,Bramble Home Care Limited,682.08, 07-Apr-2017
447,Revenue,CAHD,Home Care - Elderly - North,Other Small Contracts,Bramble Home Care Limited,521.56, 07-Apr-2017
448,Revenue,CAHD,Home Care - Elderly - North,Other Small Contracts,Bramble Home Care Limited,636.48, 07-Apr-2017
452,Revenue,CAHD,Home Care - Elderly - North,Other Small Contracts,Bramble Home Care Limited,1047.54, 07-Apr-2017
453,Revenue,CAHD,Home Care - Elderly - North,Other Small Contracts,Bramble Home Care Limited,530.4, 07-Apr-2017
531,Revenue,CAHD,CSC - Vinney Green Secure Unit,R & M by Departments,Bristol Electrical Wholesale Limited,609, 07-Apr-2017
532,Revenue,CAHD,Home Care - Elderly - South,Supported Living,Bristol Houses UK Limited,622.44, 07-Apr-2017
613,Revenue,CAHD,Home Care - Elderly - North,Day Care / Social Activities,Camphill Communities Thornbury Limited,1097.5, 07-Apr-2017
614,Revenue,CAHD,Home Care - Elderly - North,Other Small Contracts,Camphill Communities Thornbury Limited,158.04, 07-Apr-2017
615,Revenue,CAHD,Home Care - Elderly - North,Supported Living,Camphill Communities Thornbury Limited,974.58, 07-Apr-2017
654,Revenue,CAHD,General EPH budgets,Other Supplies & Services,Care Quality Commission,15208, 07-Apr-2017
675,Revenue,CAHD,Home Care - Elderly - South,Other Small Contracts,Caring Comes 1st Ltd,1178.2, 07-Apr-2017
676,Revenue,CAHD,Home Care - Elderly - North,Other Small Contracts,Caring Comes 1st Ltd,926.12, 07-Apr-2017
769,Revenue,CAHD,Bed and Breakfast,Bed & Breakfast,Connolly & Callaghan Limited,616, 07-Apr-2017
770,Revenue,CAHD,Bed and Breakfast,Bed & Breakfast,Connolly & Callaghan Limited,476, 07-Apr-2017
771,Revenue,CAHD,Bed and Breakfast,Bed & Breakfast,Connolly & Callaghan Limited,546, 07-Apr-2017
772,Revenue,CAHD,Tenancy Start Up Scheme,Other Supplies & Services,Connolly & Callaghan Limited,616, 07-Apr-2017
773,Revenue,CAHD,Bed and Breakfast,Bed & Breakfast,Connolly & Callaghan Limited,490, 07-Apr-2017
774,Revenue,CAHD,Bed and Breakfast,Bed & Breakfast,Connolly & Callaghan Limited,616, 07-Apr-2017
775,Revenue,CAHD,Bed and Breakfast,Bed & Breakfast,Connolly & Callaghan Limited,476, 07-Apr-2017
776,Revenue,CAHD,Bed and Breakfast,Bed & Breakfast,Connolly & Callaghan Limited,581, 07-Apr-2017
823,Revenue,CAHD,CSC - Safeguarding Board,Training Expenses,Cruidin Training and Consultancy Ltd,1053.05, 07-Apr-2017
841,Revenue,CAHD,Home Care - Elderly - North,Day Care / Social Activities,Derbyshire County Council,7610.71, 07-Apr-2017
1023,Revenue,CAHD,Independent Special Placements - Pre 16,Other Private Contractors,Exeter Royal Academy For Deaf Education,15857, 07-Apr-2017
1024,Revenue,CAHD,Independent Special Placements - Post 16,Other Private Contractors,Exeter Royal Academy For Deaf Education,26144, 07-Apr-2017
1154,Revenue,CAHD,CSC - Agency Fostering,Foster Parent Allowances,Foster Care Associates Limited,2107, 07-Apr-2017
1155,Revenue,CAHD,CSC - Agency Fostering,Foster Parent Allowances,Foster Care Associates Limited,3731.84, 07-Apr-2017
1156,Revenue,CAHD,CSC - Asylum Seekers - Unaccompanied,Foster Parent Allowances,Foster Care Associates Limited,2539.24, 07-Apr-2017
1157,Revenue,CAHD,CSC - Agency Fostering,Foster Parent Allowances,Foster Care Associates Limited,2332.75, 07-Apr-2017
1158,Revenue,CAHD,CSC - Agency Fostering,Foster Parent Allowances,Foster Care Associates Limited,4131.68, 07-Apr-2017
1159,Revenue,CAHD,CSC - Asylum Seekers - Unaccompanied,Foster Parent Allowances,Foster Care Associates Limited,3578.02, 07-Apr-2017
1198,Revenue,CAHD,Home Care - Elderly - South,Other Small Contracts,Freeways Trust Limited,505.12, 07-Apr-2017
1637,Revenue,CAHD,CSC - Fostering General,Advertising - General,Global Radio Services Ltd,5750, 07-Apr-2017
1822,Revenue,CAHD,Home Care - Elderly - South,Other Small Contracts,Helping Hands Homecare,990.08, 07-Apr-2017
1823,Revenue,CAHD,Home Care - Elderly - North,Day Care / Social Activities,Helping Hands Homecare,150.28, 07-Apr-2017
1824,Revenue,CAHD,Home Care - Elderly - North,Other Small Contracts,Helping Hands Homecare,5624.48, 07-Apr-2017
1825,Revenue,CAHD,Younger MH non-res purchasing,Other Small Contracts,Helping Hands Homecare,66, 07-Apr-2017
1847,Revenue,CAHD,CSC - Safeguarding Board,Conference Expenses,Holiday Inn,4340.83, 07-Apr-2017
1909,Revenue,CAHD,Training - Adult Services,Training Expenses,Jonathan Coles,600, 07-Apr-2017
1930,Revenue,CAHD,Telecare,Other Supplies & Services,Just Checking Ltd,8355, 07-Apr-2017
2242,Revenue,CAHD,LSE - Schools Priority Support,Consultants Fees,Maggie Cook Ltd,800, 07-Apr-2017
2276,Revenue,CAHD,Younger MH non-res purchasing,Other Small Contracts,Maples Community Care Limited,718.52, 07-Apr-2017
2277,Revenue,CAHD,Younger MH non-res purchasing,Supported Living,Maples Community Care Limited,1143.56, 07-Apr-2017
2278,Revenue,CAHD,Home Care - Elderly - South,Supported Living,Maples Community Care Limited,3197.92, 07-Apr-2017
2279,Revenue,CAHD,Younger MH non-res purchasing,Supported Living,Maples Community Care Limited,1185.73, 07-Apr-2017
2280,Revenue,CAHD,Home Care - Elderly - South,Supported Living,Maples Community Care Limited,971.52, 07-Apr-2017
2282,Revenue,CAHD,Younger MH non-res purchasing,Supported Living,Maples Community Care Limited,1194.16, 07-Apr-2017
2284,Revenue,CAHD,Younger MH non-res purchasing,Supported Living,Maples Community Care Limited,728.64, 07-Apr-2017
2291,Revenue,CAHD,Younger MH non-res purchasing,Other Small Contracts,Maples Community Care Limited,566.72, 07-Apr-2017
2293,Revenue,CAHD,Younger MH non-res purchasing,Other Small Contracts,Maples Community Care Limited,556.6, 07-Apr-2017
2340,Revenue,CAHD,ICES / NRS Contract,Daily Living Equipment,Medequip Assistive Technology Limited,107678.07, 07-Apr-2017
2345,Revenue,CAHD,CSC - Section 17 0-25,Preventative Assistance,Meridian Business Support Limited,775.14, 07-Apr-2017
2662,Revenue,CAHD,Stibbs and Fairburn,Respite Planned - Residential,Milestones Trust,506.22, 07-Apr-2017
2668,Revenue,CAHD,Mental Capacity Act / DOLS,Legal Fees,Mind Professionals Ltd,942.5, 07-Apr-2017
2680,Revenue,CAHD,Home Care - Elderly - South,Supported Living,Moving On,846.4, 07-Apr-2017
2681,Revenue,CAHD,Home Care - Elderly - South,Supported Living,Moving On,1104, 07-Apr-2017
2682,Revenue,CAHD,Home Care - Elderly - South,Supported Living,Moving On,1104, 07-Apr-2017
2684,Revenue,CAHD,Carer's Grant - MH Eld,Supported Living,Moving On,1380, 07-Apr-2017
2691,Revenue,CAHD,Mental Capacity Act / DOLS,Legal Fees,Mr Alec Small,450, 07-Apr-2017
2702,Revenue,CAHD,Social Lettings Agency,Fees - General,Individual,10.53, 07-Apr-2017
2703,Revenue,CAHD,Social Lettings Agency,Other Supplies & Services,Individual,595.11, 07-Apr-2017
2721,Revenue,CAHD,CSC - Legal Fees,Legal Fees,Mr Stuart Fuller,500, 07-Apr-2017
2725,Revenue,CAHD,CSC - Legal Fees,Legal Fees,Mr William Heckscher,500, 07-Apr-2017
2764,Revenue,CAHD,Social Lettings Agency,Fees - General,Individual,10.53, 07-Apr-2017
2765,Revenue,CAHD,Social Lettings Agency,Other Supplies & Services,Individual,595.11, 07-Apr-2017
2800,Revenue,CAHD,Post 16 High Needs Placements,Other Private Contractors,Natureworks Training Community Interest,1560, 07-Apr-2017
2801,Revenue,CAHD,Post 16 High Needs Placements,Other Private Contractors,Natureworks Training Community Interest,780, 07-Apr-2017
2802,Revenue,CAHD,Post 16 High Needs Placements,Other Private Contractors,Natureworks Training Community Interest,910, 07-Apr-2017
2829,Revenue,CAHD,Bed Purchasing - Southmead Hospital,Permanent Nursing,Newcross Healthcare Solutions Limited,1172.35, 07-Apr-2017
2838,Revenue,CAHD,CSC - Care Leavers Independent Living,Adults - Family Support,Next Step Care Management Limited,6936.43, 07-Apr-2017
2839,Revenue,CAHD,CSC - Care Leavers Independent Living,Adults - Family Support,Next Step Care Management Limited,2435.71, 07-Apr-2017
2844,Revenue,CAHD,Public Health Intelligence,Other Small Contracts,NHS South West CSU,5550, 07-Apr-2017
2845,Revenue,CAHD,Public Health Intelligence,Other Small Contracts,NHS South West CSU,2775, 07-Apr-2017
2955,Revenue,CAHD,CSC - OT Equipment - Children,Daily Living Equipment,Pearce Bros Mobility Centre,1897, 07-Apr-2017
2978,Revenue,CAHD,CSC - Care Leavers Independent Living,Adults - Family Support,Premier Care Management Limited,2987.48, 07-Apr-2017
2980,Revenue,CAHD,CSC - Care Leavers Independent Living,Adults - Family Support,Premier Care Management Limited,1883.1, 07-Apr-2017
2981,Revenue,CAHD,CSC - Care Leavers Independent Living,Independent Living,Premier Care Management Limited,2292, 07-Apr-2017
2983,Revenue,CAHD,CSC - Care Leavers Support Costs,Furniture & Fittings Loose,Premier Care Management Limited,1229.55, 07-Apr-2017
3013,Revenue,CAHD,CSC - Section 17 0-25,Preventative Assistance,Prestige Nursing,1701, 07-Apr-2017
3036,Revenue,CAHD,Hospital Promoting Independence Team,Care Management/Assessment Staff Pay,RIG Medical Recruit Ltd,1356.6, 07-Apr-2017
3037,Revenue,CAHD,Hospital Promoting Independence Team,Care Management/Assessment Staff Pay,RIG Medical Recruit Ltd,1355.25, 07-Apr-2017
3038,Revenue,CAHD,Hospital Promoting Independence Team,Care Management/Assessment Staff Pay,RIG Medical Recruit Ltd,654.75, 07-Apr-2017
3046,Revenue,CAHD,Home Care - Elderly - South,Other Small Contracts,Right At Home (Bristol),686, 07-Apr-2017
3047,Revenue,CAHD,Home Care - Elderly - South,Other Small Contracts,Right At Home (Bristol),1202.88, 07-Apr-2017
3048,Revenue,CAHD,Home Care - Elderly - South,Other Small Contracts,Right At Home (Bristol),686, 07-Apr-2017
3049,Revenue,CAHD,Home Care - Elderly - South,Other Small Contracts,Right At Home (Bristol),1202.88, 07-Apr-2017
3166,Revenue,CAHD,Home Care - Elderly - South,Day Care / Social Activities,Selborne Care Ltd,1014.2, 07-Apr-2017
3167,Revenue,CAHD,Home Care - Elderly - South,Other Small Contracts,Selborne Care Ltd,32.27, 07-Apr-2017
3168,Revenue,CAHD,Home Care - Elderly - South,Supported Living,Selborne Care Ltd,1134.06, 07-Apr-2017
3169,Revenue,CAHD,Home Care - Elderly - North,Day Care / Social Activities,Selborne Care Ltd,313.48, 07-Apr-2017
3170,Revenue,CAHD,Home Care - Elderly - North,Supported Living,Selborne Care Ltd,55.32, 07-Apr-2017
3275,Revenue,CAHD,Post 16 High Needs Placements,Other Private Contractors,South Gloucestershire and Stroud College,36311.08, 07-Apr-2017
3276,Revenue,CAHD,Post 16 High Needs Placements,Other Private Contractors,South Gloucestershire and Stroud College,36311.08, 07-Apr-2017
3277,Revenue,CAHD,Post 16 High Needs Placements,Other Private Contractors,South Gloucestershire and Stroud College,36311.08, 07-Apr-2017
3356,Revenue,CAHD,Younger MH non-res purchasing,Day Care / Social Activities,Supported Independence Ltd,779.76, 07-Apr-2017
3393,Revenue,CAHD,CSC - Section 17 - ART,Interpreting & Translation,The Big Word,489.72, 07-Apr-2017
3411,Revenue,CAHD,Post 16 High Needs Placements,Other Private Contractors,The Brandon Trust,737.52, 07-Apr-2017
3617,Revenue,CAHD,CSC - Care Leavers Independent Living,Independent Living,The Leaving Care Company Limited,2830, 07-Apr-2017
3618,Revenue,CAHD,CSC - Care Leavers Independent Living,Adults - Family Support,The Leaving Care Company Limited,2866, 07-Apr-2017
3620,Revenue,CAHD,CSC - Care Leavers Independent Living,Adults - Family Support,The Leaving Care Company Limited,3568, 07-Apr-2017
3621,Revenue,CAHD,CSC - Care Leavers Independent Living,Adults - Family Support,The Leaving Care Company Limited,17726, 07-Apr-2017
3759,Revenue,CAHD,Telecare,Other Supplies & Services,Tunstall Healthcare (UK) Limited,779.7, 07-Apr-2017
3799,Revenue,CAHD,Home Care - Elderly - South,Other Small Contracts,United Response,6474.28, 07-Apr-2017
3800,Revenue,CAHD,Home Care - Elderly - North,Day Care / Social Activities,United Response,1705.7, 07-Apr-2017
3801,Revenue,CAHD,Home Care - Elderly - North,Other Small Contracts,United Response,2549.33, 07-Apr-2017
3802,Revenue,CAHD,Home Care - Elderly - North,Supported Living,United Response,1936.2, 07-Apr-2017
3830,Revenue,CAHD,Mental Capacity Act / DOLS,Training Expenses,University Of The West Of England,1300, 07-Apr-2017
3848,Revenue,CAHD,Information Systems - Software,Software Support & Maintenance,Visual Metrics limited,9046.1, 07-Apr-2017
3874,Revenue,CAHD,EY Business & Financial Management,Other Public Bodies,Warmley Community Centre Pre School,1000, 07-Apr-2017
82,Revenue,CAHD,Home Care - Elderly - South,Day Care / Social Activities,3 Trees Community Support Ltd,92.2, 10-Apr-2017
83,Revenue,CAHD,Home Care - Elderly - North,Day Care / Social Activities,3 Trees Community Support Ltd,1355.34, 10-Apr-2017
84,Revenue,CAHD,Home Care - Elderly - North,Other Small Contracts,3 Trees Community Support Ltd,696.11, 10-Apr-2017
85,Revenue,CAHD,Home Care - Elderly - North,Supported Living,3 Trees Community Support Ltd,8633.25, 10-Apr-2017
117,Revenue,CAHD,Home Care - Elderly - South,Day Care / Social Activities,About Me Care and Support Limited,822.32, 10-Apr-2017
118,Revenue,CAHD,Home Care - Elderly - South,Day Care / Social Activities,About Me Care and Support Limited,1341.68, 10-Apr-2017
120,Revenue,CAHD,Home Care - Elderly - South,Day Care / Social Activities,About Me Care and Support Limited,1341.68, 10-Apr-2017
122,Revenue,CAHD,Home Care - Elderly - South,Day Care / Social Activities,About Me Care and Support Limited,1341.68, 10-Apr-2017
402,Revenue,CAHD,South Glos Users in South Glos Homes,Permanent Nursing,Blossom Fields,625, 10-Apr-2017
404,Revenue,CAHD,South Glos Users in South Glos Homes,Permanent Nursing,Blossom Fields,625, 10-Apr-2017
405,Revenue,CAHD,Bed Purchasing - North,Permanent Nursing,Blossom Fields,1860.16, 10-Apr-2017
406,Revenue,CAHD,Bed Purchasing - Southmead Hospital,Permanent Nursing,Blossom Fields,2129.2, 10-Apr-2017
407,Revenue,CAHD,Bed Purchasing - North,Permanent Nursing,Blossom Fields,2652, 10-Apr-2017
417,Revenue,CAHD,Home Care - Elderly - South,Other Small Contracts,Bluebird Care (South Gloucestershire),582.32, 10-Apr-2017
418,Revenue,CAHD,Home Care - Elderly - North,Other Small Contracts,Bluebird Care (South Gloucestershire),646.99, 10-Apr-2017
419,Revenue,CAHD,Home Care - Elderly - South,Other Small Contracts,Bluebird Care (South Gloucestershire),597.38, 10-Apr-2017
420,Revenue,CAHD,Home Care - Elderly - North,Other Small Contracts,Bluebird Care (South Gloucestershire),654.8, 10-Apr-2017
528,Revenue,CAHD,Training - Adult Services,Training Expenses,Bristol City Council,2485, 10-Apr-2017
539,Revenue,CAHD,Schools Specific Grant Income,Other Supplies & Services,Bristol Tuition Limited,5005, 10-Apr-2017
543,Revenue,CAHD,Pathway 1 - Re-Ablement Home Care,Private & Voluntary Home Care,Brunelcare,24132.35, 10-Apr-2017
594,Revenue,CAHD,CSC - Vinney Green Secure Unit,R & M by Departments,BWS Security Systems Limited,3168, 10-Apr-2017
630,Revenue,CAHD,Home Care - Elderly - South,Other Small Contracts,Care 1st Homecare,6137.95, 10-Apr-2017
631,Revenue,CAHD,Home Care - Elderly - North,Other Small Contracts,Care 1st Homecare,4366.96, 10-Apr-2017
634,Revenue,CAHD,Home Care - Elderly - South,Other Small Contracts,Care 1st Homecare,5090.67, 10-Apr-2017
635,Revenue,CAHD,Home Care - Elderly - North,Other Small Contracts,Care 1st Homecare,4287.4, 10-Apr-2017
642,Revenue,CAHD,Home Care - Elderly - South,Other Small Contracts,Care Horizons Limited,460.56, 10-Apr-2017
643,Revenue,CAHD,Home Care - Elderly - North,Day Care / Social Activities,Care Horizons Limited,556.32, 10-Apr-2017
644,Revenue,CAHD,Home Care - Elderly - North,Other Small Contracts,Care Horizons Limited,369.36, 10-Apr-2017
735,Revenue,CAHD,NHS Health Checks & Tobacco Control,Drugs & Medical Supplies,Christchurch Family Medical  Centre,685, 10-Apr-2017
777,Revenue,CAHD,Bed and Breakfast,Bed & Breakfast,Connolly & Callaghan Limited,791, 10-Apr-2017
779,Revenue,CAHD,Bed and Breakfast,Bed & Breakfast,Connolly & Callaghan Limited,476, 10-Apr-2017
780,Revenue,CAHD,Bed and Breakfast,Bed & Breakfast,Connolly & Callaghan Limited,456, 10-Apr-2017
781,Revenue,CAHD,Tenancy Start Up Scheme,Other Supplies & Services,Connolly & Callaghan Limited,616, 10-Apr-2017
782,Revenue,CAHD,Bed and Breakfast,Bed & Breakfast,Connolly & Callaghan Limited,490, 10-Apr-2017
784,Revenue,CAHD,Bed and Breakfast,Bed & Breakfast,Connolly & Callaghan Limited,476, 10-Apr-2017
786,Revenue,CAHD,Bed and Breakfast,Bed & Breakfast,Connolly & Callaghan Limited,791, 10-Apr-2017
993,Revenue,CAHD,Planning and Partnerships Procurement,Other Supplies & Services,Eldercare,3034.14, 10-Apr-2017
1015,Revenue,CAHD,Home Care - Elderly - North,Other Small Contracts,Everycare (Bristol) Ltd,2081.82, 10-Apr-2017
1016,Revenue,CAHD,Home Care - Elderly - South,Other Small Contracts,Everycare (Bristol) Ltd,2749.24, 10-Apr-2017
1017,Revenue,CAHD,Home Care - Elderly - North,Other Small Contracts,Everycare (Bristol) Ltd,2042.04, 10-Apr-2017
1139,Revenue,CAHD,Home Care - Elderly - South,Other Small Contracts,Firstpoint Homecare Ltd,941.78, 10-Apr-2017
1140,Revenue,CAHD,Home Care - Elderly - North,Day Care / Social Activities,Firstpoint Homecare Ltd,125.86, 10-Apr-2017
1141,Revenue,CAHD,Home Care - Elderly - North,Other Small Contracts,Firstpoint Homecare Ltd,52.08, 10-Apr-2017
1162,Revenue,CAHD,Home Care - Elderly - South,Day Care / Social Activities,Fourways Care Limited,77.12, 10-Apr-2017
1163,Revenue,CAHD,Home Care - Elderly - South,Other Small Contracts,Fourways Care Limited,6854.8, 10-Apr-2017
1164,Revenue,CAHD,Home Care - Elderly - North,Other Small Contracts,Fourways Care Limited,4196, 10-Apr-2017
1165,Revenue,CAHD,Younger MH non-res purchasing,Other Small Contracts,Fourways Care Limited,86.76, 10-Apr-2017
1751,Revenue,CAHD,Care Management Team - South,Other Supplies & Services,Hands Free Computing Ltd,1470, 10-Apr-2017
1862,Revenue,CAHD,Home Care - Elderly - South,Other Small Contracts,Homecare 4U,203.32, 10-Apr-2017
1863,Revenue,CAHD,Home Care - Elderly - North,Other Small Contracts,Homecare 4U,411.06, 10-Apr-2017
1864,Revenue,CAHD,Home Care - Elderly - South,Other Small Contracts,Homecare 4U,198.9, 10-Apr-2017
1865,Revenue,CAHD,Home Care - Elderly - North,Other Small Contracts,Homecare 4U,455.26, 10-Apr-2017
1889,Revenue,CAHD,Extra Care Housing,Private & Voluntary Home Care,Housing 21,40614.39, 10-Apr-2017
1891,Revenue,CAHD,Hospital Tuition,Other Private Contractors,Huntercombe Hospital Maidenhead,1650, 10-Apr-2017
1892,Revenue,CAHD,Hospital Tuition,Other Private Contractors,Huntercombe Hospital Maidenhead,2100, 10-Apr-2017
1893,Revenue,CAHD,Hospital Tuition,Other Private Contractors,Huntercombe Hospital Maidenhead,2250, 10-Apr-2017
1894,Revenue,CAHD,Hospital Tuition,Other Private Contractors,Huntercombe Hospital Maidenhead,2250, 10-Apr-2017
1895,Revenue,CAHD,Hospital Tuition,Other Private Contractors,Huntercombe Hospital Maidenhead,3000, 10-Apr-2017
1896,Revenue,CAHD,Hospital Tuition,Other Private Contractors,Huntercombe Hospital Maidenhead,2550, 10-Apr-2017
1934,Revenue,CAHD,Home Care - Elderly - South,Other Small Contracts,Kensington Community Care,1989, 10-Apr-2017
1935,Revenue,CAHD,Home Care - Elderly - North,Other Small Contracts,Kensington Community Care,5759.26, 10-Apr-2017
1992,Revenue,CAHD,NHS Health Checks & Tobacco Control,Drugs & Medical Supplies,Kingswood Health Centre,720, 10-Apr-2017
2123,Revenue,CAHD,Home Care - Elderly - South,Other Small Contracts,Lloyds TSB Commercial Finance Limited,504, 10-Apr-2017
2664,Revenue,CAHD,Home Care - Elderly - North,Day Care / Social Activities,Milestones Trust,585.62, 10-Apr-2017
2665,Revenue,CAHD,Home Care - Elderly - North,Day Care / Social Activities,Milestones Trust,585.62, 10-Apr-2017
2669,Revenue,CAHD,CSC - Legal Fees,Legal Fees,Miss Caroline Elford,3550, 10-Apr-2017
2675,Revenue,CAHD,Home Care - Elderly - South,Supported Living,Moving On,8692.88, 10-Apr-2017
2676,Revenue,CAHD,Home Care - Elderly - South,Supported Living,Moving On,8692.88, 10-Apr-2017
2679,Revenue,CAHD,Home Care - Elderly - South,Supported Living,Moving On,1012, 10-Apr-2017
2769,Revenue,CAHD,0-25  Service Staffing Team,Legal Fees,Ms Sarah Hannett,3398.33, 10-Apr-2017
2770,Revenue,CAHD,Community Support - South,Preventative Assistance,Multi-Save Carpets,688, 10-Apr-2017
2803,Revenue,CAHD,Home Care - Elderly - South,Day Care / Social Activities,Nestor T/A Allied Healthcare,42.8, 10-Apr-2017
2804,Revenue,CAHD,Home Care - Elderly - South,Other Small Contracts,Nestor T/A Allied Healthcare,2243.16, 10-Apr-2017
2805,Revenue,CAHD,Home Care - Elderly - North,Other Small Contracts,Nestor T/A Allied Healthcare,6727.88, 10-Apr-2017
2806,Revenue,CAHD,Day Care - North,Day Care / Social Activities,Nestor T/A Allied Healthcare,42.8, 10-Apr-2017
2807,Revenue,CAHD,Home Care - Elderly - South,Other Small Contracts,Nestor T/A Allied Healthcare,2095.86, 10-Apr-2017
2808,Revenue,CAHD,Home Care - Elderly - North,Other Small Contracts,Nestor T/A Allied Healthcare,6552.4, 10-Apr-2017
2815,Revenue,CAHD,Home Care - Elderly - South,Other Small Contracts,Network Health & Social Care T/A Network Ventures,3149.1, 10-Apr-2017
2816,Revenue,CAHD,Home Care - Elderly - North,Other Small Contracts,Network Health & Social Care T/A Network Ventures,4082.7, 10-Apr-2017
2828,Revenue,CAHD,MH Purchasing - Younger,Other Small Contracts,Newcross Healthcare Solutions Limited,744.13, 10-Apr-2017
2850,Revenue,CAHD,Connecting Care,Software Support & Maintenance,North Somerset Council,6276.95, 10-Apr-2017
2912,Revenue,CAHD,Breakthrough and Inclusion Work,Other Supplies & Services,P3D,4259.36, 10-Apr-2017
2977,Revenue,CAHD,CSC - Care Leavers Independent Living,Adults - Family Support,Premier Care Management Limited,12774.48, 10-Apr-2017
2979,Revenue,CAHD,CSC - Care Leavers Independent Living,Adults - Family Support,Premier Care Management Limited,15968.1, 10-Apr-2017
2986,Revenue,CAHD,Home Care - Elderly - North,Day Care / Social Activities,Premier Homecare Limited,37.44, 10-Apr-2017
2987,Revenue,CAHD,Home Care - Elderly - North,Other Small Contracts,Premier Homecare Limited,5555.16, 10-Apr-2017
2988,Revenue,CAHD,Home Care - Elderly - North,Day Care / Social Activities,Premier Homecare Limited,84.24, 10-Apr-2017
2989,Revenue,CAHD,Home Care - Elderly - North,Other Small Contracts,Premier Homecare Limited,5382, 10-Apr-2017
3010,Revenue,CAHD,Alexandra Way,Agency Staff (Operational)/PCT Pay,Prestige Nursing,1619.5, 10-Apr-2017
3011,Revenue,CAHD,Alexandra Way,Agency Staff (Operational)/PCT Pay,Prestige Nursing,688.27, 10-Apr-2017
3026,Revenue,CAHD,Home Care - Elderly - North,Supported Living,Real Life Options (Cymru),6301.12, 10-Apr-2017
3045,Revenue,CAHD,Home Care - Elderly - South,Other Small Contracts,Right At Home (Bristol),1202.88, 10-Apr-2017
3067,Revenue,CAHD,Bed Purchasing - South,Respite Emergency - Nursing,RoseVille Care Homes (Melksham) Ltd,2070.97, 10-Apr-2017
3070,Revenue,CAHD,Home Care - Elderly - South,Day Care / Social Activities,Royal Mencap Society,8099.84, 10-Apr-2017
3071,Revenue,CAHD,Home Care - Elderly - South,Day Care / Social Activities,Royal Mencap Society,8099.84, 10-Apr-2017
3072,Revenue,CAHD,Home Care - Elderly - South,Day Care / Social Activities,Royal Mencap Society,8099.84, 10-Apr-2017
3074,Revenue,CAHD,Public Health Project Funding - OffSH,Consultants Fees,Ruth Woolley Ltd,1220.81, 10-Apr-2017
3150,Revenue,CAHD,Training - Adult Services,Training Expenses,Salford Professional Development,675, 10-Apr-2017
3156,Revenue,CAHD,CSC - YOT Pooled Budget,Other Supplies & Services,SARI Limited,1800, 10-Apr-2017
3358,Revenue,CAHD,Home Care - Elderly - South,Other Small Contracts,Supported Independence Ltd,22654.08, 10-Apr-2017
3359,Revenue,CAHD,Home Care - Elderly - South,Other Small Contracts,Supported Independence Ltd,22654.08, 10-Apr-2017
3362,Revenue,CAHD,Community Support - South,Preventative Assistance,Supported Independent Living Schemes,778.92, 10-Apr-2017
3619,Revenue,CAHD,CSC - Care Leavers Independent Living,Adults - Family Support,The Leaving Care Company Limited,29203, 10-Apr-2017
3746,Revenue,CAHD,Independent Special Placements - Pre 16,Other Private Contractors,Tockington Manor School Limted,1418.5, 10-Apr-2017
3835,Revenue,CAHD,Internship Programme,Consultants Fees,Veronica Ward,500, 10-Apr-2017
4050,Revenue,CAHD,Community Support - South,Preventative Assistance,Your Say,570, 10-Apr-2017
2,Revenue,CAHD,Bed Purchasing - South,Permanent Residential,.,1069.72, 11-Apr-2017
3,Revenue,CAHD,Bed Purchasing - South,Permanent Residential,.,1056, 11-Apr-2017
4,Revenue,CAHD,South Glos Users in South Glos Homes,Permanent Nursing,.,509.45, 11-Apr-2017
5,Revenue,CAHD,Bed Purchasing - North,Permanent Nursing,.,1647.14, 11-Apr-2017
6,Revenue,CAHD,Bed Purchasing - North,Permanent Nursing,.,1626, 11-Apr-2017
7,Revenue,CAHD,Bed Purchasing - South,Permanent Nursing,.,1674.78, 11-Apr-2017
8,Revenue,CAHD,Bed Purchasing - South,Permanent Nursing,.,1626, 11-Apr-2017
9,Revenue,CAHD,South Glos Users in South Glos Homes,Permanent Nursing,.,509.45, 11-Apr-2017
10,Revenue,CAHD,Bed Purchasing - North,Permanent Nursing,.,1647.14, 11-Apr-2017
11,Revenue,CAHD,Bed Purchasing - North,Permanent Nursing,.,1626, 11-Apr-2017
12,Revenue,CAHD,South Glos Users in South Glos Homes,Permanent Nursing,.,509.45, 11-Apr-2017
13,Revenue,CAHD,Bed Purchasing - South,Permanent Nursing,.,1647.14, 11-Apr-2017
14,Revenue,CAHD,Bed Purchasing - South,Permanent Nursing,.,1626, 11-Apr-2017
15,Revenue,CAHD,South Glos Users in South Glos Homes,Permanent Nursing,.,509.45, 11-Apr-2017
16,Revenue,CAHD,Bed Purchasing - North,Permanent Nursing,.,22380.36, 11-Apr-2017
17,Revenue,CAHD,Bed Purchasing - North,Permanent Nursing,.,1912.04, 11-Apr-2017
18,Revenue,CAHD,Bed Purchasing - North,Permanent Nursing,.,1887.5, 11-Apr-2017
19,Revenue,CAHD,South Glos Users in South Glos Homes,Permanent Nursing,.,509.45, 11-Apr-2017
20,Revenue,CAHD,Bed Purchasing - North,Fees & Charges Income - General,.,2262.97, 11-Apr-2017
21,Revenue,CAHD,Bed Purchasing - North,Permanent Residential,.,2127.3, 11-Apr-2017
22,Revenue,CAHD,Bed Purchasing - North,Permanent Residential,.,2100, 11-Apr-2017
23,Revenue,CAHD,South Glos Users in South Glos Homes,Permanent Nursing,.,509.45, 11-Apr-2017
24,Revenue,CAHD,Bed Purchasing - South,Permanent Nursing,.,1810.74, 11-Apr-2017
25,Revenue,CAHD,Bed Purchasing - South,Permanent Nursing,.,1787.5, 11-Apr-2017
26,Revenue,CAHD,South Glos Users in South Glos Homes,Permanent Nursing,.,509.45, 11-Apr-2017
27,Revenue,CAHD,Bed Purchasing - North,Permanent Nursing,.,2519.84, 11-Apr-2017
28,Revenue,CAHD,Bed Purchasing - North,Permanent Nursing,.,2487.5, 11-Apr-2017
29,Revenue,CAHD,South Glos Users in South Glos Homes,Permanent Nursing,.,509.45, 11-Apr-2017
30,Revenue,CAHD,Bed Purchasing - South,Permanent Nursing,.,3235.71, 11-Apr-2017
31,Revenue,CAHD,Bed Purchasing - South,Permanent Nursing,.,1912.04, 11-Apr-2017
32,Revenue,CAHD,Bed Purchasing - South,Permanent Nursing,.,1887.5, 11-Apr-2017
33,Revenue,CAHD,Bed Purchasing - Southmead Hospital,Permanent Nursing,.,1912.04, 11-Apr-2017
34,Revenue,CAHD,Bed Purchasing - Southmead Hospital,Permanent Nursing,.,1887.5, 11-Apr-2017
35,Revenue,CAHD,South Glos Users in South Glos Homes,Permanent Nursing,.,509.45, 11-Apr-2017
36,Revenue,CAHD,South Glos Users in South Glos Homes,Permanent Nursing,.,509.45, 11-Apr-2017
37,Revenue,CAHD,Bed Purchasing - Southmead Hospital,Respite Planned - Residential,.,1884.18, 11-Apr-2017
38,Revenue,CAHD,Bed Purchasing - Southmead Hospital,Respite Planned - Residential,.,1860, 11-Apr-2017
39,Revenue,CAHD,South Glos Users in South Glos Homes,Permanent Nursing,.,1316.96, 11-Apr-2017
40,Revenue,CAHD,South Glos Users in South Glos Homes,Permanent Nursing,.,509.45, 11-Apr-2017
41,Revenue,CAHD,Bed Purchasing - North,Permanent Nursing,.,2114.28, 11-Apr-2017
42,Revenue,CAHD,Bed Purchasing - North,Permanent Nursing,.,2087.14, 11-Apr-2017
43,Revenue,CAHD,South Glos Users in South Glos Homes,Permanent Nursing,.,509.45, 11-Apr-2017
44,Revenue,CAHD,South Glos Users in South Glos Homes,Permanent Nursing,.,509.45, 11-Apr-2017
45,Revenue,CAHD,South Glos Users in South Glos Homes,Permanent Nursing,.,509.45, 11-Apr-2017
46,Revenue,CAHD,South Glos Users in South Glos Homes,Permanent Nursing,.,509.45, 11-Apr-2017
47,Revenue,CAHD,South Glos Users in South Glos Homes,Permanent Nursing,.,509.45, 11-Apr-2017
48,Revenue,CAHD,South Glos Users in South Glos Homes,Permanent Nursing,.,509.45, 11-Apr-2017
49,Revenue,CAHD,South Glos Users in South Glos Homes,Permanent Nursing,.,509.45, 11-Apr-2017
50,Revenue,CAHD,South Glos Users in South Glos Homes,Permanent Nursing,.,509.45, 11-Apr-2017
51,Revenue,CAHD,South Glos Users in South Glos Homes,Permanent Nursing,.,509.45, 11-Apr-2017
52,Revenue,CAHD,South Glos Users in South Glos Homes,Permanent Nursing,.,509.45, 11-Apr-2017
53,Revenue,CAHD,South Glos Users in South Glos Homes,Permanent Nursing,.,509.45, 11-Apr-2017
54,Revenue,CAHD,South Glos Users in South Glos Homes,Permanent Nursing,.,509.45, 11-Apr-2017
55,Revenue,CAHD,South Glos Users in South Glos Homes,Permanent Nursing,.,509.45, 11-Apr-2017
56,Revenue,CAHD,South Glos Users in South Glos Homes,Permanent Nursing,.,509.45, 11-Apr-2017
57,Revenue,CAHD,South Glos Users in South Glos Homes,Permanent Nursing,.,509.45, 11-Apr-2017
58,Revenue,CAHD,South Glos Users in South Glos Homes,Permanent Nursing,.,509.45, 11-Apr-2017
59,Revenue,CAHD,South Glos Users in South Glos Homes,Permanent Nursing,.,1406.25, 11-Apr-2017
60,Revenue,CAHD,South Glos Users in South Glos Homes,Permanent Nursing,.,509.45, 11-Apr-2017
61,Revenue,CAHD,South Glos Users in South Glos Homes,Permanent Nursing,.,5290.18, 11-Apr-2017
62,Revenue,CAHD,South Glos Users in South Glos Homes,Permanent Nursing,.,509.45, 11-Apr-2017
63,Revenue,CAHD,South Glos Users in South Glos Homes,Permanent Nursing,.,2120.54, 11-Apr-2017
64,Revenue,CAHD,South Glos Users in South Glos Homes,Permanent Nursing,.,509.45, 11-Apr-2017
65,Revenue,CAHD,Bed Purchasing - North,Permanent Nursing,.,1557.48, 11-Apr-2017
66,Revenue,CAHD,Bed Purchasing - North,Permanent Nursing,.,1537.5, 11-Apr-2017
67,Revenue,CAHD,South Glos Users in South Glos Homes,Permanent Nursing,.,509.45, 11-Apr-2017
68,Revenue,CAHD,Bed Purchasing - North,Permanent Nursing,.,1626, 11-Apr-2017
69,Revenue,CAHD,Bed Purchasing - North,Permanent Nursing,.,1647.14, 11-Apr-2017
70,Revenue,CAHD,South Glos Users in South Glos Homes,Permanent Nursing,.,509.45, 11-Apr-2017
71,Revenue,CAHD,South Glos Users in South Glos Homes,Permanent Nursing,.,509.45, 11-Apr-2017
72,Revenue,CAHD,Bed Purchasing - North,Permanent Residential,.,1772.76, 11-Apr-2017
73,Revenue,CAHD,Bed Purchasing - North,Permanent Residential,.,1750, 11-Apr-2017
74,Revenue,CAHD,18-25 Year Olds,Permanent Residential,1 St Georges House,7019.1, 11-Apr-2017
75,Revenue,CAHD,18-25 Year Olds,Permanent Residential,1 St Georges House,6929.02, 11-Apr-2017
78,Revenue,CAHD,Home Care - Elderly - North,Supported Living,2430 The Quadrant,2553.64, 11-Apr-2017
79,Revenue,CAHD,Home Care - Elderly - North,Supported Living,2430 The Quadrant,2520.88, 11-Apr-2017
80,Revenue,CAHD,Home Care - Elderly - North,Supported Living,2430 The Quadrant,2553.64, 11-Apr-2017
81,Revenue,CAHD,Home Care - Elderly - North,Supported Living,2430 The Quadrant,2520.88, 11-Apr-2017
94,Revenue,CAHD,Bed Purchasing - South,Permanent Residential,5Th Floor Harlech Court,8541.34, 11-Apr-2017
95,Revenue,CAHD,Bed Purchasing - South,Permanent Residential,5Th Floor Harlech Court,8431.72, 11-Apr-2017
96,Revenue,CAHD,18-25 Year Olds,Permanent Residential,5Th Floor Harlech Court,7309.82, 11-Apr-2017
97,Revenue,CAHD,18-25 Year Olds,Permanent Residential,5Th Floor Harlech Court,7216.02, 11-Apr-2017
98,Revenue,CAHD,18-25 Year Olds,Permanent Residential,5Th Floor Harlech Court,7380, 11-Apr-2017
99,Revenue,CAHD,18-25 Year Olds,Permanent Residential,5Th Floor Harlech Court,7285.3, 11-Apr-2017
100,Revenue,CAHD,18-25 Year Olds,Permanent Residential,5Th Floor Harlech Court,6565.38, 11-Apr-2017
101,Revenue,CAHD,18-25 Year Olds,Permanent Residential,5Th Floor Harlech Court,6481.12, 11-Apr-2017
102,Revenue,CAHD,18-25 Year Olds,Respite Planned - Residential,5Th Floor Harlech Court,5201.62, 11-Apr-2017
103,Revenue,CAHD,Bed Purchasing - North,Permanent Residential,5Th Floor Harlech Court,7052.14, 11-Apr-2017
104,Revenue,CAHD,Jointly Funded H&SC Packages,Permanent Residential,5Th Floor Harlech Court,1745.08, 11-Apr-2017
105,Revenue,CAHD,Bed Purchasing - North,Permanent Residential,5Th Floor Harlech Court,6961.64, 11-Apr-2017
106,Revenue,CAHD,Jointly Funded H&SC Packages,Permanent Residential,5Th Floor Harlech Court,1722.68, 11-Apr-2017
107,Revenue,CAHD,18-25 Year Olds,Permanent Residential,5Th Floor Harlech Court,8352.02, 11-Apr-2017
108,Revenue,CAHD,18-25 Year Olds,Permanent Residential,5Th Floor Harlech Court,8244.84, 11-Apr-2017
109,Revenue,CAHD,Bed Purchasing - South,Permanent Residential,5Th Floor Harlech Court,4992.8, 11-Apr-2017
110,Revenue,CAHD,Bed Purchasing - South,Permanent Residential,5Th Floor Harlech Court,4928.72, 11-Apr-2017
111,Revenue,CAHD,Bed purchasing - S28A Under 65 - South,Permanent Residential,5Th Floor Harlech Court,5225.28, 11-Apr-2017
112,Revenue,CAHD,Bed purchasing - S28A Under 65 - South,Permanent Residential,5Th Floor Harlech Court,5158.22, 11-Apr-2017
113,Revenue,CAHD,Bed Purchasing - South,Permanent Residential,5Th Floor Harlech Court,5480.06, 11-Apr-2017
114,Revenue,CAHD,Bed Purchasing - South,Permanent Residential,5Th Floor Harlech Court,5409.74, 11-Apr-2017
115,Revenue,CAHD,Bed Purchasing - North,Permanent Nursing,ABI Development Limited,3795.92, 11-Apr-2017
116,Revenue,CAHD,Bed Purchasing - North,Permanent Nursing,ABI Development Limited,3747.2, 11-Apr-2017
172,Revenue,CAHD,Bed Purchasing - South,Permanent Nursing,Ambleside Nusing Home,1063.08, 11-Apr-2017
173,Revenue,CAHD,Bed Purchasing - South,Permanent Nursing,Ambleside Nusing Home,1049.44, 11-Apr-2017
174,Revenue,CAHD,Bed Purchasing - Southmead Hospital,Permanent Nursing,Amerind Grove Nursing Home,1285.38, 11-Apr-2017
175,Revenue,CAHD,Bed Purchasing - Southmead Hospital,Permanent Nursing,Amerind Grove Nursing Home,1268.88, 11-Apr-2017
176,Revenue,CAHD,Bed Purchasing - Southmead Hospital,Permanent Nursing,Amerind Grove Nursing Home,1131.56, 11-Apr-2017
177,Revenue,CAHD,Bed Purchasing - Southmead Hospital,Permanent Nursing,Amerind Grove Nursing Home,1117.04, 11-Apr-2017
189,Revenue,CAHD,Bed Purchasing - North,Permanent Residential,Ark Care Homes Ltd,5518.36, 11-Apr-2017
190,Revenue,CAHD,Bed Purchasing - North,Permanent Residential,Ark Care Homes Ltd,5447.54, 11-Apr-2017
192,Revenue,CAHD,Bed Purchasing - South,Permanent Nursing,Ash Grove House,3710, 11-Apr-2017
193,Revenue,CAHD,Bed Purchasing - South,Permanent Nursing,Ash Grove House,1418.2, 11-Apr-2017
194,Revenue,CAHD,Bed Purchasing - South,Permanent Nursing,Ash Grove House,1400, 11-Apr-2017
195,Revenue,CAHD,Bed Purchasing - South,Permanent Residential,Ash View House,3130.18, 11-Apr-2017
196,Revenue,CAHD,Bed Purchasing - South,Permanent Residential,Ash View House,3090, 11-Apr-2017
197,Revenue,CAHD,S117 Placements PCT,Permanent Residential,Ash View House,3620.8, 11-Apr-2017
199,Revenue,CAHD,18-25 Year Olds,Permanent Residential,Ash View House,3401.92, 11-Apr-2017
200,Revenue,CAHD,18-25 Year Olds,Permanent Residential,Ash View House,3358.26, 11-Apr-2017
201,Revenue,CAHD,Section 117 Placements MH Younger,Permanent Residential,Ash View House,2359.54, 11-Apr-2017
202,Revenue,CAHD,Jointly Funded H&SC Packages,Permanent Residential,Ash View House,1011.24, 11-Apr-2017
203,Revenue,CAHD,Section 117 Placements MH Younger,Permanent Residential,Ash View House,2329.26, 11-Apr-2017
205,Revenue,CAHD,Bed purchasing - Elderly S117 - South,Permanent Residential,Ash View House,3207.02, 11-Apr-2017
206,Revenue,CAHD,Bed purchasing - Elderly S117 - South,Permanent Residential,Ash View House,3165.86, 11-Apr-2017
207,Revenue,CAHD,Bed Purchasing - North,Permanent Residential,Aspects 2 Limited,3465.36, 11-Apr-2017
208,Revenue,CAHD,Bed Purchasing - North,Permanent Residential,Aspects 2 Limited,3420.88, 11-Apr-2017
231,Revenue,CAHD,Bed Purchasing - South,Permanent Residential,Autism Specialised Care Homes,3117.94, 11-Apr-2017
232,Revenue,CAHD,Bed Purchasing - South,Permanent Residential,Autism Specialised Care Homes,3077.92, 11-Apr-2017
236,Revenue,CAHD,Bed purchasing - S28A Under 65 - South,Permanent Residential,Badger Close Homes,4783.62, 11-Apr-2017
237,Revenue,CAHD,Bed purchasing - S28A Under 65 - South,Permanent Residential,Badger Close Homes,3035.73, 11-Apr-2017
246,Revenue,CAHD,Bed Purchasing - Southmead Hospital,Permanent Nursing,Bayview Nursing & Residential Home,1026.56, 11-Apr-2017
247,Revenue,CAHD,Bed Purchasing - Southmead Hospital,Permanent Nursing,Bayview Nursing & Residential Home,1013.38, 11-Apr-2017
249,Revenue,CAHD,South Glos Users in South Glos Homes,Permanent Nursing,Beaufort Grange Care Home,509.45, 11-Apr-2017
250,Revenue,CAHD,South Glos Users in South Glos Homes,Permanent Nursing,Beaufort Grange Care Home,509.45, 11-Apr-2017
251,Revenue,CAHD,South Glos Users in South Glos Homes,Permanent Nursing,Beaufort Grange Care Home,509.45, 11-Apr-2017
252,Revenue,CAHD,Bed Purchasing - North,Permanent Nursing,Beaufort Grange Care Home,2114.64, 11-Apr-2017
253,Revenue,CAHD,Bed Purchasing - North,Permanent Nursing,Beaufort Grange Care Home,2087.5, 11-Apr-2017
254,Revenue,CAHD,South Glos Users in South Glos Homes,Permanent Nursing,Beaufort Grange Care Home,509.45, 11-Apr-2017
255,Revenue,CAHD,South Glos Users in South Glos Homes,Permanent Nursing,Beaufort Grange Care Home,509.45, 11-Apr-2017
256,Revenue,CAHD,South Glos Users in South Glos Homes,Permanent Nursing,Beaufort Grange Care Home,509.45, 11-Apr-2017
257,Revenue,CAHD,South Glos Users in South Glos Homes,Permanent Nursing,Beaufort Grange Care Home,509.45, 11-Apr-2017
258,Revenue,CAHD,South Glos Users in South Glos Homes,Permanent Nursing,Beaufort Grange Care Home,509.45, 11-Apr-2017
259,Revenue,CAHD,South Glos Users in South Glos Homes,Permanent Nursing,Beaufort Grange Care Home,509.45, 11-Apr-2017
260,Revenue,CAHD,South Glos Users in South Glos Homes,Permanent Nursing,Beaufort Grange Care Home,509.45, 11-Apr-2017
261,Revenue,CAHD,South Glos Users in South Glos Homes,Permanent Nursing,Beaufort Grange Care Home,509.45, 11-Apr-2017
263,Revenue,CAHD,South Glos Users in South Glos Homes,Permanent Nursing,Beaufort Grange Care Home,509.45, 11-Apr-2017
264,Revenue,CAHD,South Glos Users in South Glos Homes,Permanent Nursing,Beaufort Grange Care Home,509.45, 11-Apr-2017
265,Revenue,CAHD,Bed Purchasing - Elderly S117- North,Permanent Nursing,Beaufort Grange Care Home,2234.28, 11-Apr-2017
267,Revenue,CAHD,South Glos Users in South Glos Homes,Permanent Nursing,Beaufort Grange Care Home,509.45, 11-Apr-2017
268,Revenue,CAHD,Bed Purchasing - Elderly S117- North,Permanent Nursing,Beaufort Grange Care Home,2336.96, 11-Apr-2017
269,Revenue,CAHD,Bed Purchasing - Elderly S117- North,Permanent Nursing,Beaufort Grange Care Home,2306.96, 11-Apr-2017
270,Revenue,CAHD,South Glos Users in South Glos Homes,Permanent Nursing,Beaufort Grange Care Home,509.45, 11-Apr-2017
271,Revenue,CAHD,South Glos Users in South Glos Homes,Permanent Nursing,Beaufort Grange Care Home,509.45, 11-Apr-2017
272,Revenue,CAHD,South Glos Users in South Glos Homes,Permanent Nursing,Beaufort Grange Care Home,509.45, 11-Apr-2017
273,Revenue,CAHD,South Glos Users in South Glos Homes,Permanent Nursing,Beaufort Grange Care Home,509.45, 11-Apr-2017
275,Revenue,CAHD,South Glos Users in South Glos Homes,Permanent Nursing,Beaufort Grange Care Home,509.45, 11-Apr-2017
276,Revenue,CAHD,South Glos Users in South Glos Homes,Permanent Nursing,Beaufort Grange Care Home,509.45, 11-Apr-2017
277,Revenue,CAHD,South Glos Users in South Glos Homes,Permanent Nursing,Beaufort Grange Care Home,509.45, 11-Apr-2017
278,Revenue,CAHD,Bed Purchasing - North,Permanent Residential,Beaufort House,1221.68, 11-Apr-2017
279,Revenue,CAHD,Bed Purchasing - North,Permanent Residential,Beaufort House,1206, 11-Apr-2017
281,Revenue,CAHD,Bed Purchasing - North,Permanent Residential,Beaufort House,1232.14, 11-Apr-2017
282,Revenue,CAHD,Bed Purchasing - South,Permanent Residential,Beaufort House,1215.6, 11-Apr-2017
283,Revenue,CAHD,Bed Purchasing - South,Permanent Residential,Beaufort House,1200, 11-Apr-2017
284,Revenue,CAHD,Bed Purchasing - South,Permanent Residential,Beaufort House,1169.7, 11-Apr-2017
285,Revenue,CAHD,Bed Purchasing - South,Permanent Residential,Beaufort House,1154.68, 11-Apr-2017
286,Revenue,CAHD,Bed Purchasing - Southmead Hospital,Permanent Residential,Beaufort House,1232.14, 11-Apr-2017
287,Revenue,CAHD,Bed Purchasing - Southmead Hospital,Permanent Residential,Beaufort House,1216.32, 11-Apr-2017
288,Revenue,CAHD,Bed Purchasing - North,Permanent Residential,Beaufort House,1203.9, 11-Apr-2017
289,Revenue,CAHD,Bed Purchasing - North,Permanent Residential,Beaufort House,1188.46, 11-Apr-2017
290,Revenue,CAHD,Bed Purchasing - North,Permanent Residential,Beaufort House,1203.9, 11-Apr-2017
291,Revenue,CAHD,Bed Purchasing - North,Permanent Residential,Beaufort House,1188.46, 11-Apr-2017
292,Revenue,CAHD,Bed Purchasing - North,Permanent Residential,Beaufort House,1293.74, 11-Apr-2017
294,Revenue,CAHD,Bed Purchasing - Southmead Hospital,Permanent Residential,Beaufort House,1232.14, 11-Apr-2017
295,Revenue,CAHD,Bed Purchasing - Southmead Hospital,Permanent Residential,Beaufort House,1216.32, 11-Apr-2017
296,Revenue,CAHD,Bed Purchasing - South,Respite Planned - Residential,Beaufort House,2600, 11-Apr-2017
297,Revenue,CAHD,Bed Purchasing - South,Respite Planned - Residential,Beaufort House,1764.29, 11-Apr-2017
298,Revenue,CAHD,Section 117 Placements MH Younger,Permanent Residential,Bedrock Lodge,991.38, 11-Apr-2017
299,Revenue,CAHD,Section 117 Placements MH Younger,Permanent Residential,Bedrock Lodge,962.5, 11-Apr-2017
300,Revenue,CAHD,South Glos Users in South Glos Homes,Permanent Nursing,Beech House,509.45, 11-Apr-2017
301,Revenue,CAHD,Bed Purchasing - South,Permanent Residential,Beech House,1418.2, 11-Apr-2017
302,Revenue,CAHD,Bed Purchasing - South,Permanent Residential,Beech House,1400, 11-Apr-2017
303,Revenue,CAHD,South Glos Users in South Glos Homes,Permanent Nursing,Beech House,509.45, 11-Apr-2017
304,Revenue,CAHD,Bed Purchasing - North,Permanent Nursing,Beech House,1354.88, 11-Apr-2017
305,Revenue,CAHD,Bed Purchasing - North,Permanent Nursing,Beech House,1337.5, 11-Apr-2017
306,Revenue,CAHD,South Glos Users in South Glos Homes,Permanent Nursing,Beech House,509.45, 11-Apr-2017
307,Revenue,CAHD,South Glos Users in South Glos Homes,Permanent Nursing,Beech House,509.45, 11-Apr-2017
308,Revenue,CAHD,South Glos Users in South Glos Homes,Permanent Nursing,Beech House,509.45, 11-Apr-2017
309,Revenue,CAHD,Bed Purchasing - North,Permanent Nursing,Beech House,1515.52, 11-Apr-2017
310,Revenue,CAHD,Bed Purchasing - North,Permanent Nursing,Beech House,1496.08, 11-Apr-2017
311,Revenue,CAHD,South Glos Users in South Glos Homes,Permanent Nursing,Beech House,509.45, 11-Apr-2017
312,Revenue,CAHD,Bed Purchasing - North,Permanent Residential,Beech House,1418.2, 11-Apr-2017
314,Revenue,CAHD,South Glos Users in South Glos Homes,Permanent Nursing,Beech House,509.45, 11-Apr-2017
315,Revenue,CAHD,South Glos Users in South Glos Homes,Permanent Nursing,Beech House,509.45, 11-Apr-2017
316,Revenue,CAHD,South Glos Users in South Glos Homes,Permanent Nursing,Beech House,509.45, 11-Apr-2017
318,Revenue,CAHD,South Glos Users in South Glos Homes,Permanent Nursing,Beech House,509.45, 11-Apr-2017
319,Revenue,CAHD,South Glos Users in South Glos Homes,Permanent Nursing,Beech House,509.45, 11-Apr-2017
320,Revenue,CAHD,South Glos Users in South Glos Homes,Permanent Nursing,Beech House,509.45, 11-Apr-2017
321,Revenue,CAHD,Bed Purchasing - North,Permanent Residential,Beech House,1722.1, 11-Apr-2017
322,Revenue,CAHD,Bed Purchasing - North,Permanent Residential,Beech House,1700, 11-Apr-2017
323,Revenue,CAHD,South Glos Users in South Glos Homes,Permanent Nursing,Beech House,1986.61, 11-Apr-2017
324,Revenue,CAHD,South Glos Users in South Glos Homes,Permanent Nursing,Beech House,509.45, 11-Apr-2017
325,Revenue,CAHD,South Glos Users in South Glos Homes,Permanent Nursing,Beech House,509.45, 11-Apr-2017
326,Revenue,CAHD,Bed Purchasing - North,Permanent Nursing,Beech House,1584.84, 11-Apr-2017
327,Revenue,CAHD,Bed Purchasing - North,Permanent Nursing,Beech House,1564.5, 11-Apr-2017
328,Revenue,CAHD,South Glos Users in South Glos Homes,Permanent Nursing,Beech House,509.45, 11-Apr-2017
329,Revenue,CAHD,South Glos Users in South Glos Homes,Permanent Nursing,Beech House,509.45, 11-Apr-2017
330,Revenue,CAHD,South Glos Users in South Glos Homes,Permanent Nursing,Beech House,509.45, 11-Apr-2017
331,Revenue,CAHD,South Glos Users in South Glos Homes,Permanent Nursing,Beech House,509.45, 11-Apr-2017
332,Revenue,CAHD,South Glos Users in South Glos Homes,Permanent Nursing,Beech House,509.45, 11-Apr-2017
333,Revenue,CAHD,South Glos Users in South Glos Homes,Permanent Nursing,Beech House,2901.79, 11-Apr-2017
334,Revenue,CAHD,South Glos Users in South Glos Homes,Permanent Nursing,Beech House,509.45, 11-Apr-2017
336,Revenue,CAHD,South Glos Users in South Glos Homes,Permanent Nursing,Beech House,509.45, 11-Apr-2017
342,Revenue,CAHD,Bed Purchasing - Southmead Hospital,Permanent Nursing,Blossom Field,3235.71, 11-Apr-2017
343,Revenue,CAHD,Bed Purchasing - Southmead Hospital,Permanent Nursing,Blossom Field,1912.04, 11-Apr-2017
344,Revenue,CAHD,Bed Purchasing - Southmead Hospital,Permanent Nursing,Blossom Field,1887.5, 11-Apr-2017
345,Revenue,CAHD,Bed Purchasing - Southmead Hospital,Permanent Nursing,Blossom Field,2723.57, 11-Apr-2017
346,Revenue,CAHD,Bed Purchasing - Southmead Hospital,Permanent Nursing,Blossom Field,674.11, 11-Apr-2017
347,Revenue,CAHD,Bed Purchasing - North,Permanent Nursing,Blossom Field,1761.96, 11-Apr-2017
348,Revenue,CAHD,Bed Purchasing - North,Permanent Nursing,Blossom Field,1739.34, 11-Apr-2017
349,Revenue,CAHD,South Glos Users in South Glos Homes,Permanent Nursing,Blossom Field,509.45, 11-Apr-2017
350,Revenue,CAHD,Bed Purchasing - Elderly S117- North,Permanent Nursing,Blossom Field,1747.16, 11-Apr-2017
351,Revenue,CAHD,Bed Purchasing - Elderly S117- North,Permanent Nursing,Blossom Field,1769.88, 11-Apr-2017
352,Revenue,CAHD,South Glos Users in South Glos Homes,Permanent Nursing,Blossom Field,509.45, 11-Apr-2017
354,Revenue,CAHD,Bed Purchasing - Southmead Hospital,Permanent Nursing,Blossom Field,2431.2, 11-Apr-2017
355,Revenue,CAHD,Bed Purchasing - Southmead Hospital,Permanent Nursing,Blossom Field,2400, 11-Apr-2017
356,Revenue,CAHD,South Glos Users in South Glos Homes,Permanent Nursing,Blossom Field,509.45, 11-Apr-2017
357,Revenue,CAHD,Bed Purchasing - North,Permanent Nursing,Blossom Field,1905.7, 11-Apr-2017
358,Revenue,CAHD,Bed Purchasing - North,Permanent Nursing,Blossom Field,1881.24, 11-Apr-2017
359,Revenue,CAHD,South Glos Users in South Glos Homes,Permanent Nursing,Blossom Field,509.45, 11-Apr-2017
360,Revenue,CAHD,South Glos Users in South Glos Homes,Permanent Nursing,Blossom Field,509.45, 11-Apr-2017
361,Revenue,CAHD,South Glos Users in South Glos Homes,Permanent Nursing,Blossom Field,509.45, 11-Apr-2017
362,Revenue,CAHD,South Glos Users in South Glos Homes,Permanent Nursing,Blossom Field,509.45, 11-Apr-2017
363,Revenue,CAHD,South Glos Users in South Glos Homes,Permanent Nursing,Blossom Field,509.45, 11-Apr-2017
364,Revenue,CAHD,South Glos Users in South Glos Homes,Permanent Nursing,Blossom Field,1696.43, 11-Apr-2017
365,Revenue,CAHD,South Glos Users in South Glos Homes,Permanent Nursing,Blossom Field,509.45, 11-Apr-2017
367,Revenue,CAHD,South Glos Users in South Glos Homes,Permanent Nursing,Blossom Field,509.45, 11-Apr-2017
368,Revenue,CAHD,Bed purchasing - Elderly S117 - South,Permanent Nursing,Blossom Field,2234.28, 11-Apr-2017
369,Revenue,CAHD,Bed purchasing - Elderly S117 - South,Permanent Nursing,Blossom Field,2205.6, 11-Apr-2017
371,Revenue,CAHD,South Glos Users in South Glos Homes,Permanent Nursing,Blossom Field,509.45, 11-Apr-2017
372,Revenue,CAHD,Bed Purchasing - South,Permanent Nursing,Blossom Field,2114.64, 11-Apr-2017
373,Revenue,CAHD,Bed Purchasing - South,Permanent Nursing,Blossom Field,2087.5, 11-Apr-2017
374,Revenue,CAHD,South Glos Users in South Glos Homes,Permanent Nursing,Blossom Field,509.45, 11-Apr-2017
375,Revenue,CAHD,South Glos Users in South Glos Homes,Permanent Nursing,Blossom Field,509.45, 11-Apr-2017
376,Revenue,CAHD,Bed Purchasing - Southmead Hospital,Permanent Nursing,Blossom Field,5662.5, 11-Apr-2017
377,Revenue,CAHD,Bed Purchasing - Southmead Hospital,Permanent Nursing,Blossom Field,1912.04, 11-Apr-2017
378,Revenue,CAHD,Bed Purchasing - Southmead Hospital,Permanent Nursing,Blossom Field,1887.5, 11-Apr-2017
379,Revenue,CAHD,South Glos Users in South Glos Homes,Permanent Nursing,Blossom Field,915.18, 11-Apr-2017
380,Revenue,CAHD,South Glos Users in South Glos Homes,Permanent Nursing,Blossom Field,509.45, 11-Apr-2017
381,Revenue,CAHD,Bed Purchasing - Southmead Hospital,Fees & Charges Income - General,Blossom Field,765.53, 11-Apr-2017
382,Revenue,CAHD,Bed Purchasing - Southmead Hospital,Permanent Nursing,Blossom Field,3060, 11-Apr-2017
383,Revenue,CAHD,Bed Purchasing - Southmead Hospital,Permanent Nursing,Blossom Field,2431.2, 11-Apr-2017
384,Revenue,CAHD,Bed Purchasing - Southmead Hospital,Permanent Nursing,Blossom Field,2400, 11-Apr-2017
385,Revenue,CAHD,South Glos Users in South Glos Homes,Permanent Nursing,Blossom Field,509.45, 11-Apr-2017
386,Revenue,CAHD,South Glos Users in South Glos Homes,Permanent Nursing,Blossom Field,509.45, 11-Apr-2017
387,Revenue,CAHD,South Glos Users in South Glos Homes,Permanent Nursing,Blossom Field,1205.36, 11-Apr-2017
388,Revenue,CAHD,South Glos Users in South Glos Homes,Permanent Nursing,Blossom Field,509.45, 11-Apr-2017
390,Revenue,CAHD,South Glos Users in South Glos Homes,Permanent Nursing,Blossom Field,509.45, 11-Apr-2017
391,Revenue,CAHD,South Glos Users in South Glos Homes,Permanent Nursing,Blossom Field,1250, 11-Apr-2017
392,Revenue,CAHD,South Glos Users in South Glos Homes,Permanent Nursing,Blossom Field,509.45, 11-Apr-2017
394,Revenue,CAHD,Bed Purchasing - North,Permanent Nursing,Blossom Field,1887.5, 11-Apr-2017
395,Revenue,CAHD,Bed Purchasing - North,Permanent Nursing,Blossom Field,1769.88, 11-Apr-2017
396,Revenue,CAHD,Bed Purchasing - North,Permanent Nursing,Blossom Field,1747.16, 11-Apr-2017
397,Revenue,CAHD,South Glos Users in South Glos Homes,Permanent Nursing,Blossom Field,509.45, 11-Apr-2017
398,Revenue,CAHD,Bed Purchasing - North,Permanent Nursing,Blossom Field,1741.78, 11-Apr-2017
399,Revenue,CAHD,Bed Purchasing - North,Permanent Nursing,Blossom Field,1719.42, 11-Apr-2017
401,Revenue,CAHD,South Glos Users in South Glos Homes,Permanent Nursing,Blossom Field,509.45, 11-Apr-2017
427,Revenue,CAHD,Bed purchasing - S28A Under 65 - South,Permanent Residential,Bradbury House,2427.08, 11-Apr-2017
428,Revenue,CAHD,Bed purchasing - S28A Under 65 - South,Permanent Residential,Bradbury House,2395.94, 11-Apr-2017
430,Revenue,CAHD,Bed Purchasing - South,Permanent Residential,Bradbury House,4133.86, 11-Apr-2017
431,Revenue,CAHD,Bed purchasing - S28A Under 65 - South,Permanent Residential,Bradbury House,3576.42, 11-Apr-2017
432,Revenue,CAHD,Bed purchasing - S28A Under 65 - South,Permanent Residential,Bradbury House,3530.52, 11-Apr-2017
433,Revenue,CAHD,18-25 Year Olds,Permanent Residential,Bradbury House,4752.04, 11-Apr-2017
434,Revenue,CAHD,18-25 Year Olds,Permanent Residential,Bradbury House,4691.06, 11-Apr-2017
435,Revenue,CAHD,Bed purchasing - Elderly S117 - South,Permanent Residential,Bradbury House,4286.28, 11-Apr-2017
436,Revenue,CAHD,Jointly Funded H&SC Packages,Permanent Residential,Bradbury House,1592.48, 11-Apr-2017
437,Revenue,CAHD,Bed purchasing - Elderly S117 - South,Permanent Residential,Bradbury House,4231.28, 11-Apr-2017
438,Revenue,CAHD,Jointly Funded H&SC Packages,Permanent Residential,Bradbury House,1572.04, 11-Apr-2017
440,Revenue,CAHD,Jointly Funded H&SC Packages,Permanent Residential,Bradbury House,4058.82, 11-Apr-2017
456,Revenue,CAHD,South Glos Users in South Glos Homes,Permanent Nursing,Brandon Trust,509.45, 11-Apr-2017
457,Revenue,CAHD,South Glos Users in South Glos Homes,Permanent Nursing,Brandon Trust,509.45, 11-Apr-2017
458,Revenue,CAHD,Bed Purchasing - South,Permanent Nursing,Brandon Trust,2768.88, 11-Apr-2017
459,Revenue,CAHD,Bed Purchasing - South,Permanent Nursing,Brandon Trust,2804.88, 11-Apr-2017
460,Revenue,CAHD,South Glos Users in South Glos Homes,Permanent Nursing,Brandon Trust,509.45, 11-Apr-2017
461,Revenue,CAHD,Bed Purchasing - South,Permanent Residential,Brandon Trust,5494.4, 11-Apr-2017
462,Revenue,CAHD,Bed Purchasing - South,Permanent Residential,Brandon Trust,5423.88, 11-Apr-2017
463,Revenue,CAHD,Bed Purchasing - Southmead Hospital,Permanent Nursing,Brandon Trust,2779.54, 11-Apr-2017
464,Revenue,CAHD,Bed Purchasing - Southmead Hospital,Permanent Nursing,Brandon Trust,2743.86, 11-Apr-2017
465,Revenue,CAHD,South Glos Users in South Glos Homes,Permanent Nursing,Brandon Trust,509.45, 11-Apr-2017
466,Revenue,CAHD,Bed Purchasing - South,Permanent Nursing,Brandon Trust,2779.54, 11-Apr-2017
467,Revenue,CAHD,Bed Purchasing - South,Permanent Nursing,Brandon Trust,2743.86, 11-Apr-2017
468,Revenue,CAHD,South Glos Users in South Glos Homes,Permanent Nursing,Brandon Trust,509.45, 11-Apr-2017
469,Revenue,CAHD,Bed purchasing - S28A Under 65 - South,Permanent Nursing,Brandon Trust,2946.78, 11-Apr-2017
470,Revenue,CAHD,Bed purchasing - S28A Under 65 - South,Permanent Nursing,Brandon Trust,2908.96, 11-Apr-2017
471,Revenue,CAHD,South Glos Users in South Glos Homes,Permanent Nursing,Brandon Trust,509.45, 11-Apr-2017
472,Revenue,CAHD,Bed purchasing - S28A Under 65 - South,Permanent Residential,Brandon Trust,2894.62, 11-Apr-2017
473,Revenue,CAHD,Bed purchasing - S28A Under 65 - South,Permanent Residential,Brandon Trust,2857.48, 11-Apr-2017
474,Revenue,CAHD,Bed Purchasing - LD S28A- Over 65- South,Permanent Nursing,Brandon Trust,2946.78, 11-Apr-2017
475,Revenue,CAHD,Bed Purchasing - LD S28A- Over 65- South,Permanent Nursing,Brandon Trust,2908.96, 11-Apr-2017
476,Revenue,CAHD,South Glos Users in South Glos Homes,Permanent Nursing,Brandon Trust,509.45, 11-Apr-2017
477,Revenue,CAHD,Bed Purchasing - LD S28A- Over 65- South,Permanent Nursing,Brandon Trust,2779.54, 11-Apr-2017
478,Revenue,CAHD,Bed Purchasing - LD S28A- Over 65- South,Permanent Nursing,Brandon Trust,2743.86, 11-Apr-2017
479,Revenue,CAHD,South Glos Users in South Glos Homes,Permanent Nursing,Brandon Trust,509.45, 11-Apr-2017
480,Revenue,CAHD,Bed Purchasing - South,Permanent Residential,Brandon Trust,1878.44, 11-Apr-2017
481,Revenue,CAHD,Bed Purchasing - South,Permanent Residential,Brandon Trust,1854.34, 11-Apr-2017
482,Revenue,CAHD,Bed purchasing - S28A Under 65 - South,Permanent Residential,Brandon Trust,2835.24, 11-Apr-2017
483,Revenue,CAHD,Bed purchasing - S28A Under 65 - South,Permanent Residential,Brandon Trust,2798.86, 11-Apr-2017
484,Revenue,CAHD,Bed purchasing - S28A Under 65 - South,Permanent Residential,Brandon Trust,2894.52, 11-Apr-2017
485,Revenue,CAHD,Bed purchasing - S28A Under 65 - South,Permanent Residential,Brandon Trust,2857.38, 11-Apr-2017
486,Revenue,CAHD,Bed Purchasing - North,Permanent Nursing,Brandon Trust,2776.66, 11-Apr-2017
487,Revenue,CAHD,Bed Purchasing - North,Permanent Nursing,Brandon Trust,2741.02, 11-Apr-2017
488,Revenue,CAHD,South Glos Users in South Glos Homes,Permanent Nursing,Brandon Trust,509.45, 11-Apr-2017
489,Revenue,CAHD,Bed purchasing - S28A Under 65 - South,Permanent Nursing,Brandon Trust,2946.78, 11-Apr-2017
490,Revenue,CAHD,Bed purchasing - S28A Under 65 - South,Permanent Nursing,Brandon Trust,2908.96, 11-Apr-2017
491,Revenue,CAHD,South Glos Users in South Glos Homes,Permanent Nursing,Brandon Trust,509.45, 11-Apr-2017
492,Revenue,CAHD,Bed purchasing -S28A  Under 65 - North,Permanent Nursing,Brandon Trust,2633.52, 11-Apr-2017
493,Revenue,CAHD,Bed purchasing -S28A  Under 65 - North,Permanent Nursing,Brandon Trust,2477.21, 11-Apr-2017
494,Revenue,CAHD,Bed purchasing - S28A Under 65 - South,Permanent Residential,Brandon Trust,2857.38, 11-Apr-2017
495,Revenue,CAHD,Bed purchasing - S28A Under 65 - South,Permanent Residential,Brandon Trust,2894.52, 11-Apr-2017
496,Revenue,CAHD,Bed Purchasing - LD S28A- Over 65- South,Permanent Residential,Brandon Trust,2721.28, 11-Apr-2017
500,Revenue,CAHD,Bed Purchasing - Southmead Hospital,Permanent Residential,Bridge House Care Home,1211.54, 11-Apr-2017
501,Revenue,CAHD,Bed Purchasing - Southmead Hospital,Permanent Residential,Bridge House Care Home,1196, 11-Apr-2017
502,Revenue,CAHD,Bed Purchasing - North,Permanent Residential,Bridge House Care Home,1191.06, 11-Apr-2017
503,Revenue,CAHD,Bed Purchasing - North,Permanent Residential,Bridge House Care Home,1175.78, 11-Apr-2017
504,Revenue,CAHD,Home Care - Elderly - North,Day Care / Social Activities,Bridge House Care Home,523.36, 11-Apr-2017
505,Revenue,CAHD,Bed Purchasing - South,Respite Planned - Residential,Bridge House Care Home,598, 11-Apr-2017
506,Revenue,CAHD,Bed Purchasing - North,Permanent Residential,Bridge House Care Home,1095.9, 11-Apr-2017
507,Revenue,CAHD,Bed Purchasing - North,Permanent Residential,Bridge House Care Home,1081.84, 11-Apr-2017
508,Revenue,CAHD,Bed Purchasing - North,Permanent Residential,Bridge House Care Home,1152.02, 11-Apr-2017
509,Revenue,CAHD,Bed Purchasing - North,Permanent Residential,Bridge House Care Home,1137.24, 11-Apr-2017
510,Revenue,CAHD,Bed Purchasing - North,Permanent Residential,Bridgwater Court,5162.48, 11-Apr-2017
511,Revenue,CAHD,Bed Purchasing - North,Permanent Residential,Bridgwater Court,5096.22, 11-Apr-2017
512,Revenue,CAHD,Bed Purchasing - South,Permanent Residential,Brightbow,34702.81, 11-Apr-2017
513,Revenue,CAHD,Bed Purchasing - South,Permanent Residential,Brightbow,33684.04, 11-Apr-2017
514,Revenue,CAHD,Bed Purchasing - Elderly MH - South,Permanent Residential,Brightbow,33192.64, 11-Apr-2017
515,Revenue,CAHD,Bed Purchasing - South,Permanent Residential,Brightbow,33183.5, 11-Apr-2017
516,Revenue,CAHD,Bed Purchasing - South,Permanent Residential,Brightbow,1344.6, 11-Apr-2017
517,Revenue,CAHD,Bed Purchasing - South,Permanent Residential,Brightbow,1327.34, 11-Apr-2017
518,Revenue,CAHD,Bed Purchasing - South,Fees & Charges Income - General,Brightbow,6516.33, 11-Apr-2017
519,Revenue,CAHD,Bed Purchasing - Elderly MH - South,Fees & Charges Income - General,Brightbow,6300.64, 11-Apr-2017
521,Revenue,CAHD,Bed Purchasing - South,Fees & Charges Income - General,Brightbow,6657.81, 11-Apr-2017
522,Revenue,CAHD,MH Purchasing - Younger,Permanent Residential,Brightbow,1103.72, 11-Apr-2017
523,Revenue,CAHD,MH Purchasing - Younger,Permanent Residential,Brightbow,1089.56, 11-Apr-2017
529,Revenue,CAHD,Home Care - Elderly - North,Day Care / Social Activities,Bristol Community Links North,1229.4, 11-Apr-2017
530,Revenue,CAHD,Home Care - Elderly - North,Day Care / Social Activities,Bristol Community Links North,1245.4, 11-Apr-2017
589,Revenue,CAHD,Bed Purchasing - North,Permanent Nursing,Bupa Care Services  Bridge House,881.32, 11-Apr-2017
590,Revenue,CAHD,Jointly Funded H&SC Packages,Permanent Nursing,Bupa Care Services  Bridge House,2200.24, 11-Apr-2017
591,Revenue,CAHD,Bed Purchasing - North,Permanent Nursing,Bupa Care Services  Bridge House,870, 11-Apr-2017
592,Revenue,CAHD,Jointly Funded H&SC Packages,Permanent Nursing,Bupa Care Services  Bridge House,2172.02, 11-Apr-2017
593,Revenue,CAHD,South Glos Users in all other LA Homes,Permanent Nursing,Bupa Care Services  Bridge House,700.91, 11-Apr-2017
625,Revenue,CAHD,Bed Purchasing - Elderly S117- North,Permanent Residential,Canjayor,1211.2, 11-Apr-2017
626,Revenue,CAHD,Bed Purchasing - Elderly S117- North,Permanent Residential,Canjayor,1195.66, 11-Apr-2017
673,Revenue,CAHD,Home Care - Elderly - South,Other Small Contracts,Caring Comes 1st Ltd,785.46, 11-Apr-2017
694,Revenue,CAHD,Home Care - Elderly - North,Day Care / Social Activities,Causeway House,1456.6, 11-Apr-2017
695,Revenue,CAHD,Home Care - Elderly - South,Day Care / Social Activities,Causeway House,2485.2, 11-Apr-2017
696,Revenue,CAHD,Home Care - Elderly - South,Day Care / Social Activities,Causeway House,2485.2, 11-Apr-2017
697,Revenue,CAHD,Home Care - Elderly - North,Day Care / Social Activities,Causeway House,1075.68, 11-Apr-2017
699,Revenue,CAHD,Turnberries,Day Care / Social Activities,Causeway House,1841, 11-Apr-2017
700,Revenue,CAHD,Turnberries,Day Care / Social Activities,Causeway House,1841, 11-Apr-2017
701,Revenue,CAHD,Home Care - Elderly - North,Day Care / Social Activities,Causeway House,2161.72, 11-Apr-2017
702,Revenue,CAHD,Home Care - Elderly - North,Day Care / Social Activities,Causeway House,2161.72, 11-Apr-2017
703,Revenue,CAHD,Home Care - Elderly - North,Day Care / Social Activities,Causeway House,982.92, 11-Apr-2017
704,Revenue,CAHD,Home Care - Elderly - North,Day Care / Social Activities,Causeway House,982.92, 11-Apr-2017
705,Revenue,CAHD,Home Care - Elderly - North,Day Care / Social Activities,Causeway House,1526.2, 11-Apr-2017
706,Revenue,CAHD,Home Care - Elderly - North,Day Care / Social Activities,Causeway House,1526.2, 11-Apr-2017
707,Revenue,CAHD,Home Care - Elderly - North,Day Care / Social Activities,Causeway House,2273.78, 11-Apr-2017
708,Revenue,CAHD,Home Care - Elderly - North,Day Care / Social Activities,Causeway House,2273.78, 11-Apr-2017
709,Revenue,CAHD,Home Care - Elderly - North,Day Care / Social Activities,Causeway House,806.76, 11-Apr-2017
710,Revenue,CAHD,Home Care - Elderly - North,Day Care / Social Activities,Causeway House,817.2, 11-Apr-2017
711,Revenue,CAHD,Home Care - Elderly - North,Day Care / Social Activities,Causeway House,1469.8, 11-Apr-2017
712,Revenue,CAHD,Home Care - Elderly - North,Day Care / Social Activities,Causeway House,1469.8, 11-Apr-2017
714,Revenue,CAHD,Bed Purchasing - Elderly S117- North,Permanent Nursing,Cedar Care Homes Limited,1865.14, 11-Apr-2017
716,Revenue,CAHD,Bed Purchasing - North,Permanent Residential,Charlton House,943.12, 11-Apr-2017
717,Revenue,CAHD,Bed Purchasing - North,Permanent Residential,Charlton House,915.66, 11-Apr-2017
726,Revenue,CAHD,Bed purchasing -S28A  Under 65 - North,Permanent Residential,Chescombe Lodge,4678.9, 11-Apr-2017
727,Revenue,CAHD,Bed purchasing -S28A  Under 65 - North,Permanent Residential,Chescombe Lodge,4618.86, 11-Apr-2017
729,Revenue,CAHD,18-25 Year Olds,Permanent Residential,Chosen Care Ltd  Citibase Watford,3844.86, 11-Apr-2017
730,Revenue,CAHD,18-25 Year Olds,Permanent Residential,Chosen Care Ltd  Citibase Watford,3795.52, 11-Apr-2017
731,Revenue,CAHD,Bed Purchasing - Elderly S117- North,Permanent Residential,Chosen Care Ltd  Citibase Watford,2497.86, 11-Apr-2017
732,Revenue,CAHD,Jointly Funded H&SC Packages,Permanent Residential,Chosen Care Ltd  Citibase Watford,2497.84, 11-Apr-2017
733,Revenue,CAHD,18-25 Year Olds,Permanent Residential,Chosen Care Ltd  Citibase Watford,3036.72, 11-Apr-2017
734,Revenue,CAHD,18-25 Year Olds,Permanent Residential,Chosen Care Ltd  Citibase Watford,2997.74, 11-Apr-2017
736,Revenue,CAHD,Bed Purchasing - Southmead Hospital,Permanent Nursing,Churchill Property Services,1124.96, 11-Apr-2017
737,Revenue,CAHD,Bed Purchasing - Southmead Hospital,Permanent Nursing,Churchill Property Services,1110.52, 11-Apr-2017
740,Revenue,CAHD,Bed Purchasing - South,Permanent Residential,Cleeve Lodge,616.08, 11-Apr-2017
741,Revenue,CAHD,Bed Purchasing - South,Permanent Residential,Cleeve Lodge,598.14, 11-Apr-2017
743,Revenue,CAHD,Bed Purchasing - South,Permanent Residential,Cleeve Lodge,1165.64, 11-Apr-2017
744,Revenue,CAHD,Bed Purchasing - South,Permanent Residential,Cleeve Lodge,1262.92, 11-Apr-2017
745,Revenue,CAHD,Bed Purchasing - South,Permanent Residential,Cleeve Lodge,1246.72, 11-Apr-2017
746,Revenue,CAHD,Bed Purchasing - South,Permanent Residential,Cleeve Lodge,1243.38, 11-Apr-2017
749,Revenue,CAHD,Bed Purchasing - South,Permanent Residential,Clerkenleap Barn,3039.9, 11-Apr-2017
750,Revenue,CAHD,Bed Purchasing - South,Permanent Residential,Clerkenleap Barn,3000.88, 11-Apr-2017
751,Revenue,CAHD,Bed Purchasing - South,Respite Emergency - Residential,Clerkenleap Barn,3858.27, 11-Apr-2017
754,Revenue,CAHD,Bed Purchasing - South,Permanent Residential,Collingwood Residential Home,1073.98, 11-Apr-2017
755,Revenue,CAHD,Bed Purchasing - South,Permanent Residential,Collingwood Residential Home,1060.2, 11-Apr-2017
756,Revenue,CAHD,Bed Purchasing - Southmead Hospital,Permanent Residential,Collingwood Residential Home,1215.6, 11-Apr-2017
758,Revenue,CAHD,Bed Purchasing - South,Permanent Residential,Collingwood Residential Home,1164.96, 11-Apr-2017
759,Revenue,CAHD,Bed Purchasing - South,Permanent Residential,Collingwood Residential Home,1150, 11-Apr-2017
761,Revenue,CAHD,Bed Purchasing - Southmead Hospital,Permanent Residential,Collingwood Residential Home,1160, 11-Apr-2017
762,Revenue,CAHD,Bed Purchasing - South,Permanent Residential,Collingwood Residential Home,1073.98, 11-Apr-2017
763,Revenue,CAHD,Bed Purchasing - South,Permanent Residential,Collingwood Residential Home,1060.2, 11-Apr-2017
764,Revenue,CAHD,Bed Purchasing - South,Permanent Residential,Collingwood Residential Home,1008.08, 11-Apr-2017
765,Revenue,CAHD,Bed Purchasing - South,Permanent Residential,Collingwood Residential Home,978.72, 11-Apr-2017
809,Revenue,CAHD,Bed Purchasing - S28A - Over 65- North,Permanent Residential,Cream Ii Ltd  Longrun House,4439.76, 11-Apr-2017
810,Revenue,CAHD,Bed Purchasing - S28A - Over 65- North,Permanent Residential,Cream Ii Ltd  Longrun House,4382.78, 11-Apr-2017
811,Revenue,CAHD,Bed Purchasing - South,Permanent Residential,Cream Ii Ltd  Longrun House,1561.86, 11-Apr-2017
812,Revenue,CAHD,Jointly Funded H&SC Packages,Permanent Residential,Cream Ii Ltd  Longrun House,1358.96, 11-Apr-2017
813,Revenue,CAHD,Bed Purchasing - South,Permanent Residential,Cream Ii Ltd  Longrun House,1541.82, 11-Apr-2017
814,Revenue,CAHD,Jointly Funded H&SC Packages,Permanent Residential,Cream Ii Ltd  Longrun House,1341.52, 11-Apr-2017
815,Revenue,CAHD,Bed purchasing -S28A  Under 65 - North,Permanent Residential,Creedy Court,5078.3, 11-Apr-2017
816,Revenue,CAHD,Bed purchasing -S28A  Under 65 - North,Permanent Residential,Creedy Court,5013.12, 11-Apr-2017
817,Revenue,CAHD,Bed Purchasing - S28A - Over 65- North,Permanent Residential,Creedy Court,4267.02, 11-Apr-2017
818,Revenue,CAHD,Bed Purchasing - S28A - Over 65- North,Permanent Residential,Creedy Court,4212.26, 11-Apr-2017
819,Revenue,CAHD,Bed Purchasing - North,Permanent Residential,Creedy Court,6734.34, 11-Apr-2017
820,Revenue,CAHD,Bed Purchasing - North,Permanent Residential,Creedy Court,6647.92, 11-Apr-2017
826,Revenue,CAHD,Bed Purchasing - South,Permanent Residential,Daneswood,5878.92, 11-Apr-2017
827,Revenue,CAHD,Bed Purchasing - South,Permanent Residential,Daneswood,5803.48, 11-Apr-2017
828,Revenue,CAHD,Home Care - Elderly - South,Day Care / Social Activities,Daneswood,668.64, 11-Apr-2017
830,Revenue,CAHD,Bed Purchasing - North,Permanent Residential,Daneswood,4918.28, 11-Apr-2017
831,Revenue,CAHD,Bed Purchasing - North,Permanent Residential,Daneswood,4855.16, 11-Apr-2017
832,Revenue,CAHD,Bed Purchasing - Elderly S117- North,Permanent Nursing,Danshell Healthcare Group,5209.72, 11-Apr-2017
833,Revenue,CAHD,Jointly Funded H&SC Packages,Permanent Nursing,Danshell Healthcare Group,773.06, 11-Apr-2017
834,Revenue,CAHD,Bed Purchasing - Elderly S117- North,Permanent Nursing,Danshell Healthcare Group,5142.86, 11-Apr-2017
835,Revenue,CAHD,Jointly Funded H&SC Packages,Permanent Nursing,Danshell Healthcare Group,763.14, 11-Apr-2017
842,Revenue,CAHD,Home Care - Elderly - South,Supported Living,Design House,1373.14, 11-Apr-2017
844,Revenue,CAHD,Home Care - Elderly - South,Supported Living,Design House,1467.88, 11-Apr-2017
845,Revenue,CAHD,Home Care - Elderly - South,Supported Living,Design House,1449.04, 11-Apr-2017
846,Revenue,CAHD,Home Care - Elderly - South,Supported Living,Design House,1501.3, 11-Apr-2017
848,Revenue,CAHD,Home Care - Elderly - South,Supported Living,Design House,1434.44, 11-Apr-2017
849,Revenue,CAHD,Home Care - Elderly - South,Supported Living,Design House,1416.04, 11-Apr-2017
851,Revenue,CAHD,Home Care - Elderly - South,Day Care / Social Activities,Design House,608, 11-Apr-2017
852,Revenue,CAHD,Home Care - Elderly - South,Day Care / Social Activities,Design House,615.8, 11-Apr-2017
853,Revenue,CAHD,Home Care - Elderly - South,Supported Living,Design House,1264.48, 11-Apr-2017
854,Revenue,CAHD,Home Care - Elderly - South,Supported Living,Design House,1248.26, 11-Apr-2017
855,Revenue,CAHD,Home Care - Elderly - South,Supported Living,Design House,1264.48, 11-Apr-2017
856,Revenue,CAHD,Home Care - Elderly - South,Supported Living,Design House,1248.26, 11-Apr-2017
857,Revenue,CAHD,Home Care - Elderly - South,Supported Living,Design House,2039, 11-Apr-2017
858,Revenue,CAHD,Home Care - Elderly - South,Supported Living,Design House,1030, 11-Apr-2017
859,Revenue,CAHD,Home Care - Elderly - South,Supported Living,Design House,919.32, 11-Apr-2017
860,Revenue,CAHD,Home Care - Elderly - South,Supported Living,Design House,908.86, 11-Apr-2017
861,Revenue,CAHD,Home Care - Elderly - South,Supported Living,Design House,897.2, 11-Apr-2017
862,Revenue,CAHD,Home Care - Elderly - South,Supported Living,Design House,1206, 11-Apr-2017
863,Revenue,CAHD,Home Care - Elderly - South,Supported Living,Design House,1190.52, 11-Apr-2017
864,Revenue,CAHD,Home Care - Elderly - South,Supported Living,Design House,1926.04, 11-Apr-2017
866,Revenue,CAHD,Home Care - Elderly - South,Supported Living,Design House,2064.08, 11-Apr-2017
867,Revenue,CAHD,Home Care - Elderly - South,Supported Living,Design House,589.73, 11-Apr-2017
868,Revenue,CAHD,Home Care - Elderly - South,Supported Living,Design House,1463.68, 11-Apr-2017
869,Revenue,CAHD,Home Care - Elderly - South,Supported Living,Design House,1444.9, 11-Apr-2017
870,Revenue,CAHD,Home Care - Elderly - South,Day Care / Social Activities,Design House,608, 11-Apr-2017
871,Revenue,CAHD,Home Care - Elderly - South,Day Care / Social Activities,Design House,615.8, 11-Apr-2017
872,Revenue,CAHD,Home Care - Elderly - South,Day Care / Social Activities,Design House,608, 11-Apr-2017
873,Revenue,CAHD,Home Care - Elderly - South,Supported Living,Design House,1389.86, 11-Apr-2017
874,Revenue,CAHD,Home Care - Elderly - South,Supported Living,Design House,1372.02, 11-Apr-2017
875,Revenue,CAHD,Home Care - Elderly - South,Supported Living,Design House,1414.94, 11-Apr-2017
876,Revenue,CAHD,Home Care - Elderly - South,Supported Living,Design House,1396.78, 11-Apr-2017
877,Revenue,CAHD,Home Care - Elderly - South,Supported Living,Design House,1081.84, 11-Apr-2017
878,Revenue,CAHD,Home Care - Elderly - South,Supported Living,Design House,1067.96, 11-Apr-2017
879,Revenue,CAHD,Home Care - Elderly - South,Supported Living,Design House,908.86, 11-Apr-2017
880,Revenue,CAHD,Home Care - Elderly - South,Supported Living,Design House,897.2, 11-Apr-2017
881,Revenue,CAHD,Home Care - Elderly - South,Supported Living,Design House,1081.84, 11-Apr-2017
882,Revenue,CAHD,Home Care - Elderly - South,Supported Living,Design House,1067.96, 11-Apr-2017
883,Revenue,CAHD,Bed Purchasing - South,Permanent Residential,Devon & Cornwall Autistic Community Trus,4763.02, 11-Apr-2017
888,Revenue,CAHD,Bed Purchasing - South,Permanent Residential,Dimensions  Suite 2,2663.52, 11-Apr-2017
909,Revenue,CAHD,South Glos Users in South Glos Homes,Permanent Nursing,Drakes Court,509.45, 11-Apr-2017
910,Revenue,CAHD,South Glos Users in South Glos Homes,Permanent Nursing,Drakes Court,509.45, 11-Apr-2017
911,Revenue,CAHD,South Glos Users in South Glos Homes,Permanent Nursing,Drakes Court,509.45, 11-Apr-2017
912,Revenue,CAHD,Bed Purchasing - Southmead Hospital,Permanent Nursing,Drakes Court,972.64, 11-Apr-2017
913,Revenue,CAHD,Bed Purchasing - Southmead Hospital,Permanent Nursing,Drakes Court,944.32, 11-Apr-2017
914,Revenue,CAHD,South Glos Users in South Glos Homes,Permanent Nursing,Drakes Court,509.45, 11-Apr-2017
915,Revenue,CAHD,Bed Purchasing - North,Respite Planned - Nursing,Drakes Court,1367.56, 11-Apr-2017
916,Revenue,CAHD,Bed Purchasing - North,Respite Planned - Nursing,Drakes Court,1350, 11-Apr-2017
917,Revenue,CAHD,South Glos Users in South Glos Homes,Permanent Nursing,Drakes Court,509.45, 11-Apr-2017
918,Revenue,CAHD,South Glos Users in South Glos Homes,Permanent Nursing,Drakes Court,509.45, 11-Apr-2017
919,Revenue,CAHD,Bed Purchasing - North,Permanent Nursing,Drakes Court,972.64, 11-Apr-2017
920,Revenue,CAHD,Bed Purchasing - North,Permanent Nursing,Drakes Court,944.32, 11-Apr-2017
921,Revenue,CAHD,Bed Purchasing - Southmead Hospital,Permanent Nursing,Drakes Court,972.64, 11-Apr-2017
922,Revenue,CAHD,Bed Purchasing - Southmead Hospital,Permanent Nursing,Drakes Court,944.32, 11-Apr-2017
923,Revenue,CAHD,South Glos Users in South Glos Homes,Permanent Nursing,Drakes Court,509.45, 11-Apr-2017
924,Revenue,CAHD,Bed Purchasing - North,Permanent Residential,Drakes Court,943.12, 11-Apr-2017
925,Revenue,CAHD,Bed Purchasing - North,Permanent Residential,Drakes Court,915.66, 11-Apr-2017
926,Revenue,CAHD,Bed Purchasing - North,Permanent Nursing,Drakes Court,1141.66, 11-Apr-2017
927,Revenue,CAHD,Bed Purchasing - North,Permanent Nursing,Drakes Court,1127, 11-Apr-2017
928,Revenue,CAHD,South Glos Users in South Glos Homes,Permanent Nursing,Drakes Court,509.45, 11-Apr-2017
929,Revenue,CAHD,South Glos Users in South Glos Homes,Permanent Nursing,Drakes Court,509.45, 11-Apr-2017
930,Revenue,CAHD,South Glos Users in South Glos Homes,Permanent Nursing,Drakes Court,509.45, 11-Apr-2017
931,Revenue,CAHD,South Glos Users in South Glos Homes,Permanent Nursing,Drakes Court,509.45, 11-Apr-2017
935,Revenue,CAHD,Bed Purchasing - North,Permanent Residential,East Court,1324.24, 11-Apr-2017
936,Revenue,CAHD,Bed Purchasing - North,Permanent Residential,East Court,1307.24, 11-Apr-2017
938,Revenue,CAHD,Bed Purchasing - North,Permanent Residential,Edgecumbe Lodge,1130, 11-Apr-2017
939,Revenue,CAHD,Bed Purchasing - Southmead Hospital,Permanent Residential,Edgecumbe Lodge,943.12, 11-Apr-2017
940,Revenue,CAHD,Bed Purchasing - Southmead Hospital,Permanent Residential,Edgecumbe Lodge,915.66, 11-Apr-2017
943,Revenue,CAHD,Bed Purchasing - Southmead Hospital,Permanent Residential,Edgecumbe Lodge,1215.6, 11-Apr-2017
944,Revenue,CAHD,Bed Purchasing - Southmead Hospital,Permanent Residential,Edgecumbe Lodge,1200, 11-Apr-2017
945,Revenue,CAHD,Bed Purchasing - South,Permanent Residential,Edgecumbe Lodge,1078.12, 11-Apr-2017
946,Revenue,CAHD,Bed Purchasing - South,Permanent Residential,Edgecumbe Lodge,1064.28, 11-Apr-2017
947,Revenue,CAHD,Bed Purchasing - North,Permanent Residential,Edgecumbe Lodge,1160.24, 11-Apr-2017
948,Revenue,CAHD,Bed Purchasing - North,Permanent Residential,Edgecumbe Lodge,1145.36, 11-Apr-2017
949,Revenue,CAHD,Bed Purchasing - South,Permanent Residential,Edgecumbe Lodge,1078.12, 11-Apr-2017
950,Revenue,CAHD,Bed Purchasing - South,Permanent Residential,Edgecumbe Lodge,1064.28, 11-Apr-2017
952,Revenue,CAHD,Bed Purchasing - South,Permanent Residential,Edgecumbe Lodge,1215.6, 11-Apr-2017
953,Revenue,CAHD,Bed Purchasing - South,Permanent Residential,Edgecumbe Lodge,1200, 11-Apr-2017
954,Revenue,CAHD,Bed Purchasing - South,Respite Planned - Residential,Edgecumbe Lodge,1200, 11-Apr-2017
955,Revenue,CAHD,Bed Purchasing - South,Respite Planned - Residential,Edgecumbe Lodge,781.46, 11-Apr-2017
956,Revenue,CAHD,Bed Purchasing - Southmead Hospital,Permanent Residential,Edgecumbe Lodge,1215.6, 11-Apr-2017
957,Revenue,CAHD,Bed Purchasing - Southmead Hospital,Permanent Residential,Edgecumbe Lodge,1200, 11-Apr-2017
958,Revenue,CAHD,Bed Purchasing - North,Permanent Residential,Edgecumbe Lodge,1078.12, 11-Apr-2017
959,Revenue,CAHD,Bed Purchasing - North,Permanent Residential,Edgecumbe Lodge,1064.28, 11-Apr-2017
960,Revenue,CAHD,Bed Purchasing - South,Permanent Residential,Edgemont House Ltd,7621.43, 11-Apr-2017
961,Revenue,CAHD,Bed Purchasing - South,Permanent Residential,Edgemont House Ltd,1114.3, 11-Apr-2017
962,Revenue,CAHD,Bed Purchasing - South,Permanent Residential,Edgemont House Ltd,1100, 11-Apr-2017
963,Revenue,CAHD,Bed Purchasing - South,Fees & Charges Income - General,Edgemont House Ltd,1792.46, 11-Apr-2017
964,Revenue,CAHD,Bed Purchasing - Southmead Hospital,Permanent Residential,Edgemont House Ltd,939.6, 11-Apr-2017
965,Revenue,CAHD,Bed Purchasing - Southmead Hospital,Permanent Residential,Edgemont House Ltd,912.24, 11-Apr-2017
966,Revenue,CAHD,Bed Purchasing - South,Permanent Residential,Edgemont House Ltd,1094.04, 11-Apr-2017
967,Revenue,CAHD,Bed Purchasing - South,Permanent Residential,Edgemont House Ltd,1080, 11-Apr-2017
968,Revenue,CAHD,Bed Purchasing - South,Permanent Residential,Edgemont House Ltd,1006.66, 11-Apr-2017
970,Revenue,CAHD,South Glos Users in South Glos Homes,Permanent Nursing,Edgemont View Nursing Home,509.45, 11-Apr-2017
971,Revenue,CAHD,South Glos Users in South Glos Homes,Permanent Nursing,Edgemont View Nursing Home,509.45, 11-Apr-2017
972,Revenue,CAHD,South Glos Users in South Glos Homes,Permanent Nursing,Edgemont View Nursing Home,509.45, 11-Apr-2017
973,Revenue,CAHD,South Glos Users in South Glos Homes,Permanent Nursing,Edgemont View Nursing Home,509.45, 11-Apr-2017
974,Revenue,CAHD,Bed Purchasing - South,Permanent Nursing,Edgemont View Nursing Home,1458.72, 11-Apr-2017
975,Revenue,CAHD,Bed Purchasing - South,Permanent Nursing,Edgemont View Nursing Home,1440, 11-Apr-2017
976,Revenue,CAHD,South Glos Users in South Glos Homes,Permanent Nursing,Edgemont View Nursing Home,509.45, 11-Apr-2017
977,Revenue,CAHD,South Glos Users in South Glos Homes,Permanent Nursing,Edgemont View Nursing Home,509.45, 11-Apr-2017
978,Revenue,CAHD,South Glos Users in South Glos Homes,Permanent Nursing,Edgemont View Nursing Home,509.45, 11-Apr-2017
979,Revenue,CAHD,South Glos Users in South Glos Homes,Permanent Nursing,Edgemont View Nursing Home,509.45, 11-Apr-2017
980,Revenue,CAHD,South Glos Users in South Glos Homes,Permanent Nursing,Edgemont View Nursing Home,509.45, 11-Apr-2017
981,Revenue,CAHD,South Glos Users in South Glos Homes,Permanent Nursing,Edgemont View Nursing Home,509.45, 11-Apr-2017
982,Revenue,CAHD,Bed Purchasing - South,Fees & Charges Income - General,Edgemont View Nursing Home,616.16, 11-Apr-2017
983,Revenue,CAHD,Bed Purchasing - South,Permanent Nursing,Edgemont View Nursing Home,1114, 11-Apr-2017
984,Revenue,CAHD,Bed Purchasing - South,Permanent Nursing,Edgemont View Nursing Home,1091.44, 11-Apr-2017
985,Revenue,CAHD,South Glos Users in South Glos Homes,Permanent Nursing,Edgemont View Nursing Home,509.45, 11-Apr-2017
986,Revenue,CAHD,South Glos Users in South Glos Homes,Permanent Nursing,Edgemont View Nursing Home,509.45, 11-Apr-2017
987,Revenue,CAHD,South Glos Users in South Glos Homes,Permanent Nursing,Edgemont View Nursing Home,509.45, 11-Apr-2017
988,Revenue,CAHD,South Glos Users in South Glos Homes,Permanent Nursing,Edgemont View Nursing Home,509.45, 11-Apr-2017
989,Revenue,CAHD,South Glos Users in South Glos Homes,Permanent Nursing,Edgemont View Nursing Home,509.45, 11-Apr-2017
990,Revenue,CAHD,Bed Purchasing - Southmead Hospital,Permanent Nursing,Edgemont View Nursing Home,1458.72, 11-Apr-2017
991,Revenue,CAHD,Bed Purchasing - Southmead Hospital,Permanent Nursing,Edgemont View Nursing Home,1440, 11-Apr-2017
992,Revenue,CAHD,South Glos Users in South Glos Homes,Permanent Nursing,Edgemont View Nursing Home,509.45, 11-Apr-2017
1008,Revenue,CAHD,Bed Purchasing - North,Permanent Residential,Ellen House,2970.12, 11-Apr-2017
1009,Revenue,CAHD,Bed Purchasing - North,Permanent Residential,Ellen House,2932, 11-Apr-2017
1012,Revenue,CAHD,Bed Purchasing - North,Permanent Residential,Epworth House,1399.06, 11-Apr-2017
1013,Revenue,CAHD,Bed Purchasing - North,Permanent Residential,Epworth House,1381.1, 11-Apr-2017
1025,Revenue,CAHD,South Glos Users in South Glos Homes,Permanent Nursing,Fairview Court,509.45, 11-Apr-2017
1026,Revenue,CAHD,South Glos Users in South Glos Homes,Permanent Nursing,Fairview Court,509.45, 11-Apr-2017
1027,Revenue,CAHD,South Glos Users in South Glos Homes,Permanent Nursing,Fairview Court,509.45, 11-Apr-2017
1028,Revenue,CAHD,Bed Purchasing - South,Permanent Nursing,Fairview Court,1515.52, 11-Apr-2017
1029,Revenue,CAHD,Bed Purchasing - South,Permanent Nursing,Fairview Court,1496.08, 11-Apr-2017
1030,Revenue,CAHD,South Glos Users in South Glos Homes,Permanent Nursing,Fairview Court,509.45, 11-Apr-2017
1031,Revenue,CAHD,Bed Purchasing - Southmead Hospital,Permanent Nursing,Fairview Court,1701.84, 11-Apr-2017
1032,Revenue,CAHD,Bed Purchasing - Southmead Hospital,Permanent Nursing,Fairview Court,1680, 11-Apr-2017
1033,Revenue,CAHD,Bed Purchasing - Southmead Hospital,Permanent Nursing,Fairview Court,1430.4, 11-Apr-2017
1034,Revenue,CAHD,Bed Purchasing - Southmead Hospital,Permanent Nursing,Fairview Court,1412.04, 11-Apr-2017
1035,Revenue,CAHD,South Glos Users in South Glos Homes,Permanent Nursing,Fairview Court,509.45, 11-Apr-2017
1036,Revenue,CAHD,Bed Purchasing - Southmead Hospital,Permanent Nursing,Fairview Court,1620.8, 11-Apr-2017
1037,Revenue,CAHD,Bed Purchasing - Southmead Hospital,Permanent Nursing,Fairview Court,1600, 11-Apr-2017
1038,Revenue,CAHD,South Glos Users in South Glos Homes,Permanent Nursing,Fairview Court,509.45, 11-Apr-2017
1039,Revenue,CAHD,South Glos Users in South Glos Homes,Permanent Nursing,Fairview Court,509.45, 11-Apr-2017
1040,Revenue,CAHD,South Glos Users in South Glos Homes,Permanent Nursing,Fairview Court,509.45, 11-Apr-2017
1041,Revenue,CAHD,Bed Purchasing - Southmead Hospital,Permanent Nursing,Fairview Court,1515.52, 11-Apr-2017
1042,Revenue,CAHD,Bed Purchasing - Southmead Hospital,Permanent Nursing,Fairview Court,1496.08, 11-Apr-2017
1043,Revenue,CAHD,South Glos Users in South Glos Homes,Permanent Nursing,Fairview Court,509.45, 11-Apr-2017
1044,Revenue,CAHD,Bed Purchasing - South,Permanent Nursing,Fairview Court,1224.56, 11-Apr-2017
1045,Revenue,CAHD,Bed Purchasing - South,Permanent Nursing,Fairview Court,1208.84, 11-Apr-2017
1047,Revenue,CAHD,Bed purchasing - Elderly S117 - South,Permanent Nursing,Fairview Court,1492.7, 11-Apr-2017
1048,Revenue,CAHD,Bed purchasing - Elderly S117 - South,Permanent Nursing,Fairview Court,1473.54, 11-Apr-2017
1049,Revenue,CAHD,South Glos Users in South Glos Homes,Permanent Nursing,Fairview Court,509.45, 11-Apr-2017
1050,Revenue,CAHD,Bed Purchasing - South,Permanent Nursing,Fairview Court,1224.56, 11-Apr-2017
1053,Revenue,CAHD,Bed Purchasing - South,Permanent Residential,Fairview Court,3900, 11-Apr-2017
1054,Revenue,CAHD,Bed Purchasing - South,Fees & Charges Income - General,Fairview Court,910.61, 11-Apr-2017
1055,Revenue,CAHD,Bed Purchasing - South,Fees & Charges Income - General,Fairview Court,692.64, 11-Apr-2017
1056,Revenue,CAHD,South Glos Users in South Glos Homes,Permanent Nursing,Fairview Court,509.45, 11-Apr-2017
1057,Revenue,CAHD,Bed Purchasing - South,Permanent Nursing,Fairview Court,1620.8, 11-Apr-2017
1058,Revenue,CAHD,Bed Purchasing - South,Permanent Nursing,Fairview Court,1600, 11-Apr-2017
1059,Revenue,CAHD,South Glos Users in South Glos Homes,Permanent Nursing,Fairview Court,509.45, 11-Apr-2017
1060,Revenue,CAHD,South Glos Users in South Glos Homes,Permanent Nursing,Fairview Court,509.45, 11-Apr-2017
1061,Revenue,CAHD,South Glos Users in South Glos Homes,Permanent Nursing,Fairview Court,509.45, 11-Apr-2017
1063,Revenue,CAHD,Bed Purchasing - North,Permanent Nursing,Fairview Court,1620.8, 11-Apr-2017
1064,Revenue,CAHD,Bed Purchasing - North,Permanent Nursing,Fairview Court,1600, 11-Apr-2017
1065,Revenue,CAHD,Bed Purchasing - South,Permanent Nursing,Fairview Court,1515.52, 11-Apr-2017
1066,Revenue,CAHD,Bed Purchasing - South,Permanent Nursing,Fairview Court,1496.08, 11-Apr-2017
1067,Revenue,CAHD,South Glos Users in South Glos Homes,Permanent Nursing,Fairview Court,509.45, 11-Apr-2017
1068,Revenue,CAHD,Bed Purchasing - Southmead Hospital,Permanent Nursing,Fairview Court,1620.8, 11-Apr-2017
1069,Revenue,CAHD,Bed Purchasing - Southmead Hospital,Permanent Nursing,Fairview Court,1600, 11-Apr-2017
1070,Revenue,CAHD,South Glos Users in South Glos Homes,Permanent Nursing,Fairview Court,509.45, 11-Apr-2017
1072,Revenue,CAHD,South Glos Users in South Glos Homes,Permanent Nursing,Fairview Court,509.45, 11-Apr-2017
1073,Revenue,CAHD,South Glos Users in South Glos Homes,Permanent Nursing,Fairview Court,509.45, 11-Apr-2017
1074,Revenue,CAHD,Bed Purchasing - Southmead Hospital,Permanent Nursing,Fairview Court,1620.8, 11-Apr-2017
1075,Revenue,CAHD,Bed Purchasing - Southmead Hospital,Permanent Nursing,Fairview Court,1600, 11-Apr-2017
1076,Revenue,CAHD,South Glos Users in South Glos Homes,Permanent Nursing,Fairview Court,1093.75, 11-Apr-2017
1078,Revenue,CAHD,South Glos Users in South Glos Homes,Permanent Nursing,Fairview Court,4598.21, 11-Apr-2017
1081,Revenue,CAHD,South Glos Users in South Glos Homes,Permanent Nursing,Fairview Court,509.45, 11-Apr-2017
1082,Revenue,CAHD,South Glos Users in South Glos Homes,Permanent Nursing,Fairview Court,509.45, 11-Apr-2017
1083,Revenue,CAHD,South Glos Users in South Glos Homes,Permanent Nursing,Fairview Court,509.45, 11-Apr-2017
1084,Revenue,CAHD,South Glos Users in South Glos Homes,Permanent Nursing,Fairview Court,3102.68, 11-Apr-2017
1085,Revenue,CAHD,South Glos Users in South Glos Homes,Permanent Nursing,Fairview Court,509.45, 11-Apr-2017
1086,Revenue,CAHD,Bed Purchasing - South,Permanent Nursing,Fairview Court,1224.56, 11-Apr-2017
1087,Revenue,CAHD,Bed Purchasing - South,Permanent Nursing,Fairview Court,1208.84, 11-Apr-2017
1088,Revenue,CAHD,South Glos Users in South Glos Homes,Permanent Nursing,Fairview Court,509.45, 11-Apr-2017
1089,Revenue,CAHD,Bed Purchasing - Southmead Hospital,Permanent Nursing,Fairview Court,1526, 11-Apr-2017
1090,Revenue,CAHD,Bed Purchasing - Southmead Hospital,Permanent Nursing,Fairview Court,1545.84, 11-Apr-2017
1091,Revenue,CAHD,South Glos Users in South Glos Homes,Permanent Nursing,Fairview Court,509.45, 11-Apr-2017
1092,Revenue,CAHD,Bed Purchasing - South,Permanent Nursing,Fairview Court,1303.9, 11-Apr-2017
1093,Revenue,CAHD,Bed Purchasing - South,Permanent Nursing,Fairview Court,1287.16, 11-Apr-2017
1094,Revenue,CAHD,South Glos Users in South Glos Homes,Permanent Nursing,Fairview Court,509.45, 11-Apr-2017
1095,Revenue,CAHD,South Glos Users in South Glos Homes,Permanent Nursing,Fairview House,892.86, 11-Apr-2017
1097,Revenue,CAHD,Bed purchasing - Elderly S117 - South,Permanent Residential,Fairview House,1029.02, 11-Apr-2017
1098,Revenue,CAHD,Bed purchasing - Elderly S117 - South,Permanent Residential,Fairview House,999.04, 11-Apr-2017
1099,Revenue,CAHD,Bed Purchasing - Southmead Hospital,Permanent Residential,Fairview House,943.12, 11-Apr-2017
1100,Revenue,CAHD,Bed Purchasing - Southmead Hospital,Permanent Residential,Fairview House,915.66, 11-Apr-2017
1102,Revenue,CAHD,Bed Purchasing - South,Permanent Residential,Fairview House,1033.88, 11-Apr-2017
1103,Revenue,CAHD,Bed Purchasing - South,Permanent Residential,Fairview House,943.12, 11-Apr-2017
1104,Revenue,CAHD,Bed Purchasing - South,Permanent Residential,Fairview House,915.66, 11-Apr-2017
1105,Revenue,CAHD,Bed Purchasing - South,Permanent Residential,Fairview House,1950, 11-Apr-2017
1107,Revenue,CAHD,Bed Purchasing - South,Permanent Residential,Fairview House,825, 11-Apr-2017
1108,Revenue,CAHD,Bed Purchasing - South,Permanent Residential,Fairview House,943.12, 11-Apr-2017
1109,Revenue,CAHD,Bed Purchasing - South,Permanent Residential,Fairview House,915.66, 11-Apr-2017
1110,Revenue,CAHD,Bed Purchasing - South,Permanent Residential,Fairview House,943.12, 11-Apr-2017
1111,Revenue,CAHD,Bed Purchasing - South,Permanent Residential,Fairview House,915.66, 11-Apr-2017
1113,Revenue,CAHD,Bed Purchasing - South,Permanent Residential,Fairview House,915.66, 11-Apr-2017
1114,Revenue,CAHD,Bed Purchasing - South,Permanent Residential,Fairview House,1009.08, 11-Apr-2017
1115,Revenue,CAHD,Bed Purchasing - South,Permanent Residential,Fairview House,979.68, 11-Apr-2017
1116,Revenue,CAHD,Bed Purchasing - South,Permanent Residential,Fairview House,958.68, 11-Apr-2017
1117,Revenue,CAHD,Bed Purchasing - South,Permanent Residential,Fairview House,930.76, 11-Apr-2017
1118,Revenue,CAHD,Bed Purchasing - South,Permanent Residential,Fairview House,1058.62, 11-Apr-2017
1120,Revenue,CAHD,Bed Purchasing - Southmead Hospital,Permanent Nursing,Field House Care Home,1630.94, 11-Apr-2017
1121,Revenue,CAHD,Bed Purchasing - Southmead Hospital,Permanent Nursing,Field House Care Home,1610, 11-Apr-2017
1122,Revenue,CAHD,Bed Purchasing - Southmead Hospital,Permanent Nursing,Field House Care Home,1516.96, 11-Apr-2017
1123,Revenue,CAHD,Bed Purchasing - Southmead Hospital,Permanent Nursing,Field House Care Home,1497.5, 11-Apr-2017
1124,Revenue,CAHD,Bed Purchasing - South,Permanent Nursing,Field House Care Home,1570.16, 11-Apr-2017
1125,Revenue,CAHD,Bed Purchasing - South,Permanent Nursing,Field House Care Home,1550, 11-Apr-2017
1126,Revenue,CAHD,Bed Purchasing - Southmead Hospital,Permanent Nursing,Field House Care Home,1628.46, 11-Apr-2017
1127,Revenue,CAHD,Bed Purchasing - Southmead Hospital,Permanent Nursing,Field House Care Home,1607.56, 11-Apr-2017
1128,Revenue,CAHD,Bed Purchasing - North,Respite Emergency - Residential,Fieldview,1722.1, 11-Apr-2017
1129,Revenue,CAHD,Bed Purchasing - North,Respite Emergency - Residential,Fieldview,1700, 11-Apr-2017
1130,Revenue,CAHD,Bed Purchasing - South,Permanent Nursing,Fieldview,31412.35, 11-Apr-2017
1131,Revenue,CAHD,Bed Purchasing - South,Permanent Nursing,Fieldview,17067.43, 11-Apr-2017
1132,Revenue,CAHD,Bed Purchasing - South,Fees & Charges Income - General,Fieldview,1353.21, 11-Apr-2017
1133,Revenue,CAHD,Bed Purchasing - South,Fees & Charges Income - General,Fieldview,2557.99, 11-Apr-2017
1134,Revenue,CAHD,MH Purchasing - Younger,Permanent Nursing,Fieldview,2633.8, 11-Apr-2017
1135,Revenue,CAHD,MH Purchasing - Younger,Permanent Nursing,Fieldview,2600, 11-Apr-2017
1136,Revenue,CAHD,Bed Purchasing - South,Permanent Residential,Fig House,1418.2, 11-Apr-2017
1137,Revenue,CAHD,Bed Purchasing - South,Permanent Residential,Fig House,1400, 11-Apr-2017
1138,Revenue,CAHD,Bed Purchasing - North,Respite Planned - Residential,Fig House,900, 11-Apr-2017
1200,Revenue,CAHD,Bed purchasing - S28A Under 65 - South,Permanent Residential,Freeways Trust Ltd,1796.2, 11-Apr-2017
1201,Revenue,CAHD,Bed purchasing - S28A Under 65 - South,Permanent Residential,Freeways Trust Ltd,1773.14, 11-Apr-2017
1202,Revenue,CAHD,Bed Purchasing - North,Permanent Residential,Freeways Trust Ltd,1803.34, 11-Apr-2017
1203,Revenue,CAHD,Bed Purchasing - North,Permanent Residential,Freeways Trust Ltd,1780.2, 11-Apr-2017
1204,Revenue,CAHD,Bed Purchasing - South,Permanent Residential,Freeways Trust Ltd,1912.58, 11-Apr-2017
1205,Revenue,CAHD,Bed Purchasing - South,Permanent Residential,Freeways Trust Ltd,1888.04, 11-Apr-2017
1206,Revenue,CAHD,Bed Purchasing - North,Permanent Residential,Freeways Trust Ltd,1444.16, 11-Apr-2017
1207,Revenue,CAHD,Bed Purchasing - North,Permanent Residential,Freeways Trust Ltd,1425.62, 11-Apr-2017
1208,Revenue,CAHD,Bed Purchasing - South,Permanent Residential,Freeways Trust Ltd,1521.82, 11-Apr-2017
1209,Revenue,CAHD,Bed Purchasing - South,Permanent Residential,Freeways Trust Ltd,1502.3, 11-Apr-2017
1210,Revenue,CAHD,Bed Purchasing - North,Permanent Residential,Freeways Trust Ltd,1595, 11-Apr-2017
1211,Revenue,CAHD,Bed Purchasing - North,Permanent Residential,Freeways Trust Ltd,1574.54, 11-Apr-2017
1212,Revenue,CAHD,Bed Purchasing - North,Permanent Residential,Freeways Trust Ltd,1909.1, 11-Apr-2017
1213,Revenue,CAHD,Bed Purchasing - North,Permanent Residential,Freeways Trust Ltd,1884.6, 11-Apr-2017
1214,Revenue,CAHD,18-25 Year Olds,Permanent Residential,Freeways Trust Ltd,1763.6, 11-Apr-2017
1215,Revenue,CAHD,18-25 Year Olds,Permanent Residential,Freeways Trust Ltd,1740.96, 11-Apr-2017
1216,Revenue,CAHD,Bed Purchasing - North,Permanent Residential,Freeways Trust Ltd,2206.9, 11-Apr-2017
1217,Revenue,CAHD,Bed Purchasing - North,Permanent Residential,Freeways Trust Ltd,2178.58, 11-Apr-2017
1219,Revenue,CAHD,CSC - Residential Placements,Permanent Residential,Friends Therapeutic Community Trust,15500, 11-Apr-2017
1220,Revenue,CAHD,CSC - Residential Placements,Permanent Residential,Friends Therapeutic Community Trust,15500, 11-Apr-2017
1221,Revenue,CAHD,CSC - Residential Placements,Permanent Residential,Friends Therapeutic Community Trust,15500, 11-Apr-2017
1223,Revenue,CAHD,South Glos Users in South Glos Homes,Permanent Nursing,Fshc  1St Floor,3125, 11-Apr-2017
1224,Revenue,CAHD,South Glos Users in South Glos Homes,Permanent Nursing,Fshc  1St Floor,509.45, 11-Apr-2017
1225,Revenue,CAHD,South Glos Users in South Glos Homes,Permanent Nursing,Fshc  1St Floor,509.45, 11-Apr-2017
1226,Revenue,CAHD,Bed Purchasing - South,Permanent Nursing,Fshc  1St Floor,1310.58, 11-Apr-2017
1227,Revenue,CAHD,Bed Purchasing - South,Permanent Nursing,Fshc  1St Floor,1293.76, 11-Apr-2017
1228,Revenue,CAHD,Bed Purchasing - South,Permanent Nursing,Fshc  1St Floor,1049.94, 11-Apr-2017
1229,Revenue,CAHD,Bed Purchasing - South,Permanent Nursing,Fshc  1St Floor,1019.36, 11-Apr-2017
1230,Revenue,CAHD,Bed Purchasing - Southmead Hospital,Permanent Nursing,Fshc  1St Floor,1140.64, 11-Apr-2017
1231,Revenue,CAHD,Bed Purchasing - Southmead Hospital,Permanent Nursing,Fshc  1St Floor,1126, 11-Apr-2017
1232,Revenue,CAHD,Bed Purchasing - South,Permanent Nursing,Fshc  1St Floor,1049.94, 11-Apr-2017
1233,Revenue,CAHD,Bed Purchasing - South,Permanent Nursing,Fshc  1St Floor,1019.36, 11-Apr-2017
1234,Revenue,CAHD,South Glos Users in South Glos Homes,Permanent Nursing,Fshc  1St Floor,509.45, 11-Apr-2017
1235,Revenue,CAHD,Bed Purchasing - Southmead Hospital,Permanent Nursing,Fshc  1St Floor,777.14, 11-Apr-2017
1236,Revenue,CAHD,Bed Purchasing - Southmead Hospital,Permanent Nursing,Fshc  1St Floor,1195.34, 11-Apr-2017
1237,Revenue,CAHD,Bed Purchasing - Southmead Hospital,Permanent Nursing,Fshc  1St Floor,1180, 11-Apr-2017
1238,Revenue,CAHD,South Glos Users in South Glos Homes,Permanent Nursing,Fshc  1St Floor,509.45, 11-Apr-2017
1239,Revenue,CAHD,Bed Purchasing - Southmead Hospital,Permanent Nursing,Fshc  1St Floor,1049.94, 11-Apr-2017
1240,Revenue,CAHD,Bed Purchasing - Southmead Hospital,Permanent Nursing,Fshc  1St Floor,1019.36, 11-Apr-2017
1241,Revenue,CAHD,South Glos Users in South Glos Homes,Permanent Nursing,Fshc  1St Floor,509.45, 11-Apr-2017
1242,Revenue,CAHD,South Glos Users in South Glos Homes,Permanent Nursing,Fshc  1St Floor,509.45, 11-Apr-2017
1243,Revenue,CAHD,Bed Purchasing - North,Permanent Nursing,Fshc  1St Floor,10957.14, 11-Apr-2017
1244,Revenue,CAHD,Bed Purchasing - Southmead Hospital,Permanent Nursing,Fshc  1St Floor,1140.64, 11-Apr-2017
1245,Revenue,CAHD,Bed Purchasing - Southmead Hospital,Permanent Nursing,Fshc  1St Floor,1126, 11-Apr-2017
1246,Revenue,CAHD,Bed Purchasing - Southmead Hospital,Permanent Nursing,Fshc  1St Floor,1290.56, 11-Apr-2017
1247,Revenue,CAHD,Bed Purchasing - Southmead Hospital,Permanent Nursing,Fshc  1St Floor,1274, 11-Apr-2017
1248,Revenue,CAHD,South Glos Users in South Glos Homes,Permanent Nursing,Fshc  1St Floor,509.45, 11-Apr-2017
1249,Revenue,CAHD,Bed Purchasing - Southmead Hospital,Permanent Nursing,Fshc  1St Floor,1049.94, 11-Apr-2017
1250,Revenue,CAHD,Bed Purchasing - Southmead Hospital,Permanent Nursing,Fshc  1St Floor,1019.36, 11-Apr-2017
1251,Revenue,CAHD,South Glos Users in South Glos Homes,Permanent Nursing,Fshc  1St Floor,509.45, 11-Apr-2017
1252,Revenue,CAHD,Bed Purchasing - Southmead Hospital,Permanent Nursing,Fshc  1St Floor,1049.94, 11-Apr-2017
1253,Revenue,CAHD,Bed Purchasing - Southmead Hospital,Permanent Nursing,Fshc  1St Floor,1019.36, 11-Apr-2017
1254,Revenue,CAHD,South Glos Users in South Glos Homes,Permanent Nursing,Fshc  1St Floor,2879.46, 11-Apr-2017
1255,Revenue,CAHD,South Glos Users in South Glos Homes,Permanent Nursing,Fshc  1St Floor,509.45, 11-Apr-2017
1256,Revenue,CAHD,Bed Purchasing - South,Permanent Nursing,Fshc  1St Floor,6726.43, 11-Apr-2017
1257,Revenue,CAHD,Bed Purchasing - South,Permanent Nursing,Fshc  1St Floor,1306.78, 11-Apr-2017
1258,Revenue,CAHD,Bed Purchasing - South,Permanent Nursing,Fshc  1St Floor,1290, 11-Apr-2017
1259,Revenue,CAHD,South Glos Users in South Glos Homes,Permanent Nursing,Fshc  1St Floor,509.45, 11-Apr-2017
1260,Revenue,CAHD,Bed Purchasing - South,Permanent Nursing,Fshc  1St Floor,1156.16, 11-Apr-2017
1261,Revenue,CAHD,Bed Purchasing - South,Permanent Nursing,Fshc  1St Floor,1141.32, 11-Apr-2017
1262,Revenue,CAHD,Bed Purchasing - Southmead Hospital,Permanent Nursing,Fshc  1St Floor,1156.16, 11-Apr-2017
1263,Revenue,CAHD,Bed Purchasing - Southmead Hospital,Permanent Nursing,Fshc  1St Floor,1141.32, 11-Apr-2017
1264,Revenue,CAHD,Bed Purchasing - South,Permanent Nursing,Fshc  1St Floor,1140.64, 11-Apr-2017
1265,Revenue,CAHD,Bed Purchasing - South,Permanent Nursing,Fshc  1St Floor,1126, 11-Apr-2017
1266,Revenue,CAHD,South Glos Users in South Glos Homes,Permanent Nursing,Fshc  1St Floor,509.45, 11-Apr-2017
1267,Revenue,CAHD,Bed Purchasing - Southmead Hospital,Permanent Nursing,Fshc  1St Floor,1049.94, 11-Apr-2017
1268,Revenue,CAHD,Bed Purchasing - Southmead Hospital,Permanent Nursing,Fshc  1St Floor,1019.36, 11-Apr-2017
1269,Revenue,CAHD,South Glos Users in South Glos Homes,Permanent Nursing,Fshc  1St Floor,509.45, 11-Apr-2017
1270,Revenue,CAHD,Bed Purchasing - Southmead Hospital,Permanent Nursing,Fshc  1St Floor,1140.64, 11-Apr-2017
1271,Revenue,CAHD,Bed Purchasing - Southmead Hospital,Permanent Nursing,Fshc  1St Floor,1126, 11-Apr-2017
1272,Revenue,CAHD,South Glos Users in South Glos Homes,Permanent Nursing,Fshc  1St Floor,509.45, 11-Apr-2017
1273,Revenue,CAHD,Bed Purchasing - Southmead Hospital,Permanent Nursing,Fshc  1St Floor,1049.94, 11-Apr-2017
1274,Revenue,CAHD,Bed Purchasing - Southmead Hospital,Permanent Nursing,Fshc  1St Floor,1019.36, 11-Apr-2017
1275,Revenue,CAHD,South Glos Users in South Glos Homes,Permanent Nursing,Fshc  1St Floor,509.45, 11-Apr-2017
1276,Revenue,CAHD,Bed Purchasing - Southmead Hospital,Permanent Residential,Fshc  1St Floor,979.28, 11-Apr-2017
1277,Revenue,CAHD,Bed Purchasing - Southmead Hospital,Permanent Residential,Fshc  1St Floor,950.76, 11-Apr-2017
1278,Revenue,CAHD,Bed Purchasing - South,Permanent Nursing,Fshc  1St Floor,1049.94, 11-Apr-2017
1279,Revenue,CAHD,Bed Purchasing - South,Permanent Nursing,Fshc  1St Floor,1019.36, 11-Apr-2017
1280,Revenue,CAHD,Bed Purchasing - North,Permanent Nursing,Fshc  1St Floor,1049.94, 11-Apr-2017
1281,Revenue,CAHD,Bed Purchasing - North,Permanent Nursing,Fshc  1St Floor,1019.36, 11-Apr-2017
1282,Revenue,CAHD,South Glos Users in South Glos Homes,Permanent Nursing,Fshc  1St Floor,509.45, 11-Apr-2017
1283,Revenue,CAHD,Bed Purchasing - South,Permanent Nursing,Fshc  1St Floor,1140.64, 11-Apr-2017
1284,Revenue,CAHD,Bed Purchasing - South,Permanent Nursing,Fshc  1St Floor,1126, 11-Apr-2017
1285,Revenue,CAHD,South Glos Users in South Glos Homes,Permanent Nursing,Fshc  1St Floor,509.45, 11-Apr-2017
1286,Revenue,CAHD,South Glos Users in South Glos Homes,Permanent Nursing,Fshc  1St Floor,509.45, 11-Apr-2017
1287,Revenue,CAHD,South Glos Users in South Glos Homes,Permanent Nursing,Fshc  1St Floor,509.45, 11-Apr-2017
1288,Revenue,CAHD,Bed Purchasing - North,Permanent Nursing,Fshc  1St Floor,1156.16, 11-Apr-2017
1289,Revenue,CAHD,Bed Purchasing - North,Permanent Nursing,Fshc  1St Floor,1141.32, 11-Apr-2017
1290,Revenue,CAHD,South Glos Users in South Glos Homes,Permanent Nursing,Fshc  1St Floor,509.45, 11-Apr-2017
1291,Revenue,CAHD,South Glos Users in South Glos Homes,Permanent Nursing,Fshc  1St Floor,1116.07, 11-Apr-2017
1292,Revenue,CAHD,Bed Purchasing - Southmead Hospital,Permanent Nursing,Fshc  1St Floor,1405.42, 11-Apr-2017
1293,Revenue,CAHD,Bed Purchasing - Southmead Hospital,Permanent Nursing,Fshc  1St Floor,1387.4, 11-Apr-2017
1294,Revenue,CAHD,Bed Purchasing - Southmead Hospital,Permanent Nursing,Fshc  1St Floor,1022, 11-Apr-2017
1295,Revenue,CAHD,South Glos Users in South Glos Homes,Permanent Nursing,Fshc  1St Floor,509.45, 11-Apr-2017
1296,Revenue,CAHD,Bed Purchasing - North,Permanent Nursing,Fshc  1St Floor,6843.14, 11-Apr-2017
1297,Revenue,CAHD,Bed Purchasing - North,Fees & Charges Income - General,Fshc  1St Floor,1587.07, 11-Apr-2017
1298,Revenue,CAHD,Bed Purchasing - Southmead Hospital,Permanent Residential,Fshc  1St Floor,1128.48, 11-Apr-2017
1299,Revenue,CAHD,Bed Purchasing - Southmead Hospital,Permanent Residential,Fshc  1St Floor,1114, 11-Apr-2017
1300,Revenue,CAHD,Bed Purchasing - South,Permanent Nursing,Fshc  1St Floor,1128.48, 11-Apr-2017
1301,Revenue,CAHD,Bed Purchasing - South,Permanent Nursing,Fshc  1St Floor,1114, 11-Apr-2017
1302,Revenue,CAHD,South Glos Users in South Glos Homes,Permanent Nursing,Fshc  1St Floor,509.45, 11-Apr-2017
1303,Revenue,CAHD,South Glos Users in South Glos Homes,Permanent Nursing,Fshc  1St Floor,870.54, 11-Apr-2017
1304,Revenue,CAHD,Bed Purchasing - Southmead Hospital,Permanent Nursing,Fshc  1St Floor,1049.94, 11-Apr-2017
1305,Revenue,CAHD,Bed Purchasing - Southmead Hospital,Permanent Nursing,Fshc  1St Floor,1019.36, 11-Apr-2017
1306,Revenue,CAHD,South Glos Users in South Glos Homes,Permanent Nursing,Fshc  1St Floor,509.45, 11-Apr-2017
1307,Revenue,CAHD,Bed Purchasing - North,Permanent Nursing,Fshc  1St Floor,1114, 11-Apr-2017
1308,Revenue,CAHD,Bed Purchasing - North,Permanent Nursing,Fshc  1St Floor,1094, 11-Apr-2017
1309,Revenue,CAHD,South Glos Users in South Glos Homes,Permanent Nursing,Fshc  1St Floor,509.45, 11-Apr-2017
1310,Revenue,CAHD,South Glos Users in South Glos Homes,Permanent Nursing,Fshc  1St Floor,509.45, 11-Apr-2017
1311,Revenue,CAHD,Bed Purchasing - Southmead Hospital,Permanent Nursing,Fshc  1St Floor,1049.94, 11-Apr-2017
1312,Revenue,CAHD,Bed Purchasing - Southmead Hospital,Permanent Nursing,Fshc  1St Floor,1019.36, 11-Apr-2017
1313,Revenue,CAHD,South Glos Users in South Glos Homes,Permanent Nursing,Fshc  1St Floor,509.45, 11-Apr-2017
1314,Revenue,CAHD,Bed Purchasing - Southmead Hospital,Permanent Residential,Fshc  1St Floor,979.28, 11-Apr-2017
1315,Revenue,CAHD,Bed Purchasing - Southmead Hospital,Permanent Residential,Fshc  1St Floor,950.76, 11-Apr-2017
1316,Revenue,CAHD,Bed Purchasing - Southmead Hospital,Respite Emergency - Nursing,Fshc  1St Floor,1114, 11-Apr-2017
1317,Revenue,CAHD,Bed Purchasing - Southmead Hospital,Respite Emergency - Nursing,Fshc  1St Floor,1082, 11-Apr-2017
1318,Revenue,CAHD,South Glos Users in South Glos Homes,Permanent Nursing,Fshc  1St Floor,509.45, 11-Apr-2017
1319,Revenue,CAHD,South Glos Users in South Glos Homes,Permanent Nursing,Fshc  1St Floor,509.45, 11-Apr-2017
1320,Revenue,CAHD,Bed Purchasing - Southmead Hospital,Permanent Nursing,Fshc  1St Floor,1049.94, 11-Apr-2017
1321,Revenue,CAHD,Bed Purchasing - Southmead Hospital,Permanent Nursing,Fshc  1St Floor,1019.36, 11-Apr-2017
1322,Revenue,CAHD,South Glos Users in South Glos Homes,Permanent Nursing,Fshc  1St Floor,509.45, 11-Apr-2017
1323,Revenue,CAHD,South Glos Users in South Glos Homes,Permanent Nursing,Fshc  1St Floor,915.18, 11-Apr-2017
1324,Revenue,CAHD,South Glos Users in South Glos Homes,Permanent Nursing,Fshc  1St Floor,509.45, 11-Apr-2017
1325,Revenue,CAHD,Bed Purchasing - Southmead Hospital,Permanent Nursing,Fshc  1St Floor,1049.94, 11-Apr-2017
1326,Revenue,CAHD,Bed Purchasing - Southmead Hospital,Permanent Nursing,Fshc  1St Floor,1019.36, 11-Apr-2017
1327,Revenue,CAHD,South Glos Users in South Glos Homes,Permanent Nursing,Fshc  1St Floor,509.45, 11-Apr-2017
1328,Revenue,CAHD,South Glos Users in South Glos Homes,Permanent Nursing,Fshc  1St Floor,509.45, 11-Apr-2017
1329,Revenue,CAHD,Bed Purchasing - North,Fees & Charges Income - General,Fshc  1St Floor,6658.66, 11-Apr-2017
1330,Revenue,CAHD,Bed Purchasing - North,Fees & Charges Income - General,Fshc  1St Floor,3211.82, 11-Apr-2017
1331,Revenue,CAHD,Bed Purchasing - North,Permanent Nursing,Fshc  1St Floor,1114, 11-Apr-2017
1332,Revenue,CAHD,Bed Purchasing - North,Permanent Nursing,Fshc  1St Floor,1096.72, 11-Apr-2017
1333,Revenue,CAHD,South Glos Users in South Glos Homes,Permanent Nursing,Fshc  1St Floor,509.45, 11-Apr-2017
1334,Revenue,CAHD,Bed Purchasing - North,Permanent Nursing,Fshc  1St Floor,1049.94, 11-Apr-2017
1335,Revenue,CAHD,Bed Purchasing - North,Permanent Nursing,Fshc  1St Floor,1019.36, 11-Apr-2017
1336,Revenue,CAHD,South Glos Users in South Glos Homes,Permanent Nursing,Fshc  1St Floor,509.45, 11-Apr-2017
1337,Revenue,CAHD,South Glos Users in South Glos Homes,Permanent Nursing,Fshc  1St Floor,509.45, 11-Apr-2017
1338,Revenue,CAHD,South Glos Users in South Glos Homes,Permanent Nursing,Fshc  1St Floor,2745.54, 11-Apr-2017
1339,Revenue,CAHD,South Glos Users in South Glos Homes,Permanent Nursing,Fshc  1St Floor,509.45, 11-Apr-2017
1340,Revenue,CAHD,Bed Purchasing - North,Permanent Nursing,Fshc  1St Floor,1128.48, 11-Apr-2017
1341,Revenue,CAHD,Bed Purchasing - North,Permanent Nursing,Fshc  1St Floor,1114, 11-Apr-2017
1342,Revenue,CAHD,South Glos Users in South Glos Homes,Permanent Nursing,Fshc  1St Floor,509.45, 11-Apr-2017
1343,Revenue,CAHD,South Glos Users in South Glos Homes,Permanent Nursing,Fshc  1St Floor,509.45, 11-Apr-2017
1344,Revenue,CAHD,Bed Purchasing - Southmead Hospital,Permanent Nursing,Fshc  1St Floor,1768.37, 11-Apr-2017
1345,Revenue,CAHD,Bed Purchasing - Southmead Hospital,Permanent Nursing,Fshc  1St Floor,1393.28, 11-Apr-2017
1346,Revenue,CAHD,Bed Purchasing - Southmead Hospital,Permanent Nursing,Fshc  1St Floor,1375.4, 11-Apr-2017
1347,Revenue,CAHD,South Glos Users in South Glos Homes,Permanent Nursing,Fshc  1St Floor,1093.75, 11-Apr-2017
1348,Revenue,CAHD,Bed Purchasing - Southmead Hospital,Respite Planned - Residential,Fshc  1St Floor,541, 11-Apr-2017
1349,Revenue,CAHD,South Glos Users in South Glos Homes,Permanent Nursing,Fshc  1St Floor,509.45, 11-Apr-2017
1350,Revenue,CAHD,South Glos Users in South Glos Homes,Permanent Nursing,Fshc  1St Floor,2924.11, 11-Apr-2017
1351,Revenue,CAHD,South Glos Users in South Glos Homes,Permanent Nursing,Fshc  1St Floor,509.45, 11-Apr-2017
1352,Revenue,CAHD,South Glos Users in South Glos Homes,Permanent Nursing,Fshc  1St Floor,1383.93, 11-Apr-2017
1353,Revenue,CAHD,South Glos Users in South Glos Homes,Permanent Nursing,Fshc  1St Floor,509.45, 11-Apr-2017
1354,Revenue,CAHD,South Glos Users in South Glos Homes,Permanent Nursing,Fshc  1St Floor,509.45, 11-Apr-2017
1355,Revenue,CAHD,South Glos Users in South Glos Homes,Permanent Nursing,Fshc  1St Floor,509.45, 11-Apr-2017
1356,Revenue,CAHD,Bed Purchasing - North,Permanent Nursing,Fshc  1St Floor,1049.94, 11-Apr-2017
1357,Revenue,CAHD,Bed Purchasing - North,Permanent Nursing,Fshc  1St Floor,1019.36, 11-Apr-2017
1358,Revenue,CAHD,South Glos Users in South Glos Homes,Permanent Nursing,Fshc  1St Floor,3258.93, 11-Apr-2017
1359,Revenue,CAHD,Bed Purchasing - Southmead Hospital,Permanent Residential,Fshc  1St Floor,979.28, 11-Apr-2017
1360,Revenue,CAHD,Bed Purchasing - Southmead Hospital,Permanent Residential,Fshc  1St Floor,950.76, 11-Apr-2017
1361,Revenue,CAHD,South Glos Users in South Glos Homes,Permanent Nursing,Fshc  1St Floor,509.45, 11-Apr-2017
1362,Revenue,CAHD,Bed Purchasing - North,Permanent Nursing,Fshc  1St Floor,1049.94, 11-Apr-2017
1363,Revenue,CAHD,Bed Purchasing - North,Permanent Nursing,Fshc  1St Floor,1019.36, 11-Apr-2017
1364,Revenue,CAHD,South Glos Users in South Glos Homes,Permanent Nursing,Fshc  1St Floor,509.45, 11-Apr-2017
1365,Revenue,CAHD,Bed Purchasing - North,Permanent Nursing,Fshc  1St Floor,1049.94, 11-Apr-2017
1366,Revenue,CAHD,Bed Purchasing - North,Permanent Nursing,Fshc  1St Floor,1019.36, 11-Apr-2017
1367,Revenue,CAHD,South Glos Users in South Glos Homes,Permanent Nursing,Fshc  1St Floor,509.45, 11-Apr-2017
1368,Revenue,CAHD,Bed Purchasing - Southmead Hospital,Permanent Nursing,Fshc  1St Floor,1114, 11-Apr-2017
1369,Revenue,CAHD,Bed Purchasing - Southmead Hospital,Permanent Nursing,Fshc  1St Floor,1082, 11-Apr-2017
1370,Revenue,CAHD,South Glos Users in South Glos Homes,Permanent Nursing,Fshc  1St Floor,509.45, 11-Apr-2017
1371,Revenue,CAHD,South Glos Users in South Glos Homes,Permanent Nursing,Fshc  1St Floor,1517.86, 11-Apr-2017
1372,Revenue,CAHD,South Glos Users in South Glos Homes,Permanent Nursing,Fshc  1St Floor,509.45, 11-Apr-2017
1373,Revenue,CAHD,Bed Purchasing - North,Permanent Nursing,Fshc  1St Floor,1049.94, 11-Apr-2017
1374,Revenue,CAHD,Bed Purchasing - North,Permanent Nursing,Fshc  1St Floor,1019.36, 11-Apr-2017
1375,Revenue,CAHD,South Glos Users in South Glos Homes,Permanent Nursing,Fshc  1St Floor,509.45, 11-Apr-2017
1376,Revenue,CAHD,Bed Purchasing - North,Permanent Nursing,Fshc  1St Floor,1049.94, 11-Apr-2017
1377,Revenue,CAHD,Bed Purchasing - North,Permanent Nursing,Fshc  1St Floor,1019.36, 11-Apr-2017
1378,Revenue,CAHD,South Glos Users in South Glos Homes,Permanent Nursing,Fshc  1St Floor,509.45, 11-Apr-2017
1379,Revenue,CAHD,Bed Purchasing - North,Permanent Residential,Fshc  1St Floor,1128.48, 11-Apr-2017
1380,Revenue,CAHD,Bed Purchasing - North,Permanent Residential,Fshc  1St Floor,1114, 11-Apr-2017
1381,Revenue,CAHD,South Glos Users in South Glos Homes,Permanent Nursing,Fshc  1St Floor,509.45, 11-Apr-2017
1382,Revenue,CAHD,Bed Purchasing - North,Permanent Nursing,Fshc  1St Floor,1049.94, 11-Apr-2017
1383,Revenue,CAHD,Bed Purchasing - North,Permanent Nursing,Fshc  1St Floor,1019.36, 11-Apr-2017
1384,Revenue,CAHD,South Glos Users in South Glos Homes,Permanent Nursing,Fshc  1St Floor,509.45, 11-Apr-2017
1385,Revenue,CAHD,Bed Purchasing - Southmead Hospital,Permanent Nursing,Fshc  1St Floor,1114, 11-Apr-2017
1386,Revenue,CAHD,Bed Purchasing - Southmead Hospital,Permanent Nursing,Fshc  1St Floor,1082, 11-Apr-2017
1387,Revenue,CAHD,South Glos Users in South Glos Homes,Permanent Nursing,Fshc  1St Floor,509.45, 11-Apr-2017
1388,Revenue,CAHD,Bed Purchasing - North,Permanent Nursing,Fshc  1St Floor,1049.94, 11-Apr-2017
1389,Revenue,CAHD,Bed Purchasing - North,Permanent Nursing,Fshc  1St Floor,1019.36, 11-Apr-2017
1390,Revenue,CAHD,South Glos Users in South Glos Homes,Permanent Nursing,Fshc  1St Floor,509.45, 11-Apr-2017
1391,Revenue,CAHD,Bed Purchasing - North,Permanent Nursing,Fshc  1St Floor,4173.43, 11-Apr-2017
1392,Revenue,CAHD,Bed Purchasing - North,Permanent Nursing,Fshc  1St Floor,1114, 11-Apr-2017
1393,Revenue,CAHD,Bed Purchasing - North,Permanent Nursing,Fshc  1St Floor,1082, 11-Apr-2017
1394,Revenue,CAHD,South Glos Users in South Glos Homes,Permanent Nursing,Fshc  1St Floor,509.45, 11-Apr-2017
1395,Revenue,CAHD,Bed Purchasing - North,Fees & Charges Income - General,Fshc  1St Floor,989.59, 11-Apr-2017
1396,Revenue,CAHD,Bed Purchasing - North,Permanent Nursing,Fshc  1St Floor,1049.94, 11-Apr-2017
1397,Revenue,CAHD,Bed Purchasing - North,Permanent Nursing,Fshc  1St Floor,1019.36, 11-Apr-2017
1398,Revenue,CAHD,South Glos Users in South Glos Homes,Permanent Nursing,Fshc  1St Floor,509.45, 11-Apr-2017
1399,Revenue,CAHD,Bed Purchasing - North,Permanent Nursing,Fshc  1St Floor,1085.76, 11-Apr-2017
1400,Revenue,CAHD,Bed Purchasing - North,Permanent Nursing,Fshc  1St Floor,1054.14, 11-Apr-2017
1401,Revenue,CAHD,South Glos Users in South Glos Homes,Permanent Nursing,Fshc  1St Floor,509.45, 11-Apr-2017
1402,Revenue,CAHD,Bed Purchasing - Southmead Hospital,Permanent Nursing,Fshc  1St Floor,1191.28, 11-Apr-2017
1403,Revenue,CAHD,Bed Purchasing - Southmead Hospital,Permanent Nursing,Fshc  1St Floor,1176, 11-Apr-2017
1404,Revenue,CAHD,South Glos Users in South Glos Homes,Permanent Nursing,Fshc  1St Floor,509.45, 11-Apr-2017
1405,Revenue,CAHD,South Glos Users in South Glos Homes,Permanent Nursing,Fshc  1St Floor,509.45, 11-Apr-2017
1406,Revenue,CAHD,Bed Purchasing - North,Permanent Nursing,Fshc  1St Floor,1049.94, 11-Apr-2017
1407,Revenue,CAHD,Bed Purchasing - North,Permanent Nursing,Fshc  1St Floor,1019.36, 11-Apr-2017
1408,Revenue,CAHD,South Glos Users in South Glos Homes,Permanent Nursing,Fshc  1St Floor,509.45, 11-Apr-2017
1409,Revenue,CAHD,South Glos Users in South Glos Homes,Permanent Nursing,Fshc  1St Floor,509.45, 11-Apr-2017
1410,Revenue,CAHD,Bed Purchasing - North,Fees & Charges Income - General,Fshc  1St Floor,1643.14, 11-Apr-2017
1411,Revenue,CAHD,Bed Purchasing - North,Fees & Charges Income - General,Fshc  1St Floor,914.9, 11-Apr-2017
1412,Revenue,CAHD,Bed Purchasing - North,Fees & Charges Income - General,Fshc  1St Floor,595.41, 11-Apr-2017
1413,Revenue,CAHD,Bed Purchasing - North,Fees & Charges Income - General,Fshc  1St Floor,1876.46, 11-Apr-2017
1414,Revenue,CAHD,Bed Purchasing - North,Fees & Charges Income - General,Fshc  1St Floor,1026.93, 11-Apr-2017
1415,Revenue,CAHD,South Glos Users in South Glos Homes,Permanent Nursing,Fshc  1St Floor,509.45, 11-Apr-2017
1416,Revenue,CAHD,South Glos Users in South Glos Homes,Permanent Nursing,Fshc  1St Floor,509.45, 11-Apr-2017
1417,Revenue,CAHD,South Glos Users in South Glos Homes,Permanent Nursing,Fshc  1St Floor,509.45, 11-Apr-2017
1418,Revenue,CAHD,South Glos Users in South Glos Homes,Permanent Nursing,Fshc  1St Floor,1183.04, 11-Apr-2017
1419,Revenue,CAHD,Bed Purchasing - South,Permanent Nursing,Fshc  1St Floor,1253.58, 11-Apr-2017
1420,Revenue,CAHD,Bed Purchasing - South,Permanent Nursing,Fshc  1St Floor,1237.5, 11-Apr-2017
1421,Revenue,CAHD,South Glos Users in South Glos Homes,Permanent Nursing,Fshc  1St Floor,509.45, 11-Apr-2017
1422,Revenue,CAHD,South Glos Users in South Glos Homes,Permanent Nursing,Fshc  1St Floor,509.45, 11-Apr-2017
1423,Revenue,CAHD,Bed Purchasing - North,Permanent Nursing,Fshc  1St Floor,1049.94, 11-Apr-2017
1424,Revenue,CAHD,Bed Purchasing - North,Permanent Nursing,Fshc  1St Floor,1019.36, 11-Apr-2017
1425,Revenue,CAHD,South Glos Users in South Glos Homes,Permanent Nursing,Fshc  1St Floor,509.45, 11-Apr-2017
1426,Revenue,CAHD,South Glos Users in South Glos Homes,Permanent Nursing,Fshc  1St Floor,509.45, 11-Apr-2017
1427,Revenue,CAHD,Bed Purchasing - Southmead Hospital,Permanent Residential,Fshc  1St Floor,979.28, 11-Apr-2017
1428,Revenue,CAHD,Bed Purchasing - Southmead Hospital,Permanent Residential,Fshc  1St Floor,950.76, 11-Apr-2017
1429,Revenue,CAHD,Bed Purchasing - Southmead Hospital,Respite Planned - Nursing,Fshc  1St Floor,1237.5, 11-Apr-2017
1430,Revenue,CAHD,Bed Purchasing - Southmead Hospital,Respite Planned - Nursing,Fshc  1St Floor,895.41, 11-Apr-2017
1431,Revenue,CAHD,South Glos Users in South Glos Homes,Permanent Nursing,Fshc  1St Floor,509.45, 11-Apr-2017
1432,Revenue,CAHD,South Glos Users in South Glos Homes,Permanent Nursing,Fshc  1St Floor,509.45, 11-Apr-2017
1433,Revenue,CAHD,Bed Purchasing - Southmead Hospital,Permanent Nursing,Fshc  1St Floor,1253.58, 11-Apr-2017
1434,Revenue,CAHD,Bed Purchasing - Southmead Hospital,Permanent Nursing,Fshc  1St Floor,1237.5, 11-Apr-2017
1435,Revenue,CAHD,South Glos Users in South Glos Homes,Permanent Nursing,Fshc  1St Floor,509.45, 11-Apr-2017
1436,Revenue,CAHD,Bed Purchasing - Southmead Hospital,Respite Planned - Nursing,Fshc  1St Floor,1253.58, 11-Apr-2017
1437,Revenue,CAHD,Bed Purchasing - Southmead Hospital,Respite Planned - Nursing,Fshc  1St Floor,1237.5, 11-Apr-2017
1438,Revenue,CAHD,South Glos Users in South Glos Homes,Permanent Nursing,Fshc  1St Floor,509.45, 11-Apr-2017
1439,Revenue,CAHD,South Glos Users in South Glos Homes,Permanent Nursing,Fshc  1St Floor,4508.93, 11-Apr-2017
1440,Revenue,CAHD,Bed Purchasing - Southmead Hospital,Permanent Nursing,Fshc  1St Floor,1202.94, 11-Apr-2017
1441,Revenue,CAHD,Bed Purchasing - Southmead Hospital,Permanent Nursing,Fshc  1St Floor,1187.5, 11-Apr-2017
1442,Revenue,CAHD,South Glos Users in South Glos Homes,Permanent Nursing,Fshc  1St Floor,509.45, 11-Apr-2017
1443,Revenue,CAHD,South Glos Users in South Glos Homes,Permanent Nursing,Fshc  1St Floor,509.45, 11-Apr-2017
1444,Revenue,CAHD,South Glos Users in South Glos Homes,Permanent Nursing,Fshc  1St Floor,509.45, 11-Apr-2017
1445,Revenue,CAHD,South Glos Users in South Glos Homes,Permanent Nursing,Fshc  1St Floor,1250, 11-Apr-2017
1446,Revenue,CAHD,Bed Purchasing - North,Permanent Nursing,Fshc  1St Floor,1274.62, 11-Apr-2017
1447,Revenue,CAHD,Bed Purchasing - North,Permanent Nursing,Fshc  1St Floor,1237.5, 11-Apr-2017
1448,Revenue,CAHD,Bed Purchasing - Southmead Hospital,Permanent Nursing,Fshc  1St Floor,1253.58, 11-Apr-2017
1449,Revenue,CAHD,Bed Purchasing - Southmead Hospital,Permanent Nursing,Fshc  1St Floor,1237.5, 11-Apr-2017
1450,Revenue,CAHD,South Glos Users in South Glos Homes,Permanent Nursing,Fshc  1St Floor,509.45, 11-Apr-2017
1451,Revenue,CAHD,Bed Purchasing - North,Permanent Nursing,Fshc  1St Floor,1049.94, 11-Apr-2017
1452,Revenue,CAHD,Bed Purchasing - North,Permanent Nursing,Fshc  1St Floor,1019.36, 11-Apr-2017
1453,Revenue,CAHD,South Glos Users in South Glos Homes,Permanent Nursing,Fshc  1St Floor,509.45, 11-Apr-2017
1454,Revenue,CAHD,South Glos Users in South Glos Homes,Permanent Nursing,Fshc  1St Floor,509.45, 11-Apr-2017
1455,Revenue,CAHD,Bed Purchasing - Southmead Hospital,Permanent Nursing,Fshc  1St Floor,1049.94, 11-Apr-2017
1456,Revenue,CAHD,Bed Purchasing - Southmead Hospital,Permanent Nursing,Fshc  1St Floor,1019.36, 11-Apr-2017
1457,Revenue,CAHD,South Glos Users in South Glos Homes,Permanent Nursing,Fshc  1St Floor,509.45, 11-Apr-2017
1458,Revenue,CAHD,Bed Purchasing - Southmead Hospital,Permanent Nursing,Fshc  1St Floor,9257.14, 11-Apr-2017
1459,Revenue,CAHD,South Glos Users in South Glos Homes,Permanent Nursing,Fshc  1St Floor,4486.61, 11-Apr-2017
1460,Revenue,CAHD,Bed Purchasing - Southmead Hospital,Permanent Nursing,Fshc  1St Floor,1620.8, 11-Apr-2017
1461,Revenue,CAHD,Bed Purchasing - Southmead Hospital,Permanent Nursing,Fshc  1St Floor,1600, 11-Apr-2017
1462,Revenue,CAHD,South Glos Users in South Glos Homes,Permanent Nursing,Fshc  1St Floor,509.45, 11-Apr-2017
1463,Revenue,CAHD,Bed Purchasing - North,Permanent Nursing,Fshc  1St Floor,1049.94, 11-Apr-2017
1464,Revenue,CAHD,Bed Purchasing - North,Permanent Nursing,Fshc  1St Floor,1019.36, 11-Apr-2017
1465,Revenue,CAHD,South Glos Users in South Glos Homes,Permanent Nursing,Fshc  1St Floor,509.45, 11-Apr-2017
1466,Revenue,CAHD,Bed Purchasing - South,Permanent Nursing,Fshc  1St Floor,1253.58, 11-Apr-2017
1467,Revenue,CAHD,Bed Purchasing - South,Permanent Nursing,Fshc  1St Floor,1237.5, 11-Apr-2017
1468,Revenue,CAHD,South Glos Users in South Glos Homes,Permanent Nursing,Fshc  1St Floor,509.45, 11-Apr-2017
1469,Revenue,CAHD,Bed Purchasing - Southmead Hospital,Permanent Nursing,Fshc  1St Floor,1049.94, 11-Apr-2017
1470,Revenue,CAHD,Bed Purchasing - Southmead Hospital,Permanent Nursing,Fshc  1St Floor,1019.36, 11-Apr-2017
1471,Revenue,CAHD,South Glos Users in South Glos Homes,Permanent Nursing,Fshc  1St Floor,509.45, 11-Apr-2017
1472,Revenue,CAHD,Bed Purchasing - South,Permanent Residential,Fshc  1St Floor,1114.3, 11-Apr-2017
1473,Revenue,CAHD,Bed Purchasing - South,Permanent Residential,Fshc  1St Floor,1100, 11-Apr-2017
1474,Revenue,CAHD,Bed Purchasing - South,Permanent Nursing,Fshc  1St Floor,1215.6, 11-Apr-2017
1475,Revenue,CAHD,Bed Purchasing - South,Permanent Nursing,Fshc  1St Floor,1200, 11-Apr-2017
1476,Revenue,CAHD,South Glos Users in South Glos Homes,Permanent Nursing,Fshc  1St Floor,509.45, 11-Apr-2017
1477,Revenue,CAHD,Bed Purchasing - South,Permanent Nursing,Fshc  1St Floor,1049.94, 11-Apr-2017
1478,Revenue,CAHD,Bed Purchasing - South,Permanent Nursing,Fshc  1St Floor,1019.36, 11-Apr-2017
1479,Revenue,CAHD,South Glos Users in South Glos Homes,Permanent Nursing,Fshc  1St Floor,509.45, 11-Apr-2017
1480,Revenue,CAHD,Bed Purchasing - Southmead Hospital,Permanent Nursing,Fshc  1St Floor,1049.94, 11-Apr-2017
1481,Revenue,CAHD,Bed Purchasing - Southmead Hospital,Permanent Nursing,Fshc  1St Floor,1019.36, 11-Apr-2017
1482,Revenue,CAHD,South Glos Users in South Glos Homes,Permanent Nursing,Fshc  1St Floor,509.45, 11-Apr-2017
1483,Revenue,CAHD,Bed Purchasing - Southmead Hospital,Permanent Residential,Fshc  1St Floor,1070, 11-Apr-2017
1484,Revenue,CAHD,Bed Purchasing - Southmead Hospital,Permanent Residential,Fshc  1St Floor,1055.76, 11-Apr-2017
1485,Revenue,CAHD,South Glos Users in South Glos Homes,Permanent Nursing,Fshc  1St Floor,509.45, 11-Apr-2017
1486,Revenue,CAHD,South Glos Users in South Glos Homes,Permanent Nursing,Fshc  1St Floor,509.45, 11-Apr-2017
1487,Revenue,CAHD,Bed Purchasing - South,Permanent Residential,Fshc  1St Floor,1091.18, 11-Apr-2017
1488,Revenue,CAHD,Bed Purchasing - South,Permanent Residential,Fshc  1St Floor,1077.18, 11-Apr-2017
1489,Revenue,CAHD,Bed Purchasing - North,Permanent Nursing,Fshc  1St Floor,1049.94, 11-Apr-2017
1490,Revenue,CAHD,Bed Purchasing - North,Permanent Nursing,Fshc  1St Floor,1019.36, 11-Apr-2017
1491,Revenue,CAHD,South Glos Users in South Glos Homes,Permanent Nursing,Fshc  1St Floor,509.45, 11-Apr-2017
1492,Revenue,CAHD,Bed Purchasing - Southmead Hospital,Permanent Nursing,Fshc  1St Floor,1049.94, 11-Apr-2017
1493,Revenue,CAHD,Bed Purchasing - Southmead Hospital,Permanent Nursing,Fshc  1St Floor,1019.36, 11-Apr-2017
1494,Revenue,CAHD,South Glos Users in South Glos Homes,Permanent Nursing,Fshc  1St Floor,509.45, 11-Apr-2017
1495,Revenue,CAHD,Bed Purchasing - South,Permanent Nursing,Fshc  1St Floor,1105.08, 11-Apr-2017
1496,Revenue,CAHD,Bed Purchasing - South,Permanent Nursing,Fshc  1St Floor,1072.9, 11-Apr-2017
1497,Revenue,CAHD,South Glos Users in South Glos Homes,Permanent Nursing,Fshc  1St Floor,509.45, 11-Apr-2017
1498,Revenue,CAHD,South Glos Users in South Glos Homes,Permanent Nursing,Fshc  1St Floor,509.45, 11-Apr-2017
1499,Revenue,CAHD,Bed Purchasing - Southmead Hospital,Permanent Nursing,Fshc  1St Floor,1049.94, 11-Apr-2017
1500,Revenue,CAHD,Bed Purchasing - Southmead Hospital,Permanent Nursing,Fshc  1St Floor,1019.36, 11-Apr-2017
1501,Revenue,CAHD,South Glos Users in South Glos Homes,Permanent Nursing,Fshc  1St Floor,509.45, 11-Apr-2017
1502,Revenue,CAHD,Bed Purchasing - Southmead Hospital,Permanent Nursing,Fshc  1St Floor,1129.46, 11-Apr-2017
1503,Revenue,CAHD,Bed Purchasing - Southmead Hospital,Permanent Nursing,Fshc  1St Floor,1114.96, 11-Apr-2017
1504,Revenue,CAHD,South Glos Users in South Glos Homes,Permanent Nursing,Fshc  1St Floor,509.45, 11-Apr-2017
1505,Revenue,CAHD,South Glos Users in South Glos Homes,Permanent Nursing,Fshc  1St Floor,1897.32, 11-Apr-2017
1506,Revenue,CAHD,South Glos Users in South Glos Homes,Permanent Nursing,Fshc  1St Floor,509.45, 11-Apr-2017
1507,Revenue,CAHD,South Glos Users in South Glos Homes,Permanent Nursing,Fshc  1St Floor,509.45, 11-Apr-2017
1508,Revenue,CAHD,South Glos Users in South Glos Homes,Permanent Nursing,Fshc  1St Floor,3616.07, 11-Apr-2017
1509,Revenue,CAHD,Bed Purchasing - South,Permanent Residential,Fshc  1St Floor,979.28, 11-Apr-2017
1510,Revenue,CAHD,Bed Purchasing - South,Permanent Residential,Fshc  1St Floor,950.76, 11-Apr-2017
1511,Revenue,CAHD,Bed Purchasing - Southmead Hospital,Permanent Nursing,Fshc  1St Floor,1049.94, 11-Apr-2017
1512,Revenue,CAHD,Bed Purchasing - Southmead Hospital,Permanent Nursing,Fshc  1St Floor,1019.36, 11-Apr-2017
1513,Revenue,CAHD,South Glos Users in South Glos Homes,Permanent Nursing,Fshc  1St Floor,509.45, 11-Apr-2017
1514,Revenue,CAHD,Bed Purchasing - South,Permanent Nursing,Fshc  1St Floor,1418.2, 11-Apr-2017
1515,Revenue,CAHD,Bed Purchasing - South,Permanent Nursing,Fshc  1St Floor,1400, 11-Apr-2017
1516,Revenue,CAHD,Bed Purchasing - Southmead Hospital,Permanent Nursing,Fshc  1St Floor,1049.94, 11-Apr-2017
1517,Revenue,CAHD,Bed Purchasing - Southmead Hospital,Permanent Nursing,Fshc  1St Floor,1019.36, 11-Apr-2017
1518,Revenue,CAHD,South Glos Users in South Glos Homes,Permanent Nursing,Fshc  1St Floor,509.45, 11-Apr-2017
1519,Revenue,CAHD,Bed Purchasing - Southmead Hospital,Permanent Nursing,Fshc  1St Floor,1049.94, 11-Apr-2017
1520,Revenue,CAHD,Bed Purchasing - Southmead Hospital,Permanent Nursing,Fshc  1St Floor,1019.36, 11-Apr-2017
1521,Revenue,CAHD,South Glos Users in South Glos Homes,Permanent Nursing,Fshc  1St Floor,509.45, 11-Apr-2017
1522,Revenue,CAHD,South Glos Users in South Glos Homes,Permanent Nursing,Fshc  1St Floor,509.45, 11-Apr-2017
1523,Revenue,CAHD,Bed Purchasing - North,Permanent Residential,Fshc  1St Floor,1200, 11-Apr-2017
1524,Revenue,CAHD,Bed Purchasing - North,Permanent Residential,Fshc  1St Floor,607.8, 11-Apr-2017
1525,Revenue,CAHD,Bed Purchasing - North,Permanent Residential,Fshc  1St Floor,607.8, 11-Apr-2017
1526,Revenue,CAHD,Bed Purchasing - South,Permanent Nursing,Fshc  1St Floor,1316.9, 11-Apr-2017
1527,Revenue,CAHD,Bed Purchasing - South,Permanent Nursing,Fshc  1St Floor,1300, 11-Apr-2017
1528,Revenue,CAHD,Bed Purchasing - South,Fees & Charges Income - General,Fshc  1St Floor,3534.65, 11-Apr-2017
1529,Revenue,CAHD,Bed Purchasing - South,Permanent Nursing,Fshc  1St Floor,1005.28, 11-Apr-2017
1530,Revenue,CAHD,Bed Purchasing - South,Permanent Nursing,Fshc  1St Floor,976, 11-Apr-2017
1531,Revenue,CAHD,Bed Purchasing - South,Permanent Nursing,Fshc  1St Floor,1049.94, 11-Apr-2017
1532,Revenue,CAHD,Bed Purchasing - South,Permanent Nursing,Fshc  1St Floor,1019.36, 11-Apr-2017
1533,Revenue,CAHD,South Glos Users in South Glos Homes,Permanent Nursing,Fshc  1St Floor,509.45, 11-Apr-2017
1534,Revenue,CAHD,Bed Purchasing - South,Permanent Nursing,Fshc  1St Floor,1162.04, 11-Apr-2017
1535,Revenue,CAHD,Bed Purchasing - South,Permanent Nursing,Fshc  1St Floor,1177.14, 11-Apr-2017
1536,Revenue,CAHD,South Glos Users in South Glos Homes,Permanent Nursing,Fshc  1St Floor,509.45, 11-Apr-2017
1537,Revenue,CAHD,Bed Purchasing - South,Permanent Nursing,Fshc  1St Floor,1087.44, 11-Apr-2017
1538,Revenue,CAHD,Bed Purchasing - South,Permanent Nursing,Fshc  1St Floor,1055.76, 11-Apr-2017
1539,Revenue,CAHD,South Glos Users in South Glos Homes,Permanent Nursing,Fshc  1St Floor,509.45, 11-Apr-2017
1540,Revenue,CAHD,Bed Purchasing - South,Permanent Residential,Fshc  1St Floor,1091.18, 11-Apr-2017
1541,Revenue,CAHD,Bed Purchasing - South,Permanent Residential,Fshc  1St Floor,1077.18, 11-Apr-2017
1542,Revenue,CAHD,Bed Purchasing - South,Permanent Nursing,Fshc  1St Floor,977.48, 11-Apr-2017
1543,Revenue,CAHD,Bed Purchasing - South,Permanent Nursing,Fshc  1St Floor,964.94, 11-Apr-2017
1544,Revenue,CAHD,Bed Purchasing - Southmead Hospital,Permanent Nursing,Fshc  1St Floor,1437.48, 11-Apr-2017
1545,Revenue,CAHD,Bed Purchasing - Southmead Hospital,Permanent Nursing,Fshc  1St Floor,1419.04, 11-Apr-2017
1546,Revenue,CAHD,Bed purchasing - Elderly S117 - South,Permanent Nursing,Fshc  1St Floor,977.48, 11-Apr-2017
1547,Revenue,CAHD,Bed purchasing - Elderly S117 - South,Permanent Nursing,Fshc  1St Floor,964.94, 11-Apr-2017
1548,Revenue,CAHD,Bed Purchasing - South,Permanent Nursing,Fshc  1St Floor,1722.1, 11-Apr-2017
1549,Revenue,CAHD,Bed Purchasing - South,Permanent Nursing,Fshc  1St Floor,1700, 11-Apr-2017
1550,Revenue,CAHD,Bed Purchasing - South,Permanent Nursing,Fshc  1St Floor,1316.9, 11-Apr-2017
1551,Revenue,CAHD,Bed Purchasing - South,Permanent Nursing,Fshc  1St Floor,1300, 11-Apr-2017
1552,Revenue,CAHD,Bed Purchasing - South,Permanent Nursing,Fshc  1St Floor,1924.7, 11-Apr-2017
1553,Revenue,CAHD,Bed Purchasing - South,Permanent Nursing,Fshc  1St Floor,1900, 11-Apr-2017
1554,Revenue,CAHD,Bed Purchasing - South,Permanent Nursing,Fshc  1St Floor,1628.57, 11-Apr-2017
1555,Revenue,CAHD,Bed Purchasing - Southmead Hospital,Permanent Nursing,Fshc  1St Floor,977.48, 11-Apr-2017
1556,Revenue,CAHD,Bed Purchasing - Southmead Hospital,Permanent Nursing,Fshc  1St Floor,964.94, 11-Apr-2017
1557,Revenue,CAHD,Bed Purchasing - Southmead Hospital,Permanent Nursing,Fshc  1St Floor,977.48, 11-Apr-2017
1558,Revenue,CAHD,Bed Purchasing - Southmead Hospital,Permanent Nursing,Fshc  1St Floor,964.94, 11-Apr-2017
1559,Revenue,CAHD,Bed Purchasing - Southmead Hospital,Permanent Nursing,Fshc  1St Floor,977.48, 11-Apr-2017
1560,Revenue,CAHD,Bed Purchasing - Southmead Hospital,Permanent Nursing,Fshc  1St Floor,964.94, 11-Apr-2017
1561,Revenue,CAHD,Bed Purchasing - South,Permanent Nursing,Fshc  1St Floor,977.48, 11-Apr-2017
1562,Revenue,CAHD,Bed Purchasing - South,Permanent Nursing,Fshc  1St Floor,964.94, 11-Apr-2017
1563,Revenue,CAHD,Bed Purchasing - South,Permanent Residential,Fshc  1St Floor,1794.06, 11-Apr-2017
1564,Revenue,CAHD,Bed Purchasing - South,Permanent Residential,Fshc  1St Floor,1771.04, 11-Apr-2017
1565,Revenue,CAHD,Bed Purchasing - Southmead Hospital,Permanent Residential,Fshc  1St Floor,985.68, 11-Apr-2017
1566,Revenue,CAHD,Bed Purchasing - Southmead Hospital,Permanent Residential,Fshc  1St Floor,973.04, 11-Apr-2017
1567,Revenue,CAHD,Bed Purchasing - North,Permanent Nursing,Fshc  1St Floor,1108.94, 11-Apr-2017
1568,Revenue,CAHD,Bed Purchasing - North,Permanent Nursing,Fshc  1St Floor,1094.7, 11-Apr-2017
1569,Revenue,CAHD,Bed Purchasing - Southmead Hospital,Respite Planned - Nursing,Fshc  1St Floor,1108.94, 11-Apr-2017
1570,Revenue,CAHD,Bed Purchasing - Southmead Hospital,Respite Planned - Nursing,Fshc  1St Floor,1094.7, 11-Apr-2017
1571,Revenue,CAHD,Bed Purchasing - North,Permanent Nursing,Fshc  1St Floor,1007.14, 11-Apr-2017
1572,Revenue,CAHD,Bed Purchasing - North,Permanent Nursing,Fshc  1St Floor,994.22, 11-Apr-2017
1573,Revenue,CAHD,South Glos Users in South Glos Homes,Permanent Nursing,Fshc  1St Floor,509.45, 11-Apr-2017
1574,Revenue,CAHD,Bed Purchasing - North,Permanent Nursing,Fshc  1St Floor,1108.94, 11-Apr-2017
1575,Revenue,CAHD,Bed Purchasing - North,Permanent Nursing,Fshc  1St Floor,1094.7, 11-Apr-2017
1576,Revenue,CAHD,Bed Purchasing - North,Permanent Nursing,Fshc  1St Floor,1108.94, 11-Apr-2017
1577,Revenue,CAHD,Bed Purchasing - North,Permanent Nursing,Fshc  1St Floor,1094.7, 11-Apr-2017
1578,Revenue,CAHD,Bed Purchasing - Southmead Hospital,Permanent Nursing,Fshc  1St Floor,1108.94, 11-Apr-2017
1579,Revenue,CAHD,Bed Purchasing - Southmead Hospital,Permanent Nursing,Fshc  1St Floor,1094.7, 11-Apr-2017
1580,Revenue,CAHD,Bed Purchasing - North,Permanent Nursing,Fshc  1St Floor,977.48, 11-Apr-2017
1581,Revenue,CAHD,Bed Purchasing - North,Permanent Nursing,Fshc  1St Floor,964.94, 11-Apr-2017
1582,Revenue,CAHD,Bed Purchasing - Southmead Hospital,Permanent Nursing,Fshc  1St Floor,3528.57, 11-Apr-2017
1583,Revenue,CAHD,Bed Purchasing - Southmead Hospital,Permanent Nursing,Fshc  1St Floor,1316.9, 11-Apr-2017
1584,Revenue,CAHD,Bed Purchasing - Southmead Hospital,Permanent Nursing,Fshc  1St Floor,1300, 11-Apr-2017
1585,Revenue,CAHD,Bed Purchasing - Southmead Hospital,Fees & Charges Income - General,Fshc  1St Floor,690.84, 11-Apr-2017
1586,Revenue,CAHD,Bed Purchasing - South,Permanent Residential,Fshc  1St Floor,1114.3, 11-Apr-2017
1587,Revenue,CAHD,Bed Purchasing - South,Permanent Residential,Fshc  1St Floor,1100, 11-Apr-2017
1588,Revenue,CAHD,Bed Purchasing - North,Permanent Residential,Fshc  1St Floor,927.56, 11-Apr-2017
1589,Revenue,CAHD,Bed Purchasing - North,Permanent Residential,Fshc  1St Floor,915.66, 11-Apr-2017
1591,Revenue,CAHD,Bed Purchasing - South,Permanent Residential,Gladstone House,2874.98, 11-Apr-2017
1592,Revenue,CAHD,Bed Purchasing - South,Permanent Residential,Gladstone House,2838.08, 11-Apr-2017
1593,Revenue,CAHD,Bed Purchasing - North,Permanent Residential,Glan Y Felin,3260.04, 11-Apr-2017
1594,Revenue,CAHD,Bed Purchasing - North,Permanent Residential,Glan Y Felin,3218.2, 11-Apr-2017
1595,Revenue,CAHD,Bed Purchasing - South,Permanent Residential,Glasallt Fawr,2560.92, 11-Apr-2017
1596,Revenue,CAHD,Bed Purchasing - South,Permanent Residential,Glasallt Fawr,2528.06, 11-Apr-2017
1597,Revenue,CAHD,South Glos Users in South Glos Homes,Permanent Nursing,Glebe House Nursing Home,509.45, 11-Apr-2017
1598,Revenue,CAHD,Bed Purchasing - North,Permanent Residential,Glebe House Nursing Home,1722.1, 11-Apr-2017
1599,Revenue,CAHD,Bed Purchasing - North,Permanent Residential,Glebe House Nursing Home,1092.86, 11-Apr-2017
1600,Revenue,CAHD,South Glos Users in South Glos Homes,Permanent Nursing,Glebe House Nursing Home,509.45, 11-Apr-2017
1601,Revenue,CAHD,South Glos Users in South Glos Homes,Permanent Nursing,Glebe House Nursing Home,509.45, 11-Apr-2017
1602,Revenue,CAHD,South Glos Users in South Glos Homes,Permanent Nursing,Glebe House Nursing Home,781.25, 11-Apr-2017
1603,Revenue,CAHD,South Glos Users in South Glos Homes,Permanent Nursing,Glebe House Nursing Home,509.45, 11-Apr-2017
1604,Revenue,CAHD,South Glos Users in South Glos Homes,Permanent Nursing,Glebe House Nursing Home,509.45, 11-Apr-2017
1605,Revenue,CAHD,Bed Purchasing - North,Permanent Nursing,Glebe House Nursing Home,1577.12, 11-Apr-2017
1606,Revenue,CAHD,Bed Purchasing - North,Permanent Nursing,Glebe House Nursing Home,1556.88, 11-Apr-2017
1607,Revenue,CAHD,South Glos Users in South Glos Homes,Permanent Nursing,Glebe House Nursing Home,509.45, 11-Apr-2017
1608,Revenue,CAHD,South Glos Users in South Glos Homes,Permanent Nursing,Glebe House Nursing Home,509.45, 11-Apr-2017
1609,Revenue,CAHD,South Glos Users in South Glos Homes,Permanent Nursing,Glebe House Nursing Home,509.45, 11-Apr-2017
1610,Revenue,CAHD,Bed Purchasing - North,Permanent Residential,Glebe House Nursing Home,1535.14, 11-Apr-2017
1611,Revenue,CAHD,Bed Purchasing - North,Permanent Residential,Glebe House Nursing Home,1515.44, 11-Apr-2017
1612,Revenue,CAHD,South Glos Users in South Glos Homes,Permanent Nursing,Glebe House Nursing Home,509.45, 11-Apr-2017
1613,Revenue,CAHD,South Glos Users in South Glos Homes,Permanent Nursing,Glebe House Nursing Home,509.45, 11-Apr-2017
1614,Revenue,CAHD,Bed Purchasing - North,Permanent Nursing,Glebe House Nursing Home,1521.68, 11-Apr-2017
1615,Revenue,CAHD,Bed Purchasing - North,Permanent Nursing,Glebe House Nursing Home,1502.16, 11-Apr-2017
1616,Revenue,CAHD,South Glos Users in South Glos Homes,Permanent Nursing,Glebe House Nursing Home,509.45, 11-Apr-2017
1617,Revenue,CAHD,South Glos Users in South Glos Homes,Permanent Nursing,Glebe House Nursing Home,509.45, 11-Apr-2017
1618,Revenue,CAHD,South Glos Users in South Glos Homes,Permanent Nursing,Glebe House Nursing Home,509.45, 11-Apr-2017
1619,Revenue,CAHD,South Glos Users in South Glos Homes,Permanent Nursing,Glebe House Nursing Home,509.45, 11-Apr-2017
1620,Revenue,CAHD,South Glos Users in South Glos Homes,Permanent Nursing,Glebe House Nursing Home,3080.36, 11-Apr-2017
1621,Revenue,CAHD,South Glos Users in South Glos Homes,Permanent Nursing,Glebe House Nursing Home,509.45, 11-Apr-2017
1622,Revenue,CAHD,South Glos Users in South Glos Homes,Permanent Nursing,Glebe House Nursing Home,509.45, 11-Apr-2017
1623,Revenue,CAHD,South Glos Users in South Glos Homes,Permanent Nursing,Glebe House Nursing Home,509.45, 11-Apr-2017
1624,Revenue,CAHD,South Glos Users in South Glos Homes,Permanent Nursing,Glebe House Nursing Home,509.45, 11-Apr-2017
1625,Revenue,CAHD,Bed Purchasing - South,Permanent Residential,Glebe House Nursing Home,1650, 11-Apr-2017
1626,Revenue,CAHD,Bed Purchasing - South,Permanent Residential,Glebe House Nursing Home,1671.46, 11-Apr-2017
1627,Revenue,CAHD,South Glos Users in South Glos Homes,Permanent Nursing,Glebe House Nursing Home,509.45, 11-Apr-2017
1628,Revenue,CAHD,South Glos Users in South Glos Homes,Permanent Nursing,Glebe House Nursing Home,509.45, 11-Apr-2017
1629,Revenue,CAHD,Bed Purchasing - North,Permanent Nursing,Glebe House Nursing Home,1608.14, 11-Apr-2017
1630,Revenue,CAHD,Bed Purchasing - North,Permanent Nursing,Glebe House Nursing Home,1587.5, 11-Apr-2017
1631,Revenue,CAHD,South Glos Users in South Glos Homes,Permanent Nursing,Glebe House Nursing Home,509.45, 11-Apr-2017
1632,Revenue,CAHD,South Glos Users in South Glos Homes,Permanent Nursing,Glebe House Nursing Home,1049.11, 11-Apr-2017
1633,Revenue,CAHD,South Glos Users in South Glos Homes,Permanent Nursing,Glebe House Nursing Home,509.45, 11-Apr-2017
1634,Revenue,CAHD,South Glos Users in South Glos Homes,Permanent Nursing,Glebe House Nursing Home,509.45, 11-Apr-2017
1635,Revenue,CAHD,South Glos Users in South Glos Homes,Permanent Nursing,Glebe House Nursing Home,509.45, 11-Apr-2017
1639,Revenue,CAHD,Bed Purchasing - South,Permanent Residential,Goldcare House,1489.64, 11-Apr-2017
1640,Revenue,CAHD,Bed Purchasing - South,Permanent Residential,Goldcare House,1470.52, 11-Apr-2017
1641,Revenue,CAHD,Bed Purchasing - South,Permanent Residential,Gordena Care Home,1293.4, 11-Apr-2017
1642,Revenue,CAHD,Bed Purchasing - South,Permanent Residential,Gordena Care Home,1255.72, 11-Apr-2017
1643,Revenue,CAHD,Bed Purchasing - South,Permanent Residential,Gordena Care Home,1841.42, 11-Apr-2017
1644,Revenue,CAHD,Bed Purchasing - South,Permanent Residential,Gordena Care Home,1787.78, 11-Apr-2017
1645,Revenue,CAHD,Bed Purchasing - South,Permanent Residential,Gordena Care Home,1291.3, 11-Apr-2017
1646,Revenue,CAHD,Bed Purchasing - South,Permanent Residential,Gordena Care Home,1253.68, 11-Apr-2017
1647,Revenue,CAHD,Bed Purchasing - South,Permanent Residential,Gordena Care Home,2146.94, 11-Apr-2017
1648,Revenue,CAHD,Bed Purchasing - South,Permanent Residential,Gordena Care Home,2084.4, 11-Apr-2017
1649,Revenue,CAHD,Bed Purchasing - South,Permanent Residential,Gordena Care Home,1847.02, 11-Apr-2017
1650,Revenue,CAHD,Bed Purchasing - South,Permanent Residential,Gordena Care Home,1793.22, 11-Apr-2017
1651,Revenue,CAHD,Bed Purchasing - South,Permanent Residential,Gordena Care Limited,2413.44, 11-Apr-2017
1652,Revenue,CAHD,Bed Purchasing - South,Permanent Residential,Gordena Care Limited,2343.14, 11-Apr-2017
1653,Revenue,CAHD,Bed Purchasing - South,Permanent Residential,Gordena Care Limited,2393.22, 11-Apr-2017
1654,Revenue,CAHD,Bed Purchasing - South,Permanent Residential,Gordena Care Limited,2323.52, 11-Apr-2017
1655,Revenue,CAHD,Bed purchasing - S28A Under 65 - South,Permanent Residential,Gordena Care Limited,2347.2, 11-Apr-2017
1656,Revenue,CAHD,Bed purchasing - S28A Under 65 - South,Permanent Residential,Gordena Care Limited,2278.84, 11-Apr-2017
1657,Revenue,CAHD,Bed Purchasing - North,Permanent Residential,Gordena Care Limited,2446.32, 11-Apr-2017
1658,Revenue,CAHD,Bed Purchasing - North,Permanent Residential,Gordena Care Limited,2375.06, 11-Apr-2017
1659,Revenue,CAHD,Bed Purchasing - South,Permanent Nursing,Gracefields Nursing Home,1243.26, 11-Apr-2017
1660,Revenue,CAHD,Bed Purchasing - South,Permanent Nursing,Gracefields Nursing Home,1227.3, 11-Apr-2017
1661,Revenue,CAHD,South Glos Users in South Glos Homes,Permanent Nursing,Gracefields Nursing Home,509.45, 11-Apr-2017
1662,Revenue,CAHD,South Glos Users in South Glos Homes,Permanent Nursing,Gracefields Nursing Home,509.45, 11-Apr-2017
1663,Revenue,CAHD,South Glos Users in South Glos Homes,Permanent Nursing,Gracefields Nursing Home,7232.14, 11-Apr-2017
1664,Revenue,CAHD,South Glos Users in South Glos Homes,Permanent Nursing,Gracefields Nursing Home,509.45, 11-Apr-2017
1665,Revenue,CAHD,Bed Purchasing - Southmead Hospital,Permanent Nursing,Gracefields Nursing Home,1222.84, 11-Apr-2017
1666,Revenue,CAHD,Bed Purchasing - Southmead Hospital,Permanent Nursing,Gracefields Nursing Home,1207.14, 11-Apr-2017
1667,Revenue,CAHD,South Glos Users in South Glos Homes,Permanent Nursing,Gracefields Nursing Home,509.45, 11-Apr-2017
1668,Revenue,CAHD,South Glos Users in South Glos Homes,Permanent Nursing,Gracefields Nursing Home,509.45, 11-Apr-2017
1669,Revenue,CAHD,Bed purchasing - Elderly S117 - South,Permanent Nursing,Gracefields Nursing Home,1222.84, 11-Apr-2017
1670,Revenue,CAHD,Bed purchasing - Elderly S117 - South,Permanent Nursing,Gracefields Nursing Home,1207.14, 11-Apr-2017
1671,Revenue,CAHD,South Glos Users in South Glos Homes,Permanent Nursing,Gracefields Nursing Home,509.45, 11-Apr-2017
1672,Revenue,CAHD,South Glos Users in South Glos Homes,Permanent Nursing,Gracefields Nursing Home,509.45, 11-Apr-2017
1673,Revenue,CAHD,Bed Purchasing - South,Permanent Nursing,Gracefields Nursing Home,1637, 11-Apr-2017
1674,Revenue,CAHD,Bed Purchasing - South,Permanent Nursing,Gracefields Nursing Home,1616, 11-Apr-2017
1675,Revenue,CAHD,South Glos Users in South Glos Homes,Permanent Nursing,Gracefields Nursing Home,509.45, 11-Apr-2017
1676,Revenue,CAHD,Bed Purchasing - South,Permanent Nursing,Gracefields Nursing Home,1547.36, 11-Apr-2017
1677,Revenue,CAHD,Bed Purchasing - South,Permanent Nursing,Gracefields Nursing Home,1527.5, 11-Apr-2017
1678,Revenue,CAHD,South Glos Users in South Glos Homes,Permanent Nursing,Gracefields Nursing Home,509.45, 11-Apr-2017
1679,Revenue,CAHD,South Glos Users in South Glos Homes,Permanent Nursing,Gracefields Nursing Home,509.45, 11-Apr-2017
1680,Revenue,CAHD,South Glos Users in South Glos Homes,Permanent Nursing,Gracefields Nursing Home,509.45, 11-Apr-2017
1681,Revenue,CAHD,South Glos Users in South Glos Homes,Permanent Nursing,Gracefields Nursing Home,509.45, 11-Apr-2017
1682,Revenue,CAHD,South Glos Users in South Glos Homes,Permanent Nursing,Gracefields Nursing Home,509.45, 11-Apr-2017
1683,Revenue,CAHD,South Glos Users in South Glos Homes,Permanent Nursing,Gracefields Nursing Home,509.45, 11-Apr-2017
1684,Revenue,CAHD,South Glos Users in South Glos Homes,Permanent Nursing,Gracefields Nursing Home,509.45, 11-Apr-2017
1685,Revenue,CAHD,South Glos Users in South Glos Homes,Permanent Nursing,Gracefields Nursing Home,509.45, 11-Apr-2017
1686,Revenue,CAHD,South Glos Users in South Glos Homes,Permanent Nursing,Gracefields Nursing Home,509.45, 11-Apr-2017
1687,Revenue,CAHD,South Glos Users in South Glos Homes,Permanent Nursing,Gracefields Nursing Home,509.45, 11-Apr-2017
1688,Revenue,CAHD,South Glos Users in South Glos Homes,Permanent Nursing,Gracefields Nursing Home,509.45, 11-Apr-2017
1689,Revenue,CAHD,Bed Purchasing - Southmead Hospital,Permanent Nursing,Gracefields Nursing Home,1395.4, 11-Apr-2017
1690,Revenue,CAHD,Bed Purchasing - Southmead Hospital,Permanent Nursing,Gracefields Nursing Home,1377.5, 11-Apr-2017
1691,Revenue,CAHD,South Glos Users in South Glos Homes,Permanent Nursing,Gracefields Nursing Home,509.45, 11-Apr-2017
1692,Revenue,CAHD,South Glos Users in South Glos Homes,Permanent Nursing,Gracefields Nursing Home,3995.54, 11-Apr-2017
1693,Revenue,CAHD,Bed Purchasing - Southmead Hospital,Permanent Nursing,Gracefields Nursing Home,1547.36, 11-Apr-2017
1694,Revenue,CAHD,Bed Purchasing - Southmead Hospital,Permanent Nursing,Gracefields Nursing Home,1527.5, 11-Apr-2017
1695,Revenue,CAHD,South Glos Users in South Glos Homes,Permanent Nursing,Gracefields Nursing Home,509.45, 11-Apr-2017
1696,Revenue,CAHD,South Glos Users in South Glos Homes,Permanent Nursing,Gracefields Nursing Home,509.45, 11-Apr-2017
1697,Revenue,CAHD,South Glos Users in South Glos Homes,Permanent Nursing,Gracefields Nursing Home,509.45, 11-Apr-2017
1698,Revenue,CAHD,Bed Purchasing - South,Permanent Nursing,Gracefields Nursing Home,1485.06, 11-Apr-2017
1699,Revenue,CAHD,Bed Purchasing - South,Permanent Nursing,Gracefields Nursing Home,1466, 11-Apr-2017
1700,Revenue,CAHD,South Glos Users in South Glos Homes,Permanent Nursing,Gracefields Nursing Home,509.45, 11-Apr-2017
1701,Revenue,CAHD,South Glos Users in South Glos Homes,Permanent Nursing,Gracefields Nursing Home,509.45, 11-Apr-2017
1702,Revenue,CAHD,South Glos Users in South Glos Homes,Permanent Nursing,Gracefields Nursing Home,509.45, 11-Apr-2017
1703,Revenue,CAHD,South Glos Users in South Glos Homes,Permanent Nursing,Gracefields Nursing Home,509.45, 11-Apr-2017
1704,Revenue,CAHD,South Glos Users in South Glos Homes,Permanent Nursing,Gracefields Nursing Home,509.45, 11-Apr-2017
1705,Revenue,CAHD,Bed Purchasing - South,Permanent Nursing,Gracefields Nursing Home,1222.84, 11-Apr-2017
1706,Revenue,CAHD,Bed Purchasing - South,Permanent Nursing,Gracefields Nursing Home,1207.14, 11-Apr-2017
1707,Revenue,CAHD,South Glos Users in South Glos Homes,Permanent Nursing,Gracefields Nursing Home,509.45, 11-Apr-2017
1708,Revenue,CAHD,South Glos Users in South Glos Homes,Permanent Nursing,Gracefields Nursing Home,509.45, 11-Apr-2017
1709,Revenue,CAHD,Bed Purchasing - South,Permanent Nursing,Gracefields Nursing Home,1434.4, 11-Apr-2017
1710,Revenue,CAHD,Bed Purchasing - South,Permanent Nursing,Gracefields Nursing Home,1416, 11-Apr-2017
1711,Revenue,CAHD,South Glos Users in South Glos Homes,Permanent Nursing,Gracefields Nursing Home,509.45, 11-Apr-2017
1712,Revenue,CAHD,South Glos Users in South Glos Homes,Permanent Nursing,Gracefields Nursing Home,3705.36, 11-Apr-2017
1713,Revenue,CAHD,Bed Purchasing - Southmead Hospital,Permanent Nursing,Gracefields Nursing Home,1547.36, 11-Apr-2017
1714,Revenue,CAHD,Bed Purchasing - Southmead Hospital,Permanent Nursing,Gracefields Nursing Home,1527.5, 11-Apr-2017
1715,Revenue,CAHD,South Glos Users in South Glos Homes,Permanent Nursing,Gracefields Nursing Home,509.45, 11-Apr-2017
1716,Revenue,CAHD,South Glos Users in South Glos Homes,Permanent Nursing,Gracefields Nursing Home,509.45, 11-Apr-2017
1717,Revenue,CAHD,Bed Purchasing - Southmead Hospital,Permanent Nursing,Gracefields Nursing Home,1222.84, 11-Apr-2017
1718,Revenue,CAHD,Bed Purchasing - Southmead Hospital,Permanent Nursing,Gracefields Nursing Home,1207.14, 11-Apr-2017
1719,Revenue,CAHD,South Glos Users in South Glos Homes,Permanent Nursing,Gracefields Nursing Home,509.45, 11-Apr-2017
1720,Revenue,CAHD,Bed Purchasing - Southmead Hospital,Permanent Nursing,Gracefields Nursing Home,1637, 11-Apr-2017
1721,Revenue,CAHD,Bed Purchasing - Southmead Hospital,Permanent Nursing,Gracefields Nursing Home,1616, 11-Apr-2017
1722,Revenue,CAHD,Bed Purchasing - Southmead Hospital,Permanent Residential,Granada House Residential Home,927.56, 11-Apr-2017
1723,Revenue,CAHD,Bed Purchasing - Southmead Hospital,Permanent Residential,Granada House Residential Home,915.66, 11-Apr-2017
1726,Revenue,CAHD,Bed Purchasing - North,Permanent Residential,Greensleeves,1018.36, 11-Apr-2017
1727,Revenue,CAHD,Bed Purchasing - North,Permanent Residential,Greensleeves,1005.3, 11-Apr-2017
1728,Revenue,CAHD,Bed Purchasing - South,Respite Emergency - Residential,Grove Care,2142.86, 11-Apr-2017
1729,Revenue,CAHD,Bed Purchasing - South,Permanent Residential,Gwendoline House,1119.18, 11-Apr-2017
1730,Revenue,CAHD,Bed Purchasing - South,Permanent Residential,Gwendoline House,1104.82, 11-Apr-2017
1731,Revenue,CAHD,Bed Purchasing - Southmead Hospital,Permanent Residential,Gwendoline House,1117.14, 11-Apr-2017
1732,Revenue,CAHD,Bed Purchasing - Southmead Hospital,Permanent Residential,Gwendoline House,1102.8, 11-Apr-2017
1733,Revenue,CAHD,Bed Purchasing - South,Permanent Residential,Gwendoline House,1119.18, 11-Apr-2017
1734,Revenue,CAHD,Bed Purchasing - South,Permanent Residential,Gwendoline House,1104.82, 11-Apr-2017
1735,Revenue,CAHD,Bed Purchasing - South,Permanent Residential,Gwendoline House,4512.86, 11-Apr-2017
1736,Revenue,CAHD,Bed Purchasing - South,Permanent Residential,Gwendoline House,1185.2, 11-Apr-2017
1737,Revenue,CAHD,Bed Purchasing - South,Permanent Residential,Gwendoline House,1170, 11-Apr-2017
1738,Revenue,CAHD,Bed Purchasing - South,Permanent Residential,Gwendoline House,1009.24, 11-Apr-2017
1739,Revenue,CAHD,Bed Purchasing - South,Permanent Residential,Gwendoline House,979.84, 11-Apr-2017
1740,Revenue,CAHD,Bed Purchasing - Southmead Hospital,Permanent Residential,Gwendoline House,1034.12, 11-Apr-2017
1741,Revenue,CAHD,Bed Purchasing - Southmead Hospital,Permanent Residential,Gwendoline House,1004, 11-Apr-2017
1748,Revenue,CAHD,CSC - Through & Leaving Care Team,Agency Staff (Admin/Support Staff) Pay,Hampton`s Resourcing,1593, 11-Apr-2017
1757,Revenue,CAHD,Bed Purchasing - South,Permanent Residential,Harefield Hall,1190.96, 11-Apr-2017
1758,Revenue,CAHD,Bed Purchasing - South,Permanent Residential,Harefield Hall,1175.68, 11-Apr-2017
1759,Revenue,CAHD,Bed Purchasing - South,Permanent Residential,Harefield Hall,1334.8, 11-Apr-2017
1760,Revenue,CAHD,Bed Purchasing - South,Permanent Residential,Harefield Hall,1317.68, 11-Apr-2017
1761,Revenue,CAHD,Bed Purchasing - South,Permanent Residential,Harefield Hall,8997.86, 11-Apr-2017
1762,Revenue,CAHD,Bed Purchasing - South,Permanent Residential,Harefield Hall,1501.26, 11-Apr-2017
1763,Revenue,CAHD,Bed Purchasing - South,Permanent Residential,Harefield Hall,1482, 11-Apr-2017
1764,Revenue,CAHD,Bed Purchasing - South,Fees & Charges Income - General,Harefield Hall,2252.64, 11-Apr-2017
1765,Revenue,CAHD,Bed Purchasing - South,Permanent Residential,Harefield Hall,1126.48, 11-Apr-2017
1766,Revenue,CAHD,Bed Purchasing - South,Permanent Residential,Harefield Hall,1112.02, 11-Apr-2017
1767,Revenue,CAHD,Bed Purchasing - South,Permanent Residential,Harefield Hall,1221.74, 11-Apr-2017
1768,Revenue,CAHD,Bed Purchasing - South,Permanent Residential,Harefield Hall,1206.06, 11-Apr-2017
1769,Revenue,CAHD,Bed Purchasing - South,Permanent Residential,Harefield Hall,1297.32, 11-Apr-2017
1770,Revenue,CAHD,Bed Purchasing - South,Permanent Residential,Harefield Hall,1280.68, 11-Apr-2017
1772,Revenue,CAHD,Bed Purchasing - Southmead Hospital,Permanent Nursing,Hazelwood Gardens Nursing Home,1122.94, 11-Apr-2017
1773,Revenue,CAHD,Bed Purchasing - Southmead Hospital,Permanent Nursing,Hazelwood Gardens Nursing Home,1108.52, 11-Apr-2017
1774,Revenue,CAHD,Bed Purchasing - Southmead Hospital,Permanent Nursing,Hc-One Ltd,1105.62, 11-Apr-2017
1775,Revenue,CAHD,Bed Purchasing - Southmead Hospital,Permanent Nursing,Hc-One Ltd,1091.44, 11-Apr-2017
1776,Revenue,CAHD,Bed Purchasing - Southmead Hospital,Permanent Nursing,Hc-One Ltd,1067.62, 11-Apr-2017
1777,Revenue,CAHD,Bed Purchasing - Southmead Hospital,Permanent Nursing,Hc-One Ltd,1053.92, 11-Apr-2017
1778,Revenue,CAHD,Bed Purchasing - Southmead Hospital,Permanent Nursing,Hc-One Ltd,1381.88, 11-Apr-2017
1779,Revenue,CAHD,Bed Purchasing - Southmead Hospital,Permanent Nursing,Hc-One Ltd,1364.14, 11-Apr-2017
1780,Revenue,CAHD,Bed Purchasing - Southmead Hospital,Permanent Nursing,Hc-One Ltd,682.07, 11-Apr-2017
1781,Revenue,CAHD,Bed Purchasing - North,Permanent Nursing,Hc-One Ltd,1065.32, 11-Apr-2017
1782,Revenue,CAHD,Bed Purchasing - North,Permanent Nursing,Hc-One Ltd,1051.64, 11-Apr-2017
1783,Revenue,CAHD,Bed Purchasing - North,Permanent Nursing,Hc-One Ltd,1058.18, 11-Apr-2017
1784,Revenue,CAHD,Bed Purchasing - North,Permanent Nursing,Hc-One Ltd,1044.6, 11-Apr-2017
1785,Revenue,CAHD,Bed Purchasing - Southmead Hospital,Permanent Nursing,Hc-One Ltd,1065.32, 11-Apr-2017
1786,Revenue,CAHD,Bed Purchasing - Southmead Hospital,Permanent Nursing,Hc-One Ltd,1051.64, 11-Apr-2017
1787,Revenue,CAHD,Bed Purchasing - South,Permanent Residential,Hc-One Ltd,1069.72, 11-Apr-2017
1788,Revenue,CAHD,Bed Purchasing - South,Permanent Residential,Hc-One Ltd,1056, 11-Apr-2017
1789,Revenue,CAHD,Bed Purchasing - Southmead Hospital,Permanent Nursing,Hc-One Ltd,1381.88, 11-Apr-2017
1790,Revenue,CAHD,Bed Purchasing - Southmead Hospital,Permanent Nursing,Hc-One Ltd,1364.14, 11-Apr-2017
1791,Revenue,CAHD,Bed Purchasing - North,Permanent Nursing,Hc-One Ltd,1065.32, 11-Apr-2017
1792,Revenue,CAHD,Bed Purchasing - North,Permanent Nursing,Hc-One Ltd,1051.64, 11-Apr-2017
1793,Revenue,CAHD,Bed Purchasing - North,Permanent Nursing,Hc-One Ltd,4807.5, 11-Apr-2017
1794,Revenue,CAHD,Bed Purchasing - North,Permanent Nursing,Hc-One Ltd,1065.3, 11-Apr-2017
1795,Revenue,CAHD,Bed Purchasing - North,Permanent Nursing,Hc-One Ltd,1051.64, 11-Apr-2017
1796,Revenue,CAHD,Bed Purchasing - North,Fees & Charges Income - General,Hc-One Ltd,1284.95, 11-Apr-2017
1797,Revenue,CAHD,Bed Purchasing - North,Fees & Charges Income - General,Hc-One Ltd,999.11, 11-Apr-2017
1798,Revenue,CAHD,Bed Purchasing - North,Permanent Residential,Hc-One Ltd,1084.54, 11-Apr-2017
1799,Revenue,CAHD,Bed Purchasing - North,Permanent Residential,Hc-One Ltd,1070.62, 11-Apr-2017
1800,Revenue,CAHD,Bed Purchasing - Southmead Hospital,Permanent Nursing,Hc-One Ltd,1381.88, 11-Apr-2017
1801,Revenue,CAHD,Bed Purchasing - Southmead Hospital,Permanent Nursing,Hc-One Ltd,1364.14, 11-Apr-2017
1802,Revenue,CAHD,Bed Purchasing - Southmead Hospital,Permanent Nursing,Hc-One Ltd,1280.4, 11-Apr-2017
1803,Revenue,CAHD,Bed Purchasing - Southmead Hospital,Permanent Nursing,Hc-One Ltd,1263.96, 11-Apr-2017
1808,Revenue,CAHD,Home Care - Elderly - South,Day Care / Social Activities,Headway Bristol,362.44, 11-Apr-2017
1809,Revenue,CAHD,Home Care - Elderly - South,Other Small Contracts,Headway Bristol,767.52, 11-Apr-2017
1810,Revenue,CAHD,Home Care - Elderly - North,Day Care / Social Activities,Headway Bristol,831.48, 11-Apr-2017
1811,Revenue,CAHD,Home Care - Elderly - North,Other Small Contracts,Headway Bristol,181.22, 11-Apr-2017
1838,Revenue,CAHD,S117 Placements PCT,Permanent Residential,Hesley Hall,9449.52, 11-Apr-2017
1839,Revenue,CAHD,S117 Placements PCT,Permanent Residential,Hesley Hall,9328.26, 11-Apr-2017
1840,Revenue,CAHD,Bed Purchasing - North,Permanent Residential,High Border Lodge,1000.84, 11-Apr-2017
1841,Revenue,CAHD,Bed Purchasing - North,Permanent Residential,High Border Lodge,988, 11-Apr-2017
1843,Revenue,CAHD,Bed Purchasing - Southmead Hospital,Permanent Residential,Highfield House,2238.33, 11-Apr-2017
1844,Revenue,CAHD,Bed Purchasing - Southmead Hospital,Fees & Charges Income - General,Highfield House,1607.91, 11-Apr-2017
1845,Revenue,CAHD,Bed Purchasing - Southmead Hospital,Permanent Residential,Highgate Studios,3522.24, 11-Apr-2017
1846,Revenue,CAHD,Bed Purchasing - Southmead Hospital,Permanent Residential,Highgate Studios,1189.34, 11-Apr-2017
1848,Revenue,CAHD,Bed Purchasing - North,Permanent Residential,Holmleigh Care Homes Ltd,2289.56, 11-Apr-2017
1849,Revenue,CAHD,Bed Purchasing - North,Permanent Residential,Holmleigh Care Homes Ltd,2260.18, 11-Apr-2017
1850,Revenue,CAHD,Bed Purchasing - South,Permanent Residential,Holmleigh Care Homes Ltd,2187.06, 11-Apr-2017
1851,Revenue,CAHD,Jointly Funded H&SC Packages,Permanent Residential,Holmleigh Care Homes Ltd,626.58, 11-Apr-2017
1852,Revenue,CAHD,Bed Purchasing - South,Permanent Residential,Holmleigh Care Homes Ltd,2159, 11-Apr-2017
1853,Revenue,CAHD,Jointly Funded H&SC Packages,Permanent Residential,Holmleigh Care Homes Ltd,618.54, 11-Apr-2017
1854,Revenue,CAHD,Bed Purchasing - North,Permanent Residential,Home Farm Trust Ltd  5-6 Brook Office Pa,1658.12, 11-Apr-2017
1855,Revenue,CAHD,Bed Purchasing - North,Permanent Residential,Home Farm Trust Ltd  5-6 Brook Office Pa,1636.84, 11-Apr-2017
1856,Revenue,CAHD,Bed Purchasing - North,Permanent Residential,Home Farm Trust Ltd  5-6 Brook Office Pa,1926.16, 11-Apr-2017
1857,Revenue,CAHD,Bed Purchasing - North,Permanent Residential,Home Farm Trust Ltd  5-6 Brook Office Pa,1901.44, 11-Apr-2017
1858,Revenue,CAHD,Home Care - Elderly - South,Supported Living,Home Farm Trust Ltd  5-6 Brook Office Pa,2037.1, 11-Apr-2017
1859,Revenue,CAHD,Home Care - Elderly - South,Supported Living,Home Farm Trust Ltd  5-6 Brook Office Pa,2010.96, 11-Apr-2017
1860,Revenue,CAHD,18-25 Year Olds,Permanent Residential,Home From Home Care Ltd,4870.38, 11-Apr-2017
1861,Revenue,CAHD,18-25 Year Olds,Permanent Residential,Home From Home Care Ltd,4807.88, 11-Apr-2017
1871,Revenue,CAHD,Bed Purchasing - North,Permanent Residential,Homes Caring For Autism Ltd  Churchill H,4087.96, 11-Apr-2017
1872,Revenue,CAHD,Jointly Funded H&SC Packages,Permanent Residential,Homes Caring For Autism Ltd  Churchill H,1235.18, 11-Apr-2017
1873,Revenue,CAHD,Bed Purchasing - North,Permanent Residential,Homes Caring For Autism Ltd  Churchill H,4035.5, 11-Apr-2017
1874,Revenue,CAHD,Jointly Funded H&SC Packages,Permanent Residential,Homes Caring For Autism Ltd  Churchill H,1219.32, 11-Apr-2017
1875,Revenue,CAHD,18-25 Year Olds,Permanent Residential,Homes Caring For Autism Ltd  Churchill H,2882.66, 11-Apr-2017
1876,Revenue,CAHD,Jointly Funded H&SC Packages,Permanent Residential,Homes Caring For Autism Ltd  Churchill H,4019.62, 11-Apr-2017
1877,Revenue,CAHD,18-25 Year Olds,Permanent Residential,Homes Caring For Autism Ltd  Churchill H,2845.66, 11-Apr-2017
1878,Revenue,CAHD,Jointly Funded H&SC Packages,Permanent Residential,Homes Caring For Autism Ltd  Churchill H,3968.04, 11-Apr-2017
1879,Revenue,CAHD,Bed Purchasing - Southmead Hospital,Permanent Nursing,Horfield Care Limited,1493.76, 11-Apr-2017
1880,Revenue,CAHD,Bed Purchasing - Southmead Hospital,Permanent Nursing,Horfield Care Limited,1877.05, 11-Apr-2017
1881,Revenue,CAHD,Bed Purchasing - Southmead Hospital,Permanent Nursing,Horfield Care Limited,623.94, 11-Apr-2017
1882,Revenue,CAHD,Bed Purchasing - Southmead Hospital,Permanent Nursing,Horfield Care Limited,1272.57, 11-Apr-2017
1883,Revenue,CAHD,Bed Purchasing - South,Permanent Nursing,Horfield Care Limited,1379.37, 11-Apr-2017
1884,Revenue,CAHD,Bed Purchasing - South,Permanent Nursing,Horfield Care Limited,1401.02, 11-Apr-2017
1903,Revenue,CAHD,Social Lettings Agency,Fees - General,Individual,12.22, 11-Apr-2017
1904,Revenue,CAHD,Social Lettings Agency,Other Supplies & Services,Individual,690.32, 11-Apr-2017
1910,Revenue,CAHD,Bed Purchasing - South,Permanent Residential,Jonen House,2039.64, 11-Apr-2017
1911,Revenue,CAHD,Bed Purchasing - South,Permanent Residential,Jonen House,2013.46, 11-Apr-2017
1912,Revenue,CAHD,Home Care - Elderly - South,Supported Living,Julia Simone- Supp. Ind.,604.96, 11-Apr-2017
1913,Revenue,CAHD,Home Care - Elderly - South,Supported Living,Julia Simone- Supp. Ind.,597.2, 11-Apr-2017
1914,Revenue,CAHD,Younger MH non-res purchasing,Supported Living,Julia Simone- Supp. Ind.,604.96, 11-Apr-2017
1915,Revenue,CAHD,Younger MH non-res purchasing,Supported Living,Julia Simone- Supp. Ind.,597.2, 11-Apr-2017
1916,Revenue,CAHD,Younger MH non-res purchasing,Supported Living,Julia Simone- Supp. Ind.,604.96, 11-Apr-2017
1917,Revenue,CAHD,Younger MH non-res purchasing,Supported Living,Julia Simone- Supp. Ind.,597.2, 11-Apr-2017
1918,Revenue,CAHD,Home Care - Elderly - North,Supported Living,Julia Simone- Supp. Ind.,622.38, 11-Apr-2017
1919,Revenue,CAHD,Home Care - Elderly - North,Supported Living,Julia Simone- Supp. Ind.,614.4, 11-Apr-2017
1920,Revenue,CAHD,Younger MH non-res purchasing,Supported Living,Julia Simone- Supp. Ind.,604.88, 11-Apr-2017
1921,Revenue,CAHD,Younger MH non-res purchasing,Supported Living,Julia Simone- Supp. Ind.,597.12, 11-Apr-2017
1922,Revenue,CAHD,Section 117 Placements MH Younger,Supported Living,Julia Simone- Supp. Ind.,596.84, 11-Apr-2017
1923,Revenue,CAHD,Section 117 Placements MH Younger,Supported Living,Julia Simone- Supp. Ind.,589.18, 11-Apr-2017
1924,Revenue,CAHD,Younger MH non-res purchasing,Supported Living,Julia Simone- Supp. Ind.,604.94, 11-Apr-2017
1925,Revenue,CAHD,Younger MH non-res purchasing,Supported Living,Julia Simone- Supp. Ind.,597.18, 11-Apr-2017
1926,Revenue,CAHD,Bed Purchasing - South,Permanent Residential,Julia Simone- Supp. Ind.,2237.66, 11-Apr-2017
1927,Revenue,CAHD,Bed Purchasing - South,Permanent Residential,Julia Simone- Supp. Ind.,2208.94, 11-Apr-2017
1928,Revenue,CAHD,Bed purchasing -S28A  Under 65 - North,Permanent Residential,Julia Simone- Supp. Ind.,1994.02, 11-Apr-2017
1929,Revenue,CAHD,Bed purchasing -S28A  Under 65 - North,Permanent Residential,Julia Simone- Supp. Ind.,1968.44, 11-Apr-2017
1936,Revenue,CAHD,Home Care - Elderly - South,Other Small Contracts,Kensington Community Care,1869.66, 11-Apr-2017
1937,Revenue,CAHD,Home Care - Elderly - North,Other Small Contracts,Kensington Community Care,5967, 11-Apr-2017
1942,Revenue,CAHD,Bed Purchasing - Southmead Hospital,Permanent Residential,Kenver House Residential Home,1124.48, 11-Apr-2017
1943,Revenue,CAHD,Bed Purchasing - Southmead Hospital,Permanent Residential,Kenver House Residential Home,1110.04, 11-Apr-2017
1944,Revenue,CAHD,Bed Purchasing - Southmead Hospital,Permanent Residential,Kenver House Residential Home,1124.48, 11-Apr-2017
1945,Revenue,CAHD,Bed Purchasing - Southmead Hospital,Permanent Residential,Kenver House Residential Home,1110.04, 11-Apr-2017
1946,Revenue,CAHD,Bed Purchasing - South,Permanent Residential,Kenver House Residential Home,1126.02, 11-Apr-2017
1947,Revenue,CAHD,Bed Purchasing - South,Permanent Residential,Kenver House Residential Home,1111.56, 11-Apr-2017
1948,Revenue,CAHD,Bed Purchasing - South,Permanent Residential,Kenver House Residential Home,1124.48, 11-Apr-2017
1949,Revenue,CAHD,Bed Purchasing - South,Permanent Residential,Kenver House Residential Home,1110.04, 11-Apr-2017
1950,Revenue,CAHD,Bed Purchasing - North,Permanent Residential,Kenver House Residential Home,1124.48, 11-Apr-2017
1951,Revenue,CAHD,Bed Purchasing - North,Permanent Residential,Kenver House Residential Home,1110.04, 11-Apr-2017
1952,Revenue,CAHD,Bed Purchasing - Southmead Hospital,Permanent Residential,Kenver House Residential Home,1158, 11-Apr-2017
1953,Revenue,CAHD,Bed Purchasing - Southmead Hospital,Permanent Residential,Kenver House Residential Home,1143.14, 11-Apr-2017
1954,Revenue,CAHD,Bed Purchasing - South,Permanent Residential,Kenver House Residential Home,1231.54, 11-Apr-2017
1955,Revenue,CAHD,Bed Purchasing - South,Permanent Residential,Kenver House Residential Home,1215.74, 11-Apr-2017
1956,Revenue,CAHD,Bed purchasing - Elderly S117 - South,Permanent Residential,Kenver House Residential Home,1231.54, 11-Apr-2017
1957,Revenue,CAHD,Bed purchasing - Elderly S117 - South,Permanent Residential,Kenver House Residential Home,1215.74, 11-Apr-2017
1958,Revenue,CAHD,Bed Purchasing - South,Permanent Residential,Kenver House Residential Home,2580, 11-Apr-2017
1959,Revenue,CAHD,Bed Purchasing - South,Permanent Residential,Kenver House Residential Home,1306.78, 11-Apr-2017
1960,Revenue,CAHD,Bed Purchasing - South,Permanent Residential,Kenver House Residential Home,1290, 11-Apr-2017
1961,Revenue,CAHD,Bed Purchasing - South,Fees & Charges Income - General,Kenver House Residential Home,504.13, 11-Apr-2017
1962,Revenue,CAHD,Bed Purchasing - South,Permanent Residential,Kenver House Residential Home,1231.54, 11-Apr-2017
1963,Revenue,CAHD,Bed Purchasing - South,Permanent Residential,Kenver House Residential Home,1215.74, 11-Apr-2017
1964,Revenue,CAHD,Bed Purchasing - South,Permanent Residential,Kenver House Residential Home,1231.54, 11-Apr-2017
1965,Revenue,CAHD,Bed Purchasing - South,Permanent Residential,Kenver House Residential Home,1215.74, 11-Apr-2017
1966,Revenue,CAHD,Bed Purchasing - South,Respite Emergency - Residential,Kenver House Residential Home,2487.86, 11-Apr-2017
1967,Revenue,CAHD,Bed Purchasing - North,Permanent Residential,Kenver House Residential Home,521.03, 11-Apr-2017
1968,Revenue,CAHD,Bed Purchasing - South,Permanent Residential,Kenver House Residential Home,1231.54, 11-Apr-2017
1969,Revenue,CAHD,Bed Purchasing - South,Permanent Residential,Kenver House Residential Home,1215.74, 11-Apr-2017
1970,Revenue,CAHD,Bed Purchasing - South,Permanent Residential,Kenver House Residential Home,1124.48, 11-Apr-2017
1971,Revenue,CAHD,Bed Purchasing - South,Permanent Residential,Kenver House Residential Home,1110.04, 11-Apr-2017
1986,Revenue,CAHD,Bed Purchasing - North,Permanent Residential,Kilkhampton Lodge,8863.76, 11-Apr-2017
1987,Revenue,CAHD,Bed Purchasing - North,Permanent Residential,Kilkhampton Lodge,8750, 11-Apr-2017
1990,Revenue,CAHD,Bed Purchasing - North,Permanent Nursing,Kingfisher Lodge Care Centre,1664.54, 11-Apr-2017
1991,Revenue,CAHD,Bed Purchasing - North,Permanent Nursing,Kingfisher Lodge Care Centre,1643.18, 11-Apr-2017
1998,Revenue,CAHD,CSC - Adoption Support Fund,Fees & Charges Income - General,Kirstie Adamson,1068, 11-Apr-2017
2000,Revenue,CAHD,Bed Purchasing - North,Permanent Residential,Kisimul Group,6118.26, 11-Apr-2017
2001,Revenue,CAHD,Bed Purchasing - North,Permanent Residential,Kisimul Group,6039.74, 11-Apr-2017
2017,Revenue,CAHD,Bed Purchasing - North,Permanent Nursing,Larchfield Care Home,1534.18, 11-Apr-2017
2018,Revenue,CAHD,Bed Purchasing - North,Permanent Nursing,Larchfield Care Home,1514.5, 11-Apr-2017
2019,Revenue,CAHD,Bed Purchasing - North,Permanent Residential,Leonard Cheshire  National Account Centr,1729.56, 11-Apr-2017
2020,Revenue,CAHD,Bed Purchasing - North,Permanent Residential,Leonard Cheshire  National Account Centr,1707.36, 11-Apr-2017
2021,Revenue,CAHD,Bed Purchasing - South,Permanent Residential,Leonard Cheshire  National Account Centr,1912.72, 11-Apr-2017
2022,Revenue,CAHD,Bed Purchasing - South,Permanent Residential,Leonard Cheshire  National Account Centr,1888.18, 11-Apr-2017
2023,Revenue,CAHD,Bed Purchasing - North,Permanent Nursing,Leonard Cheshire  National Account Centr,2007.66, 11-Apr-2017
2024,Revenue,CAHD,Bed Purchasing - North,Permanent Nursing,Leonard Cheshire  National Account Centr,1981.9, 11-Apr-2017
2025,Revenue,CAHD,Bed Purchasing - North,Permanent Nursing,Leonard Cheshire  National Account Centr,1653.06, 11-Apr-2017
2026,Revenue,CAHD,Bed Purchasing - North,Permanent Nursing,Leonard Cheshire  National Account Centr,1631.84, 11-Apr-2017
2027,Revenue,CAHD,18-25 Year Olds,Permanent Residential,Leonard Cheshire  National Account Centr,1878.88, 11-Apr-2017
2028,Revenue,CAHD,18-25 Year Olds,Permanent Residential,Leonard Cheshire  National Account Centr,1854.76, 11-Apr-2017
2029,Revenue,CAHD,Bed Purchasing - North,Permanent Residential,Leonard Cheshire  National Account Centr,3258.32, 11-Apr-2017
2030,Revenue,CAHD,Bed Purchasing - North,Permanent Residential,Leonard Cheshire  National Account Centr,3216.5, 11-Apr-2017
2031,Revenue,CAHD,Bed Purchasing - North,Permanent Nursing,Leonard Cheshire  National Account Centr,2580.1, 11-Apr-2017
2032,Revenue,CAHD,Bed Purchasing - North,Permanent Nursing,Leonard Cheshire  National Account Centr,2546.98, 11-Apr-2017
2033,Revenue,CAHD,Bed Purchasing - North,Permanent Nursing,Leonard Cheshire  National Account Centr,1673.32, 11-Apr-2017
2034,Revenue,CAHD,Bed Purchasing - North,Permanent Nursing,Leonard Cheshire  National Account Centr,1651.84, 11-Apr-2017
2035,Revenue,CAHD,Bed Purchasing - North,Permanent Nursing,Leonard Cheshire  National Account Centr,2753.28, 11-Apr-2017
2036,Revenue,CAHD,Bed Purchasing - North,Permanent Nursing,Leonard Cheshire  National Account Centr,2717.94, 11-Apr-2017
2037,Revenue,CAHD,Bed Purchasing - North,Permanent Residential,Leonard Cheshire  National Account Centr,1700.26, 11-Apr-2017
2038,Revenue,CAHD,Bed Purchasing - North,Permanent Residential,Leonard Cheshire  National Account Centr,1678.44, 11-Apr-2017
2039,Revenue,CAHD,Bed Purchasing - North,Permanent Nursing,Leonard Cheshire  National Account Centr,1624.18, 11-Apr-2017
2040,Revenue,CAHD,Bed Purchasing - North,Permanent Nursing,Leonard Cheshire  National Account Centr,1603.34, 11-Apr-2017
2041,Revenue,CAHD,Bed Purchasing - North,Permanent Nursing,Leonard Cheshire  National Account Centr,2907.64, 11-Apr-2017
2042,Revenue,CAHD,Bed Purchasing - North,Permanent Nursing,Leonard Cheshire  National Account Centr,2870.32, 11-Apr-2017
2043,Revenue,CAHD,Bed Purchasing - South,Permanent Nursing,Leonard Cheshire  National Account Centr,1715.5, 11-Apr-2017
2044,Revenue,CAHD,Bed Purchasing - South,Permanent Nursing,Leonard Cheshire  National Account Centr,1693.48, 11-Apr-2017
2045,Revenue,CAHD,Bed Purchasing - Southmead Hospital,Permanent Nursing,Leonard Cheshire  National Account Centr,1756.66, 11-Apr-2017
2046,Revenue,CAHD,Bed Purchasing - Southmead Hospital,Permanent Nursing,Leonard Cheshire  National Account Centr,1734.12, 11-Apr-2017
2047,Revenue,CAHD,South Glos Users in all other LA Homes,Permanent Nursing,Leonard Cheshire  National Account Centr,700.91, 11-Apr-2017
2048,Revenue,CAHD,Bed Purchasing - North,Permanent Nursing,Leonard Cheshire  National Account Centr,1922.98, 11-Apr-2017
2049,Revenue,CAHD,Bed Purchasing - North,Permanent Nursing,Leonard Cheshire  National Account Centr,1898.3, 11-Apr-2017
2050,Revenue,CAHD,Bed Purchasing - North,Permanent Nursing,Leonard Cheshire  National Account Centr,2307.46, 11-Apr-2017
2051,Revenue,CAHD,Bed Purchasing - North,Permanent Nursing,Leonard Cheshire  National Account Centr,2277.84, 11-Apr-2017
2054,Revenue,CAHD,Bed Purchasing - North,Permanent Residential,Linden House,4047.64, 11-Apr-2017
2055,Revenue,CAHD,Bed Purchasing - North,Permanent Residential,Linden House,3995.7, 11-Apr-2017
2056,Revenue,CAHD,Bed Purchasing - North,Permanent Residential,Linden House,4105.82, 11-Apr-2017
2057,Revenue,CAHD,Bed Purchasing - North,Permanent Residential,Linden House,3763.61, 11-Apr-2017
2058,Revenue,CAHD,Bed Purchasing - Southmead Hospital,Permanent Residential,Little Croft,943.12, 11-Apr-2017
2059,Revenue,CAHD,Bed Purchasing - Southmead Hospital,Permanent Residential,Little Croft,915.66, 11-Apr-2017
2060,Revenue,CAHD,Bed Purchasing - South,Permanent Residential,Little Croft,1026.78, 11-Apr-2017
2061,Revenue,CAHD,Bed Purchasing - South,Permanent Residential,Little Croft,1013.6, 11-Apr-2017
2062,Revenue,CAHD,Bed Purchasing - Southmead Hospital,Permanent Residential,Little Croft,943.12, 11-Apr-2017
2063,Revenue,CAHD,Bed Purchasing - Southmead Hospital,Permanent Residential,Little Croft,915.66, 11-Apr-2017
2064,Revenue,CAHD,Bed Purchasing - North,Permanent Residential,Little Croft,943.12, 11-Apr-2017
2065,Revenue,CAHD,Bed Purchasing - North,Permanent Residential,Little Croft,915.66, 11-Apr-2017
2066,Revenue,CAHD,Bed Purchasing - Southmead Hospital,Permanent Residential,Little Croft,1129.46, 11-Apr-2017
2067,Revenue,CAHD,Bed Purchasing - Southmead Hospital,Permanent Residential,Little Croft,1114.96, 11-Apr-2017
2068,Revenue,CAHD,Bed Purchasing - South,Permanent Residential,Little Croft,1367.56, 11-Apr-2017
2069,Revenue,CAHD,Bed Purchasing - South,Permanent Residential,Little Croft,1350, 11-Apr-2017
2070,Revenue,CAHD,Bed Purchasing - South,Respite Emergency - Residential,Little Croft,2314.29, 11-Apr-2017
2071,Revenue,CAHD,Bed Purchasing - South,Respite Planned - Residential,Little Croft,1928.57, 11-Apr-2017
2072,Revenue,CAHD,Bed Purchasing - South,Respite Planned - Residential,Little Croft,964.29, 11-Apr-2017
2073,Revenue,CAHD,Bed Purchasing - South,Permanent Residential,Little Croft,1164.96, 11-Apr-2017
2074,Revenue,CAHD,Bed Purchasing - South,Permanent Residential,Little Croft,1150, 11-Apr-2017
2075,Revenue,CAHD,Bed Purchasing - Southmead Hospital,Permanent Residential,Little Croft,1367.56, 11-Apr-2017
2076,Revenue,CAHD,Bed Purchasing - Southmead Hospital,Permanent Residential,Little Croft,1350, 11-Apr-2017
2077,Revenue,CAHD,Bed Purchasing - South,Permanent Residential,Little Croft,943.12, 11-Apr-2017
2078,Revenue,CAHD,Bed Purchasing - South,Permanent Residential,Little Croft,915.66, 11-Apr-2017
2079,Revenue,CAHD,Bed Purchasing - Southmead Hospital,Respite Emergency - Residential,Little Croft,1367.56, 11-Apr-2017
2080,Revenue,CAHD,Bed Purchasing - Southmead Hospital,Respite Emergency - Residential,Little Croft,1350, 11-Apr-2017
2081,Revenue,CAHD,Bed Purchasing - Southmead Hospital,Permanent Residential,Little Croft,1186.82, 11-Apr-2017
2082,Revenue,CAHD,Bed Purchasing - Southmead Hospital,Permanent Residential,Little Croft,1152.26, 11-Apr-2017
2083,Revenue,CAHD,Bed Purchasing - Southmead Hospital,Permanent Residential,Little Croft,933.96, 11-Apr-2017
2084,Revenue,CAHD,Bed Purchasing - Southmead Hospital,Permanent Residential,Little Croft,906.76, 11-Apr-2017
2085,Revenue,CAHD,Bed Purchasing - Southmead Hospital,Permanent Residential,Little Croft,1024.48, 11-Apr-2017
2086,Revenue,CAHD,Bed Purchasing - Southmead Hospital,Permanent Residential,Little Croft,994.64, 11-Apr-2017
2087,Revenue,CAHD,Bed Purchasing - Southmead Hospital,Permanent Residential,Little Croft,1266.26, 11-Apr-2017
2088,Revenue,CAHD,Bed Purchasing - Southmead Hospital,Permanent Residential,Little Croft,1250, 11-Apr-2017
2089,Revenue,CAHD,Bed Purchasing - Southmead Hospital,Permanent Residential,Little Croft,1367.56, 11-Apr-2017
2090,Revenue,CAHD,Bed Purchasing - Southmead Hospital,Permanent Residential,Little Croft,1350, 11-Apr-2017
2091,Revenue,CAHD,Bed Purchasing - Southmead Hospital,Permanent Residential,Little Croft,943.12, 11-Apr-2017
2092,Revenue,CAHD,Bed Purchasing - Southmead Hospital,Permanent Residential,Little Croft,915.66, 11-Apr-2017
2093,Revenue,CAHD,Bed Purchasing - South,Permanent Residential,Little Croft,1164.96, 11-Apr-2017
2094,Revenue,CAHD,Bed Purchasing - South,Permanent Residential,Little Croft,1150, 11-Apr-2017
2095,Revenue,CAHD,Bed Purchasing - Southmead Hospital,Permanent Residential,Little Croft,1114.3, 11-Apr-2017
2096,Revenue,CAHD,Bed Purchasing - Southmead Hospital,Permanent Residential,Little Croft,1100, 11-Apr-2017
2097,Revenue,CAHD,Bed Purchasing - North,Permanent Residential,Little Croft,5014.28, 11-Apr-2017
2098,Revenue,CAHD,Bed Purchasing - North,Permanent Residential,Little Croft,1367.56, 11-Apr-2017
2099,Revenue,CAHD,Bed Purchasing - North,Permanent Residential,Little Croft,1157.14, 11-Apr-2017
2100,Revenue,CAHD,Bed Purchasing - North,Fees & Charges Income - General,Little Croft,844.39, 11-Apr-2017
2101,Revenue,CAHD,18-25 Year Olds,Respite Planned - Residential,Little Croft,2700, 11-Apr-2017
2102,Revenue,CAHD,18-25 Year Olds,Respite Planned - Residential,Little Croft,1367.52, 11-Apr-2017
2103,Revenue,CAHD,18-25 Year Olds,Respite Planned - Residential,Little Croft,1350, 11-Apr-2017
2104,Revenue,CAHD,Bed Purchasing - North,Permanent Residential,Little Croft,1060.71, 11-Apr-2017
2105,Revenue,CAHD,Bed Purchasing - Southmead Hospital,Permanent Residential,Little Croft,1367.56, 11-Apr-2017
2106,Revenue,CAHD,Bed Purchasing - Southmead Hospital,Permanent Residential,Little Croft,1350, 11-Apr-2017
2107,Revenue,CAHD,Bed Purchasing - Southmead Hospital,Permanent Residential,Little Croft,1367.56, 11-Apr-2017
2108,Revenue,CAHD,Bed Purchasing - Southmead Hospital,Permanent Residential,Little Croft,1350, 11-Apr-2017
2109,Revenue,CAHD,Bed Purchasing - Southmead Hospital,Permanent Residential,Little Croft,1367.56, 11-Apr-2017
2110,Revenue,CAHD,Bed Purchasing - Southmead Hospital,Permanent Residential,Little Croft,1350, 11-Apr-2017
2111,Revenue,CAHD,Bed Purchasing - Southmead Hospital,Permanent Residential,Little Croft,716.34, 11-Apr-2017
2112,Revenue,CAHD,Bed Purchasing - Southmead Hospital,Permanent Residential,Little Croft,900, 11-Apr-2017
2113,Revenue,CAHD,Bed Purchasing - South,Permanent Residential,Little Croft,1035.36, 11-Apr-2017
2114,Revenue,CAHD,Bed Purchasing - South,Permanent Residential,Little Croft,1005.2, 11-Apr-2017
2115,Revenue,CAHD,Bed Purchasing - Southmead Hospital,Permanent Residential,Little Croft,943.12, 11-Apr-2017
2116,Revenue,CAHD,Bed Purchasing - Southmead Hospital,Permanent Residential,Little Croft,915.66, 11-Apr-2017
2117,Revenue,CAHD,Bed Purchasing - Southmead Hospital,Permanent Residential,Little Croft,943.12, 11-Apr-2017
2118,Revenue,CAHD,Bed Purchasing - Southmead Hospital,Permanent Residential,Little Croft,915.66, 11-Apr-2017
2119,Revenue,CAHD,Bed Purchasing - South,Permanent Residential,Little Croft,1114.3, 11-Apr-2017
2120,Revenue,CAHD,Bed Purchasing - South,Permanent Residential,Little Croft,1100, 11-Apr-2017
2121,Revenue,CAHD,Bed Purchasing - North,Permanent Residential,Littlecroft Residential Homes  Longcroft,3529.08, 11-Apr-2017
2122,Revenue,CAHD,Bed Purchasing - North,Permanent Residential,Littlecroft Residential Homes  Longcroft,3483.8, 11-Apr-2017
2156,Revenue,CAHD,Bed Purchasing - South,Permanent Nursing,Lodge House,1638.52, 11-Apr-2017
2157,Revenue,CAHD,Bed Purchasing - South,Permanent Nursing,Lodge House,1617.5, 11-Apr-2017
2158,Revenue,CAHD,South Glos Users in South Glos Homes,Permanent Nursing,Lodge House,509.45, 11-Apr-2017
2159,Revenue,CAHD,Bed Purchasing - South,Permanent Nursing,Lodge House,1124.36, 11-Apr-2017
2160,Revenue,CAHD,Bed Purchasing - South,Permanent Nursing,Lodge House,1109.94, 11-Apr-2017
2161,Revenue,CAHD,South Glos Users in South Glos Homes,Permanent Nursing,Lodge House,509.45, 11-Apr-2017
2162,Revenue,CAHD,South Glos Users in South Glos Homes,Permanent Nursing,Lodge House,509.45, 11-Apr-2017
2163,Revenue,CAHD,South Glos Users in South Glos Homes,Permanent Nursing,Lodge House,509.45, 11-Apr-2017
2164,Revenue,CAHD,South Glos Users in South Glos Homes,Permanent Nursing,Lodge House,509.45, 11-Apr-2017
2165,Revenue,CAHD,Bed Purchasing - South,Permanent Nursing,Lodge House,1372.34, 11-Apr-2017
2166,Revenue,CAHD,Bed Purchasing - South,Permanent Nursing,Lodge House,1354.72, 11-Apr-2017
2167,Revenue,CAHD,South Glos Users in South Glos Homes,Permanent Nursing,Lodge House,509.45, 11-Apr-2017
2168,Revenue,CAHD,South Glos Users in South Glos Homes,Permanent Nursing,Lodge House,509.45, 11-Apr-2017
2169,Revenue,CAHD,South Glos Users in South Glos Homes,Permanent Nursing,Lodge House,509.45, 11-Apr-2017
2170,Revenue,CAHD,Bed Purchasing - Southmead Hospital,Permanent Nursing,Lodge House,1705.38, 11-Apr-2017
2171,Revenue,CAHD,Bed Purchasing - Southmead Hospital,Permanent Nursing,Lodge House,1683.5, 11-Apr-2017
2172,Revenue,CAHD,Bed Purchasing - Southmead Hospital,Permanent Nursing,Lodge House,841.75, 11-Apr-2017
2173,Revenue,CAHD,Bed Purchasing - South,Permanent Nursing,Lodge House,1554.96, 11-Apr-2017
2174,Revenue,CAHD,Bed Purchasing - South,Permanent Nursing,Lodge House,1535, 11-Apr-2017
2175,Revenue,CAHD,South Glos Users in South Glos Homes,Permanent Nursing,Lodge House,509.45, 11-Apr-2017
2176,Revenue,CAHD,South Glos Users in South Glos Homes,Permanent Nursing,Lodge House,509.45, 11-Apr-2017
2177,Revenue,CAHD,South Glos Users in South Glos Homes,Permanent Nursing,Lodge House,509.45, 11-Apr-2017
2178,Revenue,CAHD,Bed Purchasing - Southmead Hospital,Permanent Nursing,Lodge House,1554.96, 11-Apr-2017
2179,Revenue,CAHD,Bed Purchasing - Southmead Hospital,Permanent Nursing,Lodge House,1535, 11-Apr-2017
2180,Revenue,CAHD,South Glos Users in South Glos Homes,Permanent Nursing,Lodge House,509.45, 11-Apr-2017
2181,Revenue,CAHD,South Glos Users in South Glos Homes,Permanent Nursing,Lodge House,509.45, 11-Apr-2017
2182,Revenue,CAHD,South Glos Users in South Glos Homes,Permanent Nursing,Lodge House,509.45, 11-Apr-2017
2183,Revenue,CAHD,Bed Purchasing - North,Permanent Nursing,Lodge House,1493.92, 11-Apr-2017
2184,Revenue,CAHD,Bed Purchasing - North,Permanent Nursing,Lodge House,1474.74, 11-Apr-2017
2185,Revenue,CAHD,South Glos Users in South Glos Homes,Permanent Nursing,Lodge House,509.45, 11-Apr-2017
2186,Revenue,CAHD,Bed Purchasing - South,Permanent Nursing,Lodge House,1638.52, 11-Apr-2017
2187,Revenue,CAHD,Bed Purchasing - South,Permanent Nursing,Lodge House,1386.43, 11-Apr-2017
2188,Revenue,CAHD,Bed Purchasing - South,Fees & Charges Income - General,Lodge House,924.29, 11-Apr-2017
2189,Revenue,CAHD,South Glos Users in South Glos Homes,Permanent Nursing,Lodge House,509.45, 11-Apr-2017
2190,Revenue,CAHD,Bed Purchasing - South,Permanent Nursing,Lodge House,9473.93, 11-Apr-2017
2191,Revenue,CAHD,South Glos Users in South Glos Homes,Permanent Nursing,Lodge House,509.45, 11-Apr-2017
2192,Revenue,CAHD,South Glos Users in South Glos Homes,Permanent Nursing,Lodge House,509.45, 11-Apr-2017
2193,Revenue,CAHD,Bed Purchasing - Southmead Hospital,Permanent Nursing,Lodge House,1705.38, 11-Apr-2017
2194,Revenue,CAHD,Bed Purchasing - Southmead Hospital,Permanent Nursing,Lodge House,1683.5, 11-Apr-2017
2195,Revenue,CAHD,South Glos Users in South Glos Homes,Permanent Nursing,Lodge House,1316.96, 11-Apr-2017
2196,Revenue,CAHD,Bed Purchasing - Southmead Hospital,Permanent Nursing,Lodge House,1617.5, 11-Apr-2017
2197,Revenue,CAHD,Bed Purchasing - Southmead Hospital,Permanent Nursing,Lodge House,1287.41, 11-Apr-2017
2198,Revenue,CAHD,South Glos Users in South Glos Homes,Permanent Nursing,Lodge House,509.45, 11-Apr-2017
2199,Revenue,CAHD,South Glos Users in South Glos Homes,Permanent Nursing,Lodge House,509.45, 11-Apr-2017
2200,Revenue,CAHD,South Glos Users in South Glos Homes,Permanent Nursing,Lodge House,509.45, 11-Apr-2017
2201,Revenue,CAHD,South Glos Users in South Glos Homes,Permanent Nursing,Lodge House,736.61, 11-Apr-2017
2202,Revenue,CAHD,Bed Purchasing - Southmead Hospital,Permanent Nursing,Lodge House,1638.52, 11-Apr-2017
2203,Revenue,CAHD,Bed Purchasing - Southmead Hospital,Permanent Nursing,Lodge House,1617.5, 11-Apr-2017
2204,Revenue,CAHD,South Glos Users in South Glos Homes,Permanent Nursing,Lodge House,509.45, 11-Apr-2017
2205,Revenue,CAHD,South Glos Users in South Glos Homes,Permanent Nursing,Lodge House,509.45, 11-Apr-2017
2206,Revenue,CAHD,South Glos Users in South Glos Homes,Permanent Nursing,Lodge House,509.45, 11-Apr-2017
2207,Revenue,CAHD,South Glos Users in South Glos Homes,Permanent Nursing,Lodge House,509.45, 11-Apr-2017
2208,Revenue,CAHD,South Glos Users in South Glos Homes,Permanent Nursing,Lodge House,509.45, 11-Apr-2017
2209,Revenue,CAHD,South Glos Users in South Glos Homes,Permanent Nursing,Lodge House,509.45, 11-Apr-2017
2210,Revenue,CAHD,South Glos Users in South Glos Homes,Permanent Nursing,Lodge House,509.45, 11-Apr-2017
